Workbook

Sheet Overview
M3: ©EIOPA, 2026.
F6: RFR Risk-Corrected Spread Calculation
F8: This workbook demonstrates the calculation of the risk-corrected spreads for Italy. It supports the RFR technical documentation section 9 and annexes E-G. The workbook is based on the amendments to the Solvency II provisions set out in Directive (EU) 2025/2 and Commission Delegated Regulation (EU) 2026/269.
F15: Version | H15: Last Change | K15: Legend
F16: 1 | H16: 2026-05-19 | K16: Input data
K17: Intermediary calculation
K18: Output data
F21: Abbreviations
F22: CORP | G22: corporate bond | J22: RC | K22: risk correction
F23: CQS | G23: credit quality step | J23: RCS | K23: risk-corrected spread
F24: GOV | G24: government bond | J24: RFR | K24: risk-free rate
F25: IRR | G25: internal rate of return | J25: S | K25: spread
F26: LTAS | G26: long-term average spread | J26: Y | K26: year
F27: MV | G27: market value
F30: Description
F32: The calculation of the risk-corrected spreads are described in Directive (EU) 2025/2 of the European Parliament and of the Council amending Directive 2009/138/EC Article 77d, Commission Delegated Regulation (EU) 2015/35 Articles 49 to 51 (amended by Commission Delegated Regulation (EU) 2026/269) as well as EIOPA's RFR Technical Documentation (see section 'Background material' at https://www.eiopa.europa.eu/tools-and-data/risk-free-interest-rate-term-structures_en).
F33: The input data consist of: - Reference portfolios, - Risk-free interest rates, - Government bond rates, - Corporate bond rates, - Long-term average spreads
F34: For each reference portfolio, firstly, the individual spreads and risk-corrections are computed for each component. Then, in a second step, the internal effective rates for the yield, the risk-free rate as well as the risk-corrected yield are calculated on the portfolio level and combined to result in the portfolio spread and the portfolio risk correction.
F35: The overall risk-corrected spreads at a currency and country level are then computed by weighting the government bond and corporate bond reference portfolio spreads and risk-corrections and taking their differences. They form the basis for the volatility adjustment calculation.
F36: This workbook exemplifies the calculation of the risk-corrected spreads relevant for the computation of the volatility adjustment to the basic risk-free interest rate term structure of an EEA country (Italy in this case) based on dummy data. The necessary input data are shown in the marked input data worksheets. These data are then used for the spread and risk-correction calculations of the government bond and corporate bond currency reference portfolios as well as for the respective calculations of the country reference portfolios. The final risk-corrected spreads are shown in the worksheet "RCS".
F37: This workbook requires Microsoft Excel 2021 or higher (including Excel 365). VBA macros must be activated for the computation of the internal effective rates. The internal effective rates can be calculated either individually by pressing the respective button in the "S&RC" worksheets or calculated together by pressing the "Calculate RCS" button in the "RCS" worksheet.
F38: Implementation Details
F40: Named ranges have been used to enhance the transparency of the calculations. The naming convention used is as follows: - Prefix with "R" for ranges - Prefix with "V" for (scalar) values - Prefix with "L" for validation lists The calculation of the internal effective rates uses the solver and is triggered using VBA. To access the VBA code, navigate to the "Developer" tab or use the shortcut ALT + F11.

Sheet Gov Rates
R3: ©EIOPA, 2026.
F6: Input Data: Government Bond Rates
F8: Maturity [Y] | G8: ECB Curve | H8: AT | I8: BE | J8: FI | K8: FR | L8: DE | M8: IE | N8: IT | O8: NL | P8: PT | Q8: ES | R8: US
F9: 1 | G9: 0.02064171813 | H9: 0.01827490055 | I9: 0.02054080888 | J9: 0.01871663289 | K9: 0.02042461268 | L9: 0.01762618953 | M9: 0.01951425208 | N9: 0.01868757728 | O9: 0.0190081353 | P9: 0.02042745779 | Q9: 0.01899913671 | R9: 0.04258589198
F10: 2 | G10: 0.01955778322 | H10: 0.01757374611 | I10: 0.0212251749 | J10: 0.0192311507 | K10: 0.02073679712 | L10: 0.01780066765 | M10: 0.01867464022 | N10: 0.01893560248 | O10: 0.01842843892 | P10: 0.01851757032 | Q10: 0.01949706281 | R10: 0.03847568899
F11: 3 | G11: 0.02229099774 | H11: 0.01903378154 | I11: 0.01984910333 | J11: 0.01888288065 | K11: 0.01968287187 | L11: 0.01832283408 | M11: 0.01875546522 | N11: 0.02044643557 | O11: 0.01994481658 | P11: 0.02090143408 | Q11: 0.02115999878 | R11: 0.04057261168
F12: 4 | G12: 0.02390364303 | H12: 0.02349315122 | I12: 0.02331090134 | J12: 0.0204433354 | K12: 0.02217681444 | L12: 0.0182537191 | M12: 0.02104086923 | N12: 0.02434444614 | O12: 0.02206200313 | P12: 0.01969998623 | Q12: 0.02397114772 | R12: 0.03987058647
F13: 5 | G13: 0.02317717522 | H13: 0.02538414455 | I13: 0.02507901524 | J13: 0.02484554808 | K13: 0.02684713583 | L13: 0.02186245411 | M13: 0.02405665711 | N13: 0.02804068536 | O13: 0.02330262403 | P13: 0.02264240576 | Q13: 0.02486208405 | R13: 0.03948536908
F14: 6 | G14: 0.0256276544 | H14: 0.02373392088 | I14: 0.02340009277 | J14: 0.02614621391 | K14: 0.02830711681 | L14: 0.02341469612 | M14: 0.02319700806 | N14: 0.02934643276 | O14: 0.02355714266 | P14: 0.02550929213 | Q14: 0.02731030175 | R14: 0.04199542858
F15: 7 | G15: 0.0271659829 | H15: 0.02812001845 | I15: 0.02745722173 | J15: 0.02488373661 | K15: 0.02694823497 | L15: 0.02078881807 | M15: 0.02345115476 | N15: 0.02981396428 | O15: 0.02481909482 | P15: 0.02371079284 | Q15: 0.02681768226 | R15: 0.04435430432
F16: 8 | G16: 0.03079853572 | H16: 0.02858398689 | I16: 0.02793819499 | J16: 0.02643208263 | K16: 0.02804588903 | L16: 0.02183709499 | M16: 0.02542401987 | N16: 0.03387829135 | O16: 0.02721244326 | P16: 0.02543436115 | Q16: 0.03079590944 | R16: 0.04181534834
F17: 9 | G17: 0.03226349183 | H17: 0.03059980869 | I17: 0.03028794932 | J17: 0.02841776905 | K17: 0.03103336342 | L17: 0.02414051408 | M17: 0.0259872146 | N17: 0.03365643614 | O17: 0.02787795653 | P17: 0.02837436266 | Q17: 0.03097697627 | R17: 0.04399213497
F18: 10 | G18: 0.03198058877 | H18: 0.02970821367 | I18: 0.02918208521 | J18: 0.027929652 | K18: 0.03388999707 | L18: 0.02579540286 | M18: 0.02885065406 | N18: 0.03720411246 | O18: 0.02756326113 | P18: 0.02894481215 | Q18: 0.03192084475 | R18: 0.04494462877
F19: 11 | G19: 0.03152166773 | H19: 0.0293444973 | I19: 0.03172450932 | J19: 0.03118321591 | K19: 0.03315510294 | L19: 0.02694725382 | M19: 0.0302759698 | N19: 0.03620029199 | O19: 0.02696847416 | P19: 0.03063691942 | Q19: 0.0312753226 | R19: 0.04457188247
F20: 12 | G20: 0.03370894839 | H20: 0.03290898239 | I20: 0.03245772264 | J20: 0.03009620273 | K20: 0.03511982593 | L20: 0.02889849852 | M20: 0.02928928336 | N20: 0.03784708674 | O20: 0.02821425956 | P20: 0.03169565081 | Q20: 0.03399223898 | R20: 0.04528983996
F21: 13 | G21: 0.03236088704 | H21: 0.03291493965 | I21: 0.03376536465 | J21: 0.03051450742 | K21: 0.03391293555 | L21: 0.02925111188 | M21: 0.03164243536 | N21: 0.03694231403 | O21: 0.02769573572 | P21: 0.0321482487 | Q21: 0.03488817929 | R21: 0.04797655712
F22: 14 | G22: 0.03532485089 | H22: 0.03252648283 | I22: 0.03544368339 | J22: 0.03159270115 | K22: 0.03646373224 | L22: 0.02744975562 | M22: 0.03100015926 | N22: 0.04150104567 | O22: 0.02948307742 | P22: 0.03417926818 | Q22: 0.03493799125 | R22: 0.04829379442
F23: 15 | G23: 0.03512830756 | H23: 0.03538573305 | I23: 0.03459016535 | J23: 0.03156558725 | K23: 0.03650877175 | L23: 0.02841127221 | M23: 0.02989595195 | N23: 0.0416132 | O23: 0.02884239898 | P23: 0.03395430485 | Q23: 0.03875177724 | R23: 0.04772448496
F24: 16 | G24: 0.03550598655 | H24: 0.03316177325 | I24: 0.03534418045 | J24: 0.03346371627 | K24: 0.03554579096 | L24: 0.02847877356 | M24: 0.03379957262 | N24: 0.04108116034 | O24: 0.0302896977 | P24: 0.03597550613 | Q24: 0.03634360727 | R24: 0.0502450012
F25: 17 | G25: 0.03745215446 | H25: 0.03483796053 | I25: 0.03473239183 | J25: 0.03234040582 | K25: 0.03786023968 | L25: 0.02774680843 | M25: 0.03447715964 | N25: 0.04163350986 | O25: 0.02909299248 | P25: 0.03692257303 | Q25: 0.03895755425 | R25: 0.04938276916
F26: 18 | G26: 0.03728646575 | H26: 0.03582347521 | I26: 0.03512297337 | J26: 0.03249386684 | K26: 0.03749487898 | L26: 0.03072686445 | M26: 0.03135447666 | N26: 0.04288004411 | O26: 0.02939300171 | P26: 0.03631856429 | Q26: 0.03817290601 | R26: 0.05072199218
F27: 19 | G27: 0.03581444143 | H27: 0.03341505086 | I27: 0.03832374269 | J27: 0.03257222446 | K27: 0.03745122434 | L27: 0.02964951164 | M27: 0.03501825341 | N27: 0.04120423738 | O27: 0.03250277552 | P27: 0.03746881597 | Q27: 0.03712719449 | R27: 0.05396612021
F28: 20 | G28: 0.0355253006 | H28: 0.03484952715 | I28: 0.03665315476 | J28: 0.03371392812 | K28: 0.03869473965 | L28: 0.02768494841 | M28: 0.03555830456 | N28: 0.04239222267 | O28: 0.03171258552 | P28: 0.0398313091 | Q28: 0.03745697328 | R28: 0.05341209517
F29: 21 | G29: 0.0362321145
F30: 22 | G30: 0.03589512224
F31: 23 | G31: 0.03825176763
F32: 24 | G32: 0.03579131143
F33: 25 | G33: 0.03624505444 | H33: 0.03327302049 | I33: 0.04066903618 | J33: 0.03433690899 | K33: 0.04114530975 | L33: 0.03114309955 | M33: 0.03543222809 | N33: 0.04422438666 | O33: 0.03147202351 | P33: 0.03885224307 | Q33: 0.03815895929 | R33: 0.05415418778
F34: 26 | G34: 0.03651593849
F35: 27 | G35: 0.03654692255
F36: 28 | G36: 0.03623839986
F37: 29 | G37: 0.03487114208
F38: 30 | G38: 0.03575996869 | H38: 0.03429559836 | I38: 0.04049520819 | J38: 0.03714890932 | K38: 0.04132798459 | L38: 0.0289268153 | M38: 0.03357657691 | N38: 0.04614048044 | O38: 0.03154065439 | P38: 0.03993789565 | Q38: 0.04048675039 | R38: 0.05147598651

Sheet Corp Data
R3: ©EIOPA, 2026.
F6: Input Data: Corporate Bond Data
F8: EUR Corporate Bonds
F10: Financials CQS 0 | J10: Financials CQS 1 | N10: Financials CQS 2
F12: Maturity Bucket | G12: Duration [Y] | H12: Yield | J12: Maturity Bucket | K12: Duration [Y] | L12: Yield | N12: Maturity Bucket | O12: Duration [Y] | P12: Yield
F13: 1-3Y | G13: =K13 -> 1.922151734 | H13: =85%*L13 -> 0.01940473735 | J13: 1-3Y | K13: 1.922151734 | L13: 0.02282910277 | N13: 1-3Y | O13: 1.79047697 | P13: 0.024570515
F14: 3-5Y | G14: =K14 -> 3.65466491 | H14: =85%*L14 -> 0.0227500176 | J14: 3-5Y | K14: 3.65466491 | L14: 0.02676472658 | N14: 3-5Y | O14: 3.846126528 | P14: 0.02790158523
F15: 5-7Y | G15: 5.697547114 | H15: 0.02368205455 | J15: 5-7Y | K15: 5.697547114 | L15: 0.02786124065 | N15: 5-7Y | O15: 5.317834339 | P15: 0.03271147539
F16: 7-10Y | G16: 7.316688476 | H16: 0.02568787232 | J16: 7-10Y | K16: 7.316688476 | L16: 0.03022102626 | N16: 7-10Y | O16: 7.238098684 | P16: 0.03443177026
F17: 10Y+ | G17: 12.01561289 | H17: 0.0324571016 | J17: 10Y+ | K17: 12.01561289 | L17: 0.03818482541 | N17: 10Y+ | O17: 10.02345183 | P17: 0.04036027422
F19: Financials CQS 3 | J19: Financials CQS 4 | N19: Financials CQS 5
F21: Maturity Bucket | G21: Duration [Y] | H21: Yield | J21: Maturity Bucket | K21: Duration [Y] | L21: Yield | N21: Maturity Bucket | O21: Duration [Y] | P21: Yield
F22: 1-3Y | G22: 1.65316927 | H22: 0.03003152195 | J22: 1-3Y | K22: 2.850026347 | L22: 0.05128437924 | N22: 1-3Y | O22: 2.700973912 | P22: 0.07594213225
F23: 3-5Y | G23: 3.807416161 | H23: 0.03232133767 | J23: 3-5Y | K23: 2.850026347 | L23: 0.05128437924 | N23: 3-5Y | O23: 2.700973912 | P23: 0.07594213225
F24: 5-7Y | G24: 5.248238223 | H24: 0.03525863138 | J24: 5-7Y | K24: 2.850026347 | L24: 0.05128437924 | N24: 5-7Y | O24: 2.700973912 | P24: 0.07594213225
F25: 7-10Y | G25: 7.051505233 | H25: 0.03963055472 | J25: 7-10Y | K25: 2.850026347 | L25: 0.05128437924 | N25: 7-10Y | O25: 2.700973912 | P25: 0.07594213225
F26: 10Y+ | G26: 13.02565813 | H26: 0.04096257605 | J26: 10Y+ | K26: 2.850026347 | L26: 0.05128437924 | N26: 10Y+ | O26: 2.700973912 | P26: 0.07594213225
F29: Non-Financials CQS 0 | J29: Non-Financials CQS 1 | N29: Non-Financials CQS 2
F31: Maturity Bucket | G31: Duration [Y] | H31: Yield | J31: Maturity Bucket | K31: Duration [Y] | L31: Yield | N31: Maturity Bucket | O31: Duration [Y] | P31: Yield
F32: 1-3Y | G32: =K32 -> 1.700581613 | H32: =85%*L32 -> 0.02113031663 | J32: 1-3Y | K32: 1.700581613 | L32: 0.02485919603 | N32: 1-3Y | O32: 1.821093716 | P32: 0.02373268368
F33: 3-5Y | G33: =K33 -> 3.84692696 | H33: =85%*L33 -> 0.02176022291 | J33: 3-5Y | K33: 3.84692696 | L33: 0.02560026225 | N33: 3-5Y | O33: 3.593754673 | P33: 0.02719612863
F34: 5-7Y | G34: 5.629118542 | H34: 0.0243256572 | J34: 5-7Y | K34: 5.629118542 | L34: 0.02861842024 | N34: 5-7Y | O34: 5.5599026 | P34: 0.03121200868
F35: 7-10Y | G35: 7.531081849 | H35: 0.02624345628 | J35: 7-10Y | K35: 7.531081849 | L35: 0.03087465444 | N35: 7-10Y | O35: 7.503192239 | P35: 0.03530318771
F36: 10Y+ | G36: 12.19444395 | H36: 0.02971966777 | J36: 10Y+ | K36: 12.19444395 | L36: 0.03496431502 | N36: 10Y+ | O36: 11.52694798 | P36: 0.03647207329
F38: Non-Financials CQS 3 | J38: Non-Financials CQS 4 | N38: Non-Financials CQS 5
F40: Maturity Bucket | G40: Duration [Y] | H40: Yield | J40: Maturity Bucket | K40: Duration [Y] | L40: Yield | N40: Maturity Bucket | O40: Duration [Y] | P40: Yield
F41: 1-3Y | G41: 1.955758587 | H41: 0.02751968401 | J41: 1-3Y | K41: 2.986228574 | L41: 0.04403809825 | N41: 1-3Y | O41: 2.135648956 | P41: 0.06148741785
F42: 3-5Y | G42: 3.787255726 | H42: 0.03205249855 | J42: 3-5Y | K42: 2.986228574 | L42: 0.04403809825 | N42: 3-5Y | O42: 2.135648956 | P42: 0.06148741785
F43: 5-7Y | G43: 5.139829447 | H43: 0.03401032644 | J43: 5-7Y | K43: 2.986228574 | L43: 0.04403809825 | N43: 5-7Y | O43: 2.135648956 | P43: 0.06148741785
F44: 7-10Y | G44: 7.038818349 | H44: 0.03618536332 | J44: 7-10Y | K44: 2.986228574 | L44: 0.04403809825 | N44: 7-10Y | O44: 2.135648956 | P44: 0.06148741785
F45: 10Y+ | G45: 10.48426982 | H45: 0.04056888742 | J45: 10Y+ | K45: 2.986228574 | L45: 0.04403809825 | N45: 10Y+ | O45: 2.135648956 | P45: 0.06148741785

Sheet RFR
M3: ©EIOPA, 2026.
F6: Input Data: Risk-Free Interest Rates
F8: EIOPA Basic Risk-Free Interest Rates
F10: Maturity [Y] | G10: EUR | H10: USD
F11: 1 | G11: 0.01981534233 | H11: 0.03905602354
F12: 2 | G12: 0.01821687922 | H12: 0.03812093511
F13: 3 | G13: 0.01938535624 | H13: 0.03511533694
F14: 4 | G14: 0.01851301381 | H14: 0.03765864121
F15: 5 | G15: 0.01892195156 | H15: 0.03680386686
F16: 6 | G16: 0.02068612671 | H16: 0.03613454861
F17: 7 | G17: 0.02063078763 | H17: 0.03599781396
F18: 8 | G18: 0.02351730711 | H18: 0.0379320455
F19: 9 | G19: 0.02223538469 | H19: 0.03843147202
F20: 10 | G20: 0.02550812284 | H20: 0.03686331067
F21: 11 | G21: 0.02386920061 | H21: 0.04128680382
F22: 12 | G22: 0.0239771566 | H22: 0.03917074467
F23: 13 | G23: 0.02402050642 | H23: 0.0407173856
F24: 14 | G24: 0.02642974425 | H24: 0.04071054718
F25: 15 | G25: 0.02721710711 | H25: 0.04218658122
F26: 16 | G26: 0.02708172888 | H26: 0.04164059031
F27: 17 | G27: 0.02450464181 | H27: 0.04157215117
F28: 18 | G28: 0.02725262935 | H28: 0.04106681544
F29: 19 | G29: 0.02664459919 | H29: 0.04085363717
F30: 20 | G30: 0.02616838495 | H30: 0.04180395368
F31: 21 | G31: 0.02779007325 | H31: 0.04180920692
F32: 22 | G32: 0.0266866234 | H32: 0.04175863629
F33: 23 | G33: 0.02756839716 | H33: 0.04295324944
F34: 24 | G34: 0.026759068 | H34: 0.03950967224
F35: 25 | G35: 0.02574974089 | H35: 0.04158612907
F36: 26 | G36: 0.02453002858 | H36: 0.04254813405
F37: 27 | G37: 0.02677229761 | H37: 0.04086536739
F38: 28 | G38: 0.02489219756 | H38: 0.04232120111
F39: 29 | G39: 0.025463374 | H39: 0.04198874448
F40: 30 | G40: 0.02631519184 | H40: 0.04044654762

Sheet LTAS
S3: ©EIOPA, 2026.
F6: Input Data: Long-Term Average Spreads
F8: Central Government and Central Bank Bonds
F10: Maturity [Y] | G10: EUR | H10: AT | I10: BE | J10: FI | K10: FR | L10: DE | M10: IE | N10: IT | O10: NL | P10: PT | Q10: ES | R10: US
F11: 1 | G11: 0.0005536073283 | H11: -0.001404278937 | I11: -0.002266223068 | J11: -0.001403324378 | K11: -0.002119799561 | L11: -0.0006349076404 | M11: 0.004222307496 | N11: 0.0008468799817 | O11: -0.0006042748661 | P11: 0.006870149308 | Q11: 0.001845897434 | R11: -0.002084425403
F12: 2 | G12: -0.0007534919339 | H12: -0.001093231213 | I12: -0.0005662934997 | J12: -0.002395033713 | K12: -0.0004222064515 | L12: -0.001282897344 | M12: 0.005325035065 | N12: 0.003347899047 | O12: -0.0009152957526 | P12: 0.009120749542 | Q12: 0.00489221019 | R12: -0.001118375299
F13: 3 | G13: 0.002392097268 | H13: -0.001598647795 | I13: 0.001749696305 | J13: -0.003319869851 | K13: -0.0005202479401 | L13: -0.004010377735 | M13: 0.007771703684 | N13: 0.005660360375 | O13: -0.000141382607 | P13: 0.01063599638 | Q13: 0.002261641041 | R13: -0.002756488485
F14: 4 | G14: 0.001117550917 | H14: 0.0004083014218 | I14: -0.00124556296 | J14: 0.0006957839963 | K14: -0.001878031118 | L14: -0.003496551834 | M14: 0.006070485663 | N14: 0.005991689734 | O14: -0.001315060284 | P14: 0.01289716681 | Q14: 0.006019810512 | R14: -0.001446445126
F15: 5 | G15: 0.0004916912263 | H15: 0.001438355618 | I15: 0.002382892235 | J15: 0.000925060812 | K15: 0.0003037809327 | L15: -0.002397052687 | M15: 0.005985222015 | N15: 0.007577247709 | O15: -0.000408217327 | P15: 0.0136828056 | Q15: 0.005490075558 | R15: -0.0008359442843
F16: 6 | G16: 0.001625728799 | H16: -0.0002935187931 | I16: 0.0003017496154 | J16: -0.002215884266 | K16: -0.001312830298 | L16: -0.001662714658 | M16: 0.005843374372 | N16: 0.01039647364 | O16: -0.001446665463 | P16: 0.01343398953 | Q16: 0.006768814712 | R16: 8.321870166e-05
F17: 7 | G17: 0.004776575697 | H17: -1.246824278e-05 | I17: 0.003061681787 | J17: 0.000173343795 | K17: -0.0009895278631 | L17: -0.002519804529 | M17: 0.005917557801 | N17: 0.008149382223 | O17: -0.002595182445 | P17: 0.0157798942 | Q17: 0.005998373948 | R17: -0.001476576341
F18: 8 | G18: 0.004693511786 | H18: 0.002556499884 | I18: 0.001916205252 | J18: 0.001312453026 | K18: 0.0009640029598 | L18: -0.001722505955 | M18: 0.009634900153 | N18: 0.01033326015 | O18: -0.002235353689 | P18: 0.01515426884 | Q18: 0.008194190711 | R18: -0.001335373801
F19: 9 | G19: 0.003031414234 | H19: 0.001748337836 | I19: 0.0005749071907 | J19: -0.001736933609 | K19: 0.002267590981 | L19: -0.002420130317 | M19: 0.008663638934 | N19: 0.01019715423 | O19: -0.001706933302 | P19: 0.01521696107 | Q19: 0.007627414034 | R19: -0.0009227394697
F20: 10 | G20: 0.002121998211 | H20: -0.0003734304077 | I20: 0.003564163989 | J20: 0.002089200402 | K20: 0.0009683486891 | L20: -0.003076705096 | M20: 0.009774338753 | N20: 0.01004625106 | O20: 0.001480550973 | P20: 0.01282772933 | Q20: 0.006666439328 | R20: -0.002307645728
F21: 11 | G21: 0.002121998211 | H21: -0.0003734304077 | I21: 0.003564163989 | J21: 0.002089200402 | K21: 0.0009683486891 | L21: -0.003076705096 | M21: 0.009774338753 | N21: 0.01004625106 | O21: 0.001480550973 | P21: 0.01282772933 | Q21: 0.006666439328 | R21: -0.002307645728
F22: 12 | G22: 0.002121998211 | H22: -0.0003734304077 | I22: 0.003564163989 | J22: 0.002089200402 | K22: 0.0009683486891 | L22: -0.003076705096 | M22: 0.009774338753 | N22: 0.01004625106 | O22: 0.001480550973 | P22: 0.01282772933 | Q22: 0.006666439328 | R22: -0.002307645728
F23: 13 | G23: 0.002121998211 | H23: -0.0003734304077 | I23: 0.003564163989 | J23: 0.002089200402 | K23: 0.0009683486891 | L23: -0.003076705096 | M23: 0.009774338753 | N23: 0.01004625106 | O23: 0.001480550973 | P23: 0.01282772933 | Q23: 0.006666439328 | R23: -0.002307645728
F24: 14 | G24: 0.002121998211 | H24: -0.0003734304077 | I24: 0.003564163989 | J24: 0.002089200402 | K24: 0.0009683486891 | L24: -0.003076705096 | M24: 0.009774338753 | N24: 0.01004625106 | O24: 0.001480550973 | P24: 0.01282772933 | Q24: 0.006666439328 | R24: -0.002307645728
F25: 15 | G25: 0.002121998211 | H25: -0.0003734304077 | I25: 0.003564163989 | J25: 0.002089200402 | K25: 0.0009683486891 | L25: -0.003076705096 | M25: 0.009774338753 | N25: 0.01004625106 | O25: 0.001480550973 | P25: 0.01282772933 | Q25: 0.006666439328 | R25: -0.002307645728
F26: 16 | G26: 0.002121998211 | H26: -0.0003734304077 | I26: 0.003564163989 | J26: 0.002089200402 | K26: 0.0009683486891 | L26: -0.003076705096 | M26: 0.009774338753 | N26: 0.01004625106 | O26: 0.001480550973 | P26: 0.01282772933 | Q26: 0.006666439328 | R26: -0.002307645728
F27: 17 | G27: 0.002121998211 | H27: -0.0003734304077 | I27: 0.003564163989 | J27: 0.002089200402 | K27: 0.0009683486891 | L27: -0.003076705096 | M27: 0.009774338753 | N27: 0.01004625106 | O27: 0.001480550973 | P27: 0.01282772933 | Q27: 0.006666439328 | R27: -0.002307645728
F28: 18 | G28: 0.002121998211 | H28: -0.0003734304077 | I28: 0.003564163989 | J28: 0.002089200402 | K28: 0.0009683486891 | L28: -0.003076705096 | M28: 0.009774338753 | N28: 0.01004625106 | O28: 0.001480550973 | P28: 0.01282772933 | Q28: 0.006666439328 | R28: -0.002307645728
F29: 19 | G29: 0.002121998211 | H29: -0.0003734304077 | I29: 0.003564163989 | J29: 0.002089200402 | K29: 0.0009683486891 | L29: -0.003076705096 | M29: 0.009774338753 | N29: 0.01004625106 | O29: 0.001480550973 | P29: 0.01282772933 | Q29: 0.006666439328 | R29: -0.002307645728
F30: 20 | G30: 0.002121998211 | H30: -0.0003734304077 | I30: 0.003564163989 | J30: 0.002089200402 | K30: 0.0009683486891 | L30: -0.003076705096 | M30: 0.009774338753 | N30: 0.01004625106 | O30: 0.001480550973 | P30: 0.01282772933 | Q30: 0.006666439328 | R30: -0.002307645728
F31: 21 | G31: 0.002121998211 | H31: -0.0003734304077 | I31: 0.003564163989 | J31: 0.002089200402 | K31: 0.0009683486891 | L31: -0.003076705096 | M31: 0.009774338753 | N31: 0.01004625106 | O31: 0.001480550973 | P31: 0.01282772933 | Q31: 0.006666439328 | R31: -0.002307645728
F32: 22 | G32: 0.002121998211 | H32: -0.0003734304077 | I32: 0.003564163989 | J32: 0.002089200402 | K32: 0.0009683486891 | L32: -0.003076705096 | M32: 0.009774338753 | N32: 0.01004625106 | O32: 0.001480550973 | P32: 0.01282772933 | Q32: 0.006666439328 | R32: -0.002307645728
F33: 23 | G33: 0.002121998211 | H33: -0.0003734304077 | I33: 0.003564163989 | J33: 0.002089200402 | K33: 0.0009683486891 | L33: -0.003076705096 | M33: 0.009774338753 | N33: 0.01004625106 | O33: 0.001480550973 | P33: 0.01282772933 | Q33: 0.006666439328 | R33: -0.002307645728
F34: 24 | G34: 0.002121998211 | H34: -0.0003734304077 | I34: 0.003564163989 | J34: 0.002089200402 | K34: 0.0009683486891 | L34: -0.003076705096 | M34: 0.009774338753 | N34: 0.01004625106 | O34: 0.001480550973 | P34: 0.01282772933 | Q34: 0.006666439328 | R34: -0.002307645728
F35: 25 | G35: 0.002121998211 | H35: -0.0003734304077 | I35: 0.003564163989 | J35: 0.002089200402 | K35: 0.0009683486891 | L35: -0.003076705096 | M35: 0.009774338753 | N35: 0.01004625106 | O35: 0.001480550973 | P35: 0.01282772933 | Q35: 0.006666439328 | R35: -0.002307645728
F36: 26 | G36: 0.002121998211 | H36: -0.0003734304077 | I36: 0.003564163989 | J36: 0.002089200402 | K36: 0.0009683486891 | L36: -0.003076705096 | M36: 0.009774338753 | N36: 0.01004625106 | O36: 0.001480550973 | P36: 0.01282772933 | Q36: 0.006666439328 | R36: -0.002307645728
F37: 27 | G37: 0.002121998211 | H37: -0.0003734304077 | I37: 0.003564163989 | J37: 0.002089200402 | K37: 0.0009683486891 | L37: -0.003076705096 | M37: 0.009774338753 | N37: 0.01004625106 | O37: 0.001480550973 | P37: 0.01282772933 | Q37: 0.006666439328 | R37: -0.002307645728
F38: 28 | G38: 0.002121998211 | H38: -0.0003734304077 | I38: 0.003564163989 | J38: 0.002089200402 | K38: 0.0009683486891 | L38: -0.003076705096 | M38: 0.009774338753 | N38: 0.01004625106 | O38: 0.001480550973 | P38: 0.01282772933 | Q38: 0.006666439328 | R38: -0.002307645728
F39: 29 | G39: 0.002121998211 | H39: -0.0003734304077 | I39: 0.003564163989 | J39: 0.002089200402 | K39: 0.0009683486891 | L39: -0.003076705096 | M39: 0.009774338753 | N39: 0.01004625106 | O39: 0.001480550973 | P39: 0.01282772933 | Q39: 0.006666439328 | R39: -0.002307645728
F40: 30 | G40: 0.002121998211 | H40: -0.0003734304077 | I40: 0.003564163989 | J40: 0.002089200402 | K40: 0.0009683486891 | L40: -0.003076705096 | M40: 0.009774338753 | N40: 0.01004625106 | O40: 0.001480550973 | P40: 0.01282772933 | Q40: 0.006666439328 | R40: -0.002307645728
F43: Assets other than Central Government and Central Bank Bonds
F45: EUR Financials
F47: Maturity [Y] | G47: CQS 0 | H47: CQS 1 | I47: CQS 2 | J47: CQS 3 | K47: CQS 4 | L47: CQS 5 | M47: CQS 6
F48: 1 | G48: 0.001383248933 | H48: 0.005238749567 | I48: 0.01182705162 | J48: 0.03029434814 | K48: 0.06051590753 | L48: 0.1377327897 | M48: 0.1381029729
F49: 2 | G49: 0.0008224542891 | H49: 0.006031803403 | I49: 0.009958601505 | J49: 0.03136671286 | K49: 0.06292612797 | L49: 0.1382630007 | M49: 0.1396513002
F50: 3 | G50: 0.001667639376 | H50: 0.007056884666 | I50: 0.01187364711 | J50: 0.02777286011 | K50: 0.06265027455 | L50: 0.13913226 | M50: 0.1398140634
F51: 4 | G51: 0.003541232862 | H51: 0.007342335325 | I51: 0.01389564326 | J51: 0.03062089834 | K51: 0.06142765588 | L51: 0.1377585767 | M51: 0.1363729114
F52: 5 | G52: 0.003039494294 | H52: 0.008442307806 | I52: 0.01563236909 | J52: 0.02955323276 | K52: 0.05973681515 | L52: 0.139097877 | M52: 0.1370839658
F53: 6 | G53: 0.002126387856 | H53: 0.008536468562 | I53: 0.01486722621 | J53: 0.03332041525 | K53: 0.0615249204 | L53: 0.1385143981 | M53: 0.1357823971
F54: 7 | G54: 0.005100265968 | H54: 0.007296208401 | I54: 0.01671953147 | J54: 0.0302411136 | K54: 0.06118626319 | L54: 0.1377495576 | M54: 0.139386079
F55: 8 | G55: 0.005438028592 | H55: 0.01076800826 | I55: 0.01439426905 | J55: 0.03207336981 | K55: 0.06287097191 | L55: 0.138330016 | M55: 0.1363297919
F56: 9 | G56: 0.002242878539 | H56: 0.007295846096 | I56: 0.01411449155 | J56: 0.03286930033 | K56: 0.06182954549 | L56: 0.138922049 | M56: 0.1359443977
F57: 10 | G57: 0.00430942596 | H57: 0.00798874764 | I57: 0.01585162721 | J57: 0.03264567083 | K57: 0.06017981291 | L57: 0.136994783 | M57: 0.1372142627
F58: 11 | G58: 0.00430942596 | H58: 0.00798874764 | I58: 0.01585162721 | J58: 0.03264567083 | K58: 0.06017981291 | L58: 0.136994783 | M58: 0.1372142627
F59: 12 | G59: 0.00430942596 | H59: 0.00798874764 | I59: 0.01585162721 | J59: 0.03264567083 | K59: 0.06017981291 | L59: 0.136994783 | M59: 0.1372142627
F60: 13 | G60: 0.00430942596 | H60: 0.00798874764 | I60: 0.01585162721 | J60: 0.03264567083 | K60: 0.06017981291 | L60: 0.136994783 | M60: 0.1372142627
F61: 14 | G61: 0.00430942596 | H61: 0.00798874764 | I61: 0.01585162721 | J61: 0.03264567083 | K61: 0.06017981291 | L61: 0.136994783 | M61: 0.1372142627
F62: 15 | G62: 0.00430942596 | H62: 0.00798874764 | I62: 0.01585162721 | J62: 0.03264567083 | K62: 0.06017981291 | L62: 0.136994783 | M62: 0.1372142627
F63: 16 | G63: 0.00430942596 | H63: 0.00798874764 | I63: 0.01585162721 | J63: 0.03264567083 | K63: 0.06017981291 | L63: 0.136994783 | M63: 0.1372142627
F64: 17 | G64: 0.00430942596 | H64: 0.00798874764 | I64: 0.01585162721 | J64: 0.03264567083 | K64: 0.06017981291 | L64: 0.136994783 | M64: 0.1372142627
F65: 18 | G65: 0.00430942596 | H65: 0.00798874764 | I65: 0.01585162721 | J65: 0.03264567083 | K65: 0.06017981291 | L65: 0.136994783 | M65: 0.1372142627
F66: 19 | G66: 0.00430942596 | H66: 0.00798874764 | I66: 0.01585162721 | J66: 0.03264567083 | K66: 0.06017981291 | L66: 0.136994783 | M66: 0.1372142627
F67: 20 | G67: 0.00430942596 | H67: 0.00798874764 | I67: 0.01585162721 | J67: 0.03264567083 | K67: 0.06017981291 | L67: 0.136994783 | M67: 0.1372142627
F68: 21 | G68: 0.00430942596 | H68: 0.00798874764 | I68: 0.01585162721 | J68: 0.03264567083 | K68: 0.06017981291 | L68: 0.136994783 | M68: 0.1372142627
F69: 22 | G69: 0.00430942596 | H69: 0.00798874764 | I69: 0.01585162721 | J69: 0.03264567083 | K69: 0.06017981291 | L69: 0.136994783 | M69: 0.1372142627
F70: 23 | G70: 0.00430942596 | H70: 0.00798874764 | I70: 0.01585162721 | J70: 0.03264567083 | K70: 0.06017981291 | L70: 0.136994783 | M70: 0.1372142627
F71: 24 | G71: 0.00430942596 | H71: 0.00798874764 | I71: 0.01585162721 | J71: 0.03264567083 | K71: 0.06017981291 | L71: 0.136994783 | M71: 0.1372142627
F72: 25 | G72: 0.00430942596 | H72: 0.00798874764 | I72: 0.01585162721 | J72: 0.03264567083 | K72: 0.06017981291 | L72: 0.136994783 | M72: 0.1372142627
F73: 26 | G73: 0.00430942596 | H73: 0.00798874764 | I73: 0.01585162721 | J73: 0.03264567083 | K73: 0.06017981291 | L73: 0.136994783 | M73: 0.1372142627
F74: 27 | G74: 0.00430942596 | H74: 0.00798874764 | I74: 0.01585162721 | J74: 0.03264567083 | K74: 0.06017981291 | L74: 0.136994783 | M74: 0.1372142627
F75: 28 | G75: 0.00430942596 | H75: 0.00798874764 | I75: 0.01585162721 | J75: 0.03264567083 | K75: 0.06017981291 | L75: 0.136994783 | M75: 0.1372142627
F76: 29 | G76: 0.00430942596 | H76: 0.00798874764 | I76: 0.01585162721 | J76: 0.03264567083 | K76: 0.06017981291 | L76: 0.136994783 | M76: 0.1372142627
F77: 30 | G77: 0.00430942596 | H77: 0.00798874764 | I77: 0.01585162721 | J77: 0.03264567083 | K77: 0.06017981291 | L77: 0.136994783 | M77: 0.1372142627
F79: EUR Non-Financials
F81: Maturity [Y] | G81: CQS 0 | H81: CQS 1 | I81: CQS 2 | J81: CQS 3 | K81: CQS 4 | L81: CQS 5 | M81: CQS 6
F82: 1 | G82: -0.0007198767305 | H82: 0.001861708372 | I82: 0.006644558837 | J82: 0.009558500317 | K82: 0.04239052315 | L82: 0.06787315575 | M82: 0.071517609
F83: 2 | G83: 0.001900523541 | H83: 0.002386503481 | I83: 0.006080394008 | J83: 0.01273238458 | K83: 0.04275541043 | L83: 0.07100171753 | M83: 0.06997405066
F84: 3 | G84: -0.0007783459042 | H84: 0.00516871189 | I84: 0.006712844601 | J84: 0.01450181525 | K84: 0.04113679028 | L84: 0.06993652901 | M84: 0.06935168837
F85: 4 | G85: -0.0009499362595 | H85: 0.006031590999 | I85: 0.006457794834 | J85: 0.0140020118 | K85: 0.04352841638 | L85: 0.06893425254 | M85: 0.06689134916
F86: 5 | G86: 0.002065943205 | H86: 0.004703404912 | I86: 0.00954581486 | J86: 0.013772365 | K86: 0.04110569232 | L86: 0.06745531338 | M86: 0.06681074338
F87: 6 | G87: 0.001467334962 | H87: 0.006205129425 | I87: 0.007625237921 | J87: 0.01474497815 | K87: 0.04013299788 | L87: 0.06573298313 | M87: 0.06664834592
F88: 7 | G88: 0.0003286212247 | H88: 0.004752837939 | I88: 0.007473140561 | J88: 0.01608773966 | K88: 0.04115956018 | L88: 0.06857271169 | M88: 0.06765226987
F89: 8 | G89: 0.0005815403305 | H89: 0.006684758231 | I89: 0.0115148746 | J89: 0.01630379122 | K89: 0.0408102939 | L89: 0.06918635375 | M89: 0.06737195731
F90: 9 | G90: 0.001314001871 | H90: 0.007957937459 | I90: 0.01079801552 | J90: 0.01745190198 | K90: 0.04207832523 | L90: 0.06820404266 | M90: 0.06672801622
F91: 10 | G91: 0.001259258821 | H91: 0.007265747812 | I91: 0.01225979188 | J91: 0.01865062828 | K91: 0.04126852361 | L91: 0.06583712891 | M91: 0.06727222742
F92: 11 | G92: 0.001259258821 | H92: 0.007265747812 | I92: 0.01225979188 | J92: 0.01865062828 | K92: 0.04126852361 | L92: 0.06583712891 | M92: 0.06727222742
F93: 12 | G93: 0.001259258821 | H93: 0.007265747812 | I93: 0.01225979188 | J93: 0.01865062828 | K93: 0.04126852361 | L93: 0.06583712891 | M93: 0.06727222742
F94: 13 | G94: 0.001259258821 | H94: 0.007265747812 | I94: 0.01225979188 | J94: 0.01865062828 | K94: 0.04126852361 | L94: 0.06583712891 | M94: 0.06727222742
F95: 14 | G95: 0.001259258821 | H95: 0.007265747812 | I95: 0.01225979188 | J95: 0.01865062828 | K95: 0.04126852361 | L95: 0.06583712891 | M95: 0.06727222742
F96: 15 | G96: 0.001259258821 | H96: 0.007265747812 | I96: 0.01225979188 | J96: 0.01865062828 | K96: 0.04126852361 | L96: 0.06583712891 | M96: 0.06727222742
F97: 16 | G97: 0.001259258821 | H97: 0.007265747812 | I97: 0.01225979188 | J97: 0.01865062828 | K97: 0.04126852361 | L97: 0.06583712891 | M97: 0.06727222742
F98: 17 | G98: 0.001259258821 | H98: 0.007265747812 | I98: 0.01225979188 | J98: 0.01865062828 | K98: 0.04126852361 | L98: 0.06583712891 | M98: 0.06727222742
F99: 18 | G99: 0.001259258821 | H99: 0.007265747812 | I99: 0.01225979188 | J99: 0.01865062828 | K99: 0.04126852361 | L99: 0.06583712891 | M99: 0.06727222742
F100: 19 | G100: 0.001259258821 | H100: 0.007265747812 | I100: 0.01225979188 | J100: 0.01865062828 | K100: 0.04126852361 | L100: 0.06583712891 | M100: 0.06727222742
F101: 20 | G101: 0.001259258821 | H101: 0.007265747812 | I101: 0.01225979188 | J101: 0.01865062828 | K101: 0.04126852361 | L101: 0.06583712891 | M101: 0.06727222742
F102: 21 | G102: 0.001259258821 | H102: 0.007265747812 | I102: 0.01225979188 | J102: 0.01865062828 | K102: 0.04126852361 | L102: 0.06583712891 | M102: 0.06727222742
F103: 22 | G103: 0.001259258821 | H103: 0.007265747812 | I103: 0.01225979188 | J103: 0.01865062828 | K103: 0.04126852361 | L103: 0.06583712891 | M103: 0.06727222742
F104: 23 | G104: 0.001259258821 | H104: 0.007265747812 | I104: 0.01225979188 | J104: 0.01865062828 | K104: 0.04126852361 | L104: 0.06583712891 | M104: 0.06727222742
F105: 24 | G105: 0.001259258821 | H105: 0.007265747812 | I105: 0.01225979188 | J105: 0.01865062828 | K105: 0.04126852361 | L105: 0.06583712891 | M105: 0.06727222742
F106: 25 | G106: 0.001259258821 | H106: 0.007265747812 | I106: 0.01225979188 | J106: 0.01865062828 | K106: 0.04126852361 | L106: 0.06583712891 | M106: 0.06727222742
F107: 26 | G107: 0.001259258821 | H107: 0.007265747812 | I107: 0.01225979188 | J107: 0.01865062828 | K107: 0.04126852361 | L107: 0.06583712891 | M107: 0.06727222742
F108: 27 | G108: 0.001259258821 | H108: 0.007265747812 | I108: 0.01225979188 | J108: 0.01865062828 | K108: 0.04126852361 | L108: 0.06583712891 | M108: 0.06727222742
F109: 28 | G109: 0.001259258821 | H109: 0.007265747812 | I109: 0.01225979188 | J109: 0.01865062828 | K109: 0.04126852361 | L109: 0.06583712891 | M109: 0.06727222742
F110: 29 | G110: 0.001259258821 | H110: 0.007265747812 | I110: 0.01225979188 | J110: 0.01865062828 | K110: 0.04126852361 | L110: 0.06583712891 | M110: 0.06727222742
F111: 30 | G111: 0.001259258821 | H111: 0.007265747812 | I111: 0.01225979188 | J111: 0.01865062828 | K111: 0.04126852361 | L111: 0.06583712891 | M111: 0.06727222742

Sheet Reference Portfolio Weights
M3: ©EIOPA, 2026.
F6: Input Data: Reference Portfolio Weights
F8: Currency Weights
F10: Currency | G10: Central Gov | H10: Other Assets
F11: EUR | G11: 0.244 | H11: 0.383
F13: National Weights
F15: Country | G15: Central Gov | H15: Other Assets
F16: IT | G16: 0.418 | H16: 0.271

Sheet Government Bond Ref. Portfolios
M3: ©EIOPA, 2026.
F6: Input Data: Government Bond Reference Portfolios
F8: Currency RCS EUR - Ref. Port. Central Government and Central Bank Bonds
F10: Issuer | G10: Composition | H10: Duration [Y] | I10: Yield Cash Flow | J10: RFR Cash Flow | K10: RC Yield Cash Flow
F11: AT | G11: 0.03 | H11: 9 | I11: 0.039957819 | J11: 0.03759438236 | K11: 0.03935232748
F12: BE | G12: 0.09 | H12: 9 | I12: 0.119873457 | J12: 0.1127831471 | K12: 0.1180569824
F13: BG | I13: 0 | J13: 0 | K13: 0
F14: HR | I14: 0 | J14: 0 | K14: 0
F15: CY | I15: 0 | J15: 0 | K15: 0
F16: CZ | I16: 0 | J16: 0 | K16: 0
F17: DK | I17: 0 | J17: 0 | K17: 0
F18: EE | I18: 0 | J18: 0 | K18: 0
F19: FI | G19: 0.01 | H19: 9 | I19: 0.013319273 | J19: 0.01253146079 | K19: 0.01311744249
F20: FR | G20: 0.34 | H20: 9 | I20: 0.452855282 | J20: 0.4260696667 | K20: 0.4459930447
F21: DE | G21: 0.15 | H21: 9 | I21: 0.199789095 | J21: 0.1879719118 | K21: 0.1967616374
F22: GR | I22: 0 | J22: 0 | K22: 0
F23: HU | I23: 0 | J23: 0 | K23: 0
F24: IS | I24: 0 | J24: 0 | K24: 0
F25: IE | G25: 0.01 | H25: 9 | I25: 0.013319273 | J25: 0.01253146079 | K25: 0.01311744249
F26: IT | G26: 0.22 | H26: 9 | I26: 0.293024006 | J26: 0.2756921373 | K26: 0.2885837348
F27: LV | I27: 0 | J27: 0 | K27: 0
F28: LI | I28: 0 | J28: 0 | K28: 0
F29: LT | I29: 0 | J29: 0 | K29: 0
F30: LU | G30: 0.01 | H30: 9 | I30: 0.013319273 | J30: 0.01253146079 | K30: 0.01311744249
F31: MT | I31: 0 | J31: 0 | K31: 0
F32: NL | G32: 0.02 | H32: 9 | I32: 0.026638546 | J32: 0.02506292157 | K32: 0.02623488499
F33: NO | I33: 0 | J33: 0 | K33: 0
F34: PL | I34: 0 | J34: 0 | K34: 0
F35: PT | G35: 0.01 | H35: 9 | I35: 0.013319273 | J35: 0.01253146079 | K35: 0.01311744249
F36: RO | I36: 0 | J36: 0 | K36: 0
F37: SK | G37: 0.01 | H37: 9 | I37: 0.013319273 | J37: 0.01253146079 | K37: 0.01311744249
F38: SI | I38: 0 | J38: 0 | K38: 0
F39: ES | G39: 0.1 | H39: 9 | I39: 0.13319273 | J39: 0.1253146079 | K39: 0.1311744249
F40: SE | I40: 0 | J40: 0 | K40: 0
F41: CH | I41: 0 | J41: 0 | K41: 0
F42: UK | I42: 0 | J42: 0 | K42: 0
F43: AU | I43: 0 | J43: 0 | K43: 0
F44: CA | I44: 0 | J44: 0 | K44: 0
F45: CN | I45: 0 | J45: 0 | K45: 0
F46: HK | I46: 0 | J46: 0 | K46: 0
F47: JP | I47: 0 | J47: 0 | K47: 0
F48: US | I48: 0 | J48: 0 | K48: 0
F50: Country RCS IT - Ref. Port. Central Government and Central Bank Bonds
F52: Issuer | G52: Composition | H52: Duration [Y] | I52: Yield Cash Flow | J52: RFR Cash Flow | K52: RC Yield Cash Flow
F53: AT | G53: 0.01 | H53: 7.9 | I53: 0.01257057628 | J53: 0.01214049793 | K53: 0.01252753749
F54: BE | G54: 0.03 | H54: 12.2 | I54: 0.04581898897 | J54: 0.04131062735 | K54: 0.04497047868
F55: BG | I55: 0 | J55: 0 | K55: 0
F56: HR | I56: 0 | J56: 0 | K56: 0
F57: CY | I57: 0 | J57: 0 | K57: 0
F58: CZ | I58: 0 | J58: 0 | K58: 0
F59: DK | I59: 0 | J59: 0 | K59: 0
F60: EE | I60: 0 | J60: 0 | K60: 0
F61: FI | G61: 0.01 | H61: 6.3 | I61: 0.01188477574 | J61: 0.01160896591 | K61: 0.01188477574
F62: FR | G62: 0.08 | H62: 8.7 | I62: 0.1063885888 | J62: 0.09937892944 | K62: 0.1060105117
F63: DE | G63: 0.04 | H63: 5.7 | I63: 0.04576932549 | J63: 0.0456875358 | K63: 0.04576932549
F64: GR | I64: 0 | J64: 0 | K64: 0
F65: HU | I65: 0 | J65: 0 | K65: 0
F66: IS | I66: 0 | J66: 0 | K66: 0
F67: IE | G67: 0.01 | H67: 9.8 | I67: 0.01344779685 | J67: 0.01281765581 | K67: 0.01325589604
F68: IT | G68: 0.69 | H68: 6.8 | I68: 0.8645712426 | J68: 0.8121219293 | K68: 0.8488364547
F69: LV | I69: 0 | J69: 0 | K69: 0
F70: LI | I70: 0 | J70: 0 | K70: 0
F71: LT | I71: 0 | J71: 0 | K71: 0
F72: LU | I72: 0 | J72: 0 | K72: 0
F73: MT | I73: 0 | J73: 0 | K73: 0
F74: NL | G74: 0.01 | H74: 5.9 | I74: 0.01161372705 | J74: 0.01148375787 | K74: 0.01161372705
F75: NO | I75: 0 | J75: 0 | K75: 0
F76: PL | I76: 0 | J76: 0 | K76: 0
F77: PT | G77: 0.01 | H77: 9.7 | I77: 0.01363200464 | J77: 0.01278123956 | K77: 0.01337159473
F78: RO | I78: 0 | J78: 0 | K78: 0
F79: SK | I79: 0 | J79: 0 | K79: 0
F80: SI | I80: 0 | J80: 0 | K80: 0
F81: ES | G81: 0.09 | H81: 10.5 | I81: 0.129115429 | J81: 0.1177849465 | K81: 0.1257648218
F82: SE | I82: 0 | J82: 0 | K82: 0
F83: CH | I83: 0 | J83: 0 | K83: 0
F84: UK | I84: 0 | J84: 0 | K84: 0
F85: AU | I85: 0 | J85: 0 | K85: 0
F86: CA | I86: 0 | J86: 0 | K86: 0
F87: CN | I87: 0 | J87: 0 | K87: 0
F88: HK | I88: 0 | J88: 0 | K88: 0
F89: JP | I89: 0 | J89: 0 | K89: 0
F90: US | G90: 0.02 | H90: 5.2 | I90: 0.02455424069 | J90: 0.02409827918 | K90: 0.02455424069

Sheet Corporate Bond Ref. Portfolio
M3: ©EIOPA, 2026.
F6: Input Data: Corporate Bond Reference Portfolios
F8: Currency RCS EUR - Ref. Port. of Assets other than Central Government and Central Banks Bonds
F10: Issuer | G10: Composition | H10: Duration [Y] | I10: Yield Cash Flow | J10: RFR Cash Flow | K10: RC Yield Cash Flow
F11: Financials CQS 0 | G11: 0.14 | H11: 7.2 | I11: 0.1715509423 | J11: 0.1666276309 | K11: 0.1691426065
F12: Financials CQS 1 | G12: 0.12 | H12: 5.5 | I12: 0.1422852941 | J12: 0.1363309278 | K12: 0.1392978139
F13: Financials CQS 2 | G13: 0.29 | H13: 4.9 | I13: 0.3424925113 | J13: 0.3242967021 | K13: 0.3332957862
F14: Financials CQS 3 | G14: 0.13 | H14: 4.1 | I14: 0.1506613239 | J14: 0.1423979514 | K14: 0.1464855855
F15: Financials CQS 4 | G15: 0.01 | H15: 3.1 | I15: 0.01161206389 | J15: 0.01068717663 | K15: 0.01114312078
F16: Financials CQS 5 | I16: 0 | J16: 0 | K16: 0
F17: Financials CQS 6 | I17: 0 | J17: 0 | K17: 0
F18: Non-Financials CQS 0 | G18: 0.04 | H18: 9 | I18: 0.05150176968 | J18: 0.05012584315 | K18: 0.05107421759
F19: Non-Financials CQS 1 | G19: 0.04 | H19: 7.5 | I19: 0.05061602684 | J19: 0.04801144594 | K19: 0.04957748923
F20: Non-Financials CQS 2 | G20: 0.09 | H20: 5.5 | I20: 0.1062806904 | J20: 0.1022481958 | K20: 0.1047852487
F21: Non-Financials CQS 3 | G21: 0.13 | H21: 4.7 | I21: 0.1509614552 | J21: 0.1446116202 | K21: 0.1485347509
F22: Non-Financials CQS 4 | G22: 0.01 | H22: 3.6 | I22: 0.01159465193 | J22: 0.01081758478 | K22: 0.0113279776
F23: Non-Financials CQS 5 | I23: 0 | J23: 0 | K23: 0
F24: Non-Financials CQS 6 | I24: 0 | J24: 0 | K24: 0
F26: Country RCS IT - Ref. Port. of Assets other than Central Government and Central Banks Bonds
F28: Issuer | G28: Composition | H28: Duration [Y] | I28: Yield Cash Flow | J28: RFR Cash Flow | K28: RC Yield Cash Flow
F29: Financials CQS 0 | G29: 0.03 | H29: 7.2 | I29: 0.0367609162 | J29: 0.0357059209 | K29: 0.03624484425
F30: Financials CQS 1 | G30: 0.05 | H30: 4 | I30: 0.05616646771 | J30: 0.05463065107 | K30: 0.0554018597
F31: Financials CQS 2 | G31: 0.26 | H31: 4.6 | I31: 0.3031263513 | J31: 0.2884698994 | K31: 0.2957270717
F32: Financials CQS 3 | G32: 0.26 | H32: 4 | I32: 0.3000548259 | J32: 0.2840793856 | K32: 0.291985169
F33: Financials CQS 4 | G33: 0.04 | H33: 2.8 | I33: 0.04578127164 | J33: 0.04244950878 | K33: 0.04409516268
F34: Financials CQS 5 | I34: 0 | J34: 0 | K34: 0
F35: Financials CQS 6 | I35: 0 | J35: 0 | K35: 0
F36: Non-Financials CQS 0 | G36: 0.03 | H36: 7.6 | I36: 0.03704867869 | J36: 0.03611080112 | K36: 0.03662921939
F37: Non-Financials CQS 1 | G37: 0.02 | H37: 7 | I37: 0.02565919971 | J37: 0.02367161852 | K37: 0.02474160655
F38: Non-Financials CQS 2 | G38: 0.09 | H38: 5.9 | I38: 0.1090505312 | J38: 0.1033538208 | K38: 0.1062141036
F39: Non-Financials CQS 3 | G39: 0.18 | H39: 5 | I39: 0.2139475883 | J39: 0.2018222521 | K39: 0.2078141809
F40: Non-Financials CQS 4 | G40: 0.03 | H40: 4.5 | I40: 0.03711272665 | J40: 0.03319878335 | K40: 0.03511335666
F41: Non-Financials CQS 5 | G41: 0.01 | H41: 2.6 | I41: 0.01175502594 | J41: 0.01056376093 | K41: 0.01114979097
F42: Non-Financials CQS 6 | I42: 0 | J42: 0 | K42: 0

Sheet S&RC Gov Currency
X3: ©EIOPA, 2026.
F6: Currency RCS: Government Bonds
F8: Model Bond Calculations | U8: RFR TD
F10: Issuer | H10: AT | I10: BE | J10: FI | K10: FR | L10: DE | M10: IE | N10: IT | O10: LU | P10: NL | Q10: PT | R10: SK | S10: ES | W10: i ∊ HCO: use EA as value for i where applicable
F11: Issuer currency | H11: EUR | I11: EUR | J11: EUR | K11: EUR | L11: EUR | M11: EUR | N11: EUR | O11: EUR | P11: EUR | Q11: EUR | R11: EUR | S11: EUR
F12: Relative market value | H12: =_xlfn.XLOOKUP(H$10, T.RefPortCurrencyGov[Issuer], T.RefPortCurrencyGov[Composition]) -> 0.03 | I12: =_xlfn.XLOOKUP(I$10, T.RefPortCurrencyGov[Issuer], T.RefPortCurrencyGov[Composition]) -> 0.09 | J12: =_xlfn.XLOOKUP(J$10, T.RefPortCurrencyGov[Issuer], T.RefPortCurrencyGov[Composition]) -> 0.01 | K12: =_xlfn.XLOOKUP(K$10, T.RefPortCurrencyGov[Issuer], T.RefPortCurrencyGov[Composition]) -> 0.34 | L12: =_xlfn.XLOOKUP(L$10, T.RefPortCurrencyGov[Issuer], T.RefPortCurrencyGov[Composition]) -> 0.15 | M12: =_xlfn.XLOOKUP(M$10, T.RefPortCurrencyGov[Issuer], T.RefPortCurrencyGov[Composition]) -> 0.01 | N12: =_xlfn.XLOOKUP(N$10, T.RefPortCurrencyGov[Issuer], T.RefPortCurrencyGov[Composition]) -> 0.22 | O12: =_xlfn.XLOOKUP(O$10, T.RefPortCurrencyGov[Issuer], T.RefPortCurrencyGov[Composition]) -> 0.01 | P12: =_xlfn.XLOOKUP(P$10, T.RefPortCurrencyGov[Issuer], T.RefPortCurrencyGov[Composition]) -> 0.02 | Q12: =_xlfn.XLOOKUP(Q$10, T.RefPortCurrencyGov[Issuer], T.RefPortCurrencyGov[Composition]) -> 0.01 | R12: =_xlfn.XLOOKUP(R$10, T.RefPortCurrencyGov[Issuer], T.RefPortCurrencyGov[Composition]) -> 0.01 | S12: =_xlfn.XLOOKUP(S$10, T.RefPortCurrencyGov[Issuer], T.RefPortCurrencyGov[Composition]) -> 0.1
F13: Duration [Y] | H13: =_xlfn.XLOOKUP(H$10, T.RefPortCurrencyGov[Issuer], T.RefPortCurrencyGov[Duration '[Y']]) -> 9 | I13: =_xlfn.XLOOKUP(I$10, T.RefPortCurrencyGov[Issuer], T.RefPortCurrencyGov[Duration '[Y']]) -> 9 | J13: =_xlfn.XLOOKUP(J$10, T.RefPortCurrencyGov[Issuer], T.RefPortCurrencyGov[Duration '[Y']]) -> 9 | K13: =_xlfn.XLOOKUP(K$10, T.RefPortCurrencyGov[Issuer], T.RefPortCurrencyGov[Duration '[Y']]) -> 9 | L13: =_xlfn.XLOOKUP(L$10, T.RefPortCurrencyGov[Issuer], T.RefPortCurrencyGov[Duration '[Y']]) -> 9 | M13: =_xlfn.XLOOKUP(M$10, T.RefPortCurrencyGov[Issuer], T.RefPortCurrencyGov[Duration '[Y']]) -> 9 | N13: =_xlfn.XLOOKUP(N$10, T.RefPortCurrencyGov[Issuer], T.RefPortCurrencyGov[Duration '[Y']]) -> 9 | O13: =_xlfn.XLOOKUP(O$10, T.RefPortCurrencyGov[Issuer], T.RefPortCurrencyGov[Duration '[Y']]) -> 9 | P13: =_xlfn.XLOOKUP(P$10, T.RefPortCurrencyGov[Issuer], T.RefPortCurrencyGov[Duration '[Y']]) -> 9 | Q13: =_xlfn.XLOOKUP(Q$10, T.RefPortCurrencyGov[Issuer], T.RefPortCurrencyGov[Duration '[Y']]) -> 9 | R13: =_xlfn.XLOOKUP(R$10, T.RefPortCurrencyGov[Issuer], T.RefPortCurrencyGov[Duration '[Y']]) -> 9 | S13: =_xlfn.XLOOKUP(S$10, T.RefPortCurrencyGov[Issuer], T.RefPortCurrencyGov[Duration '[Y']]) -> 9 | W13: i ∊ HCO: use uniform duration dEUR,gov,EA
F14: Integer D less than or equal to the duration [Y] | H14: =INT(H$13) -> 9 | I14: =INT(I$13) -> 9 | J14: 9 | K14: 9 | L14: 9 | M14: 9 | N14: 9 | O14: 9 | P14: 9 | Q14: 9 | R14: 9 | S14: 9
F15: Integer D+1 [Y] | H15: =H14+1 -> 10 | I15: =I14+1 -> 10 | J15: 10 | K15: 10 | L15: 10 | M15: 10 | N15: 10 | O15: 10 | P15: 10 | Q15: 10 | R15: 10 | S15: 10
F17: Linear interpolation of market yields before risk correction
F18: Market yield before risk correction corresponding to D | H18: =_xlfn.XLOOKUP(H$14,T.GovRates[Maturity '[Y']], T.GovRates[ECB Curve]) -> 0.03226349183 | I18: =_xlfn.XLOOKUP(I$14,T.GovRates[Maturity '[Y']], T.GovRates[ECB Curve]) -> 0.03226349183 | J18: =_xlfn.XLOOKUP(J$14,T.GovRates[Maturity '[Y']], T.GovRates[ECB Curve]) -> 0.03226349183 | K18: =_xlfn.XLOOKUP(K$14,T.GovRates[Maturity '[Y']], T.GovRates[ECB Curve]) -> 0.03226349183 | L18: =_xlfn.XLOOKUP(L$14,T.GovRates[Maturity '[Y']], T.GovRates[ECB Curve]) -> 0.03226349183 | M18: =_xlfn.XLOOKUP(M$14,T.GovRates[Maturity '[Y']], T.GovRates[ECB Curve]) -> 0.03226349183 | N18: =_xlfn.XLOOKUP(N$14,T.GovRates[Maturity '[Y']], T.GovRates[ECB Curve]) -> 0.03226349183 | O18: =_xlfn.XLOOKUP(O$14,T.GovRates[Maturity '[Y']], T.GovRates[ECB Curve]) -> 0.03226349183 | P18: =_xlfn.XLOOKUP(P$14,T.GovRates[Maturity '[Y']], T.GovRates[ECB Curve]) -> 0.03226349183 | Q18: =_xlfn.XLOOKUP(Q$14,T.GovRates[Maturity '[Y']], T.GovRates[ECB Curve]) -> 0.03226349183 | R18: =_xlfn.XLOOKUP(R$14,T.GovRates[Maturity '[Y']], T.GovRates[ECB Curve]) -> 0.03226349183 | S18: =_xlfn.XLOOKUP(S$14,T.GovRates[Maturity '[Y']], T.GovRates[ECB Curve]) -> 0.03226349183
F19: Market yield before risk correction corresponding to D+1 | H19: =_xlfn.XLOOKUP(H$15,T.GovRates[Maturity '[Y']], T.GovRates[ECB Curve]) -> 0.03198058877 | I19: =_xlfn.XLOOKUP(I$15,T.GovRates[Maturity '[Y']], T.GovRates[ECB Curve]) -> 0.03198058877 | J19: =_xlfn.XLOOKUP(J$15,T.GovRates[Maturity '[Y']], T.GovRates[ECB Curve]) -> 0.03198058877 | K19: =_xlfn.XLOOKUP(K$15,T.GovRates[Maturity '[Y']], T.GovRates[ECB Curve]) -> 0.03198058877 | L19: =_xlfn.XLOOKUP(L$15,T.GovRates[Maturity '[Y']], T.GovRates[ECB Curve]) -> 0.03198058877 | M19: =_xlfn.XLOOKUP(M$15,T.GovRates[Maturity '[Y']], T.GovRates[ECB Curve]) -> 0.03198058877 | N19: =_xlfn.XLOOKUP(N$15,T.GovRates[Maturity '[Y']], T.GovRates[ECB Curve]) -> 0.03198058877 | O19: =_xlfn.XLOOKUP(O$15,T.GovRates[Maturity '[Y']], T.GovRates[ECB Curve]) -> 0.03198058877 | P19: =_xlfn.XLOOKUP(P$15,T.GovRates[Maturity '[Y']], T.GovRates[ECB Curve]) -> 0.03198058877 | Q19: =_xlfn.XLOOKUP(Q$15,T.GovRates[Maturity '[Y']], T.GovRates[ECB Curve]) -> 0.03198058877 | R19: =_xlfn.XLOOKUP(R$15,T.GovRates[Maturity '[Y']], T.GovRates[ECB Curve]) -> 0.03198058877 | S19: =_xlfn.XLOOKUP(S$15,T.GovRates[Maturity '[Y']], T.GovRates[ECB Curve]) -> 0.03198058877
F20: Linear Interpolation of market yield before risk correction | H20: =H18+(H19-H18)/(H15-H14)*(H$13-H14) -> 0.03226349183 | I20: 0.03226349183 | J20: 0.03226349183 | K20: 0.03226349183 | L20: 0.03226349183 | M20: 0.03226349183 | N20: 0.03226349183 | O20: 0.03226349183 | P20: 0.03226349183 | Q20: 0.03226349183 | R20: 0.03226349183 | S20: 0.03226349183
F22: Linear interpolation of risk-free rates
F23: Basic risk-free rate corresponding to D | H23: =_xlfn.XLOOKUP(H$14, T.RFR[Maturity '[Y']], T.RFR[EUR]) -> 0.02223538469 | I23: =_xlfn.XLOOKUP(I$14, T.RFR[Maturity '[Y']], T.RFR[EUR]) -> 0.02223538469 | J23: =_xlfn.XLOOKUP(J$14, T.RFR[Maturity '[Y']], T.RFR[EUR]) -> 0.02223538469 | K23: =_xlfn.XLOOKUP(K$14, T.RFR[Maturity '[Y']], T.RFR[EUR]) -> 0.02223538469 | L23: =_xlfn.XLOOKUP(L$14, T.RFR[Maturity '[Y']], T.RFR[EUR]) -> 0.02223538469 | M23: =_xlfn.XLOOKUP(M$14, T.RFR[Maturity '[Y']], T.RFR[EUR]) -> 0.02223538469 | N23: =_xlfn.XLOOKUP(N$14, T.RFR[Maturity '[Y']], T.RFR[EUR]) -> 0.02223538469 | O23: =_xlfn.XLOOKUP(O$14, T.RFR[Maturity '[Y']], T.RFR[EUR]) -> 0.02223538469 | P23: =_xlfn.XLOOKUP(P$14, T.RFR[Maturity '[Y']], T.RFR[EUR]) -> 0.02223538469 | Q23: =_xlfn.XLOOKUP(Q$14, T.RFR[Maturity '[Y']], T.RFR[EUR]) -> 0.02223538469 | R23: =_xlfn.XLOOKUP(R$14, T.RFR[Maturity '[Y']], T.RFR[EUR]) -> 0.02223538469 | S23: =_xlfn.XLOOKUP(S$14, T.RFR[Maturity '[Y']], T.RFR[EUR]) -> 0.02223538469
F24: Basic risk-free rate corresponding to D+1 | H24: =_xlfn.XLOOKUP(H$15, T.RFR[Maturity '[Y']], T.RFR[EUR]) -> 0.02550812284 | I24: =_xlfn.XLOOKUP(I$15, T.RFR[Maturity '[Y']], T.RFR[EUR]) -> 0.02550812284 | J24: =_xlfn.XLOOKUP(J$15, T.RFR[Maturity '[Y']], T.RFR[EUR]) -> 0.02550812284 | K24: =_xlfn.XLOOKUP(K$15, T.RFR[Maturity '[Y']], T.RFR[EUR]) -> 0.02550812284 | L24: =_xlfn.XLOOKUP(L$15, T.RFR[Maturity '[Y']], T.RFR[EUR]) -> 0.02550812284 | M24: =_xlfn.XLOOKUP(M$15, T.RFR[Maturity '[Y']], T.RFR[EUR]) -> 0.02550812284 | N24: =_xlfn.XLOOKUP(N$15, T.RFR[Maturity '[Y']], T.RFR[EUR]) -> 0.02550812284 | O24: =_xlfn.XLOOKUP(O$15, T.RFR[Maturity '[Y']], T.RFR[EUR]) -> 0.02550812284 | P24: =_xlfn.XLOOKUP(P$15, T.RFR[Maturity '[Y']], T.RFR[EUR]) -> 0.02550812284 | Q24: =_xlfn.XLOOKUP(Q$15, T.RFR[Maturity '[Y']], T.RFR[EUR]) -> 0.02550812284 | R24: =_xlfn.XLOOKUP(R$15, T.RFR[Maturity '[Y']], T.RFR[EUR]) -> 0.02550812284 | S24: =_xlfn.XLOOKUP(S$15, T.RFR[Maturity '[Y']], T.RFR[EUR]) -> 0.02550812284
F25: Linear interpolation of basic risk-free rate | H25: =H23+(H24-H23)/(H15-H14) * (H$13-H14) -> 0.02223538469 | I25: =I23+(I24-I23)/(I15-I14) * (I$13-I14) -> 0.02223538469 | J25: 0.02223538469 | K25: 0.02223538469 | L25: 0.02223538469 | M25: 0.02223538469 | N25: 0.02223538469 | O25: 0.02223538469 | P25: 0.02223538469 | Q25: 0.02223538469 | R25: 0.02223538469 | S25: 0.02223538469
F27: Linear interpolation of long-term average spreads
F28: Long-term average spread corresponding to D | H28: =_xlfn.XLOOKUP(H$14, T.LTASGov[Maturity '[Y']], T.LTASGov[EUR]) -> 0.003031414234 | I28: =_xlfn.XLOOKUP(I$14, T.LTASGov[Maturity '[Y']], T.LTASGov[EUR]) -> 0.003031414234 | J28: =_xlfn.XLOOKUP(J$14, T.LTASGov[Maturity '[Y']], T.LTASGov[EUR]) -> 0.003031414234 | K28: =_xlfn.XLOOKUP(K$14, T.LTASGov[Maturity '[Y']], T.LTASGov[EUR]) -> 0.003031414234 | L28: =_xlfn.XLOOKUP(L$14, T.LTASGov[Maturity '[Y']], T.LTASGov[EUR]) -> 0.003031414234 | M28: =_xlfn.XLOOKUP(M$14, T.LTASGov[Maturity '[Y']], T.LTASGov[EUR]) -> 0.003031414234 | N28: =_xlfn.XLOOKUP(N$14, T.LTASGov[Maturity '[Y']], T.LTASGov[EUR]) -> 0.003031414234 | O28: =_xlfn.XLOOKUP(O$14, T.LTASGov[Maturity '[Y']], T.LTASGov[EUR]) -> 0.003031414234 | P28: =_xlfn.XLOOKUP(P$14, T.LTASGov[Maturity '[Y']], T.LTASGov[EUR]) -> 0.003031414234 | Q28: =_xlfn.XLOOKUP(Q$14, T.LTASGov[Maturity '[Y']], T.LTASGov[EUR]) -> 0.003031414234 | R28: =_xlfn.XLOOKUP(R$14, T.LTASGov[Maturity '[Y']], T.LTASGov[EUR]) -> 0.003031414234 | S28: =_xlfn.XLOOKUP(S$14, T.LTASGov[Maturity '[Y']], T.LTASGov[EUR]) -> 0.003031414234
F29: Long-term average spread corresponding to D+1 | H29: =_xlfn.XLOOKUP(H$15, T.LTASGov[Maturity '[Y']], T.LTASGov[EUR]) -> 0.002121998211 | I29: =_xlfn.XLOOKUP(I$15, T.LTASGov[Maturity '[Y']], T.LTASGov[EUR]) -> 0.002121998211 | J29: =_xlfn.XLOOKUP(J$15, T.LTASGov[Maturity '[Y']], T.LTASGov[EUR]) -> 0.002121998211 | K29: =_xlfn.XLOOKUP(K$15, T.LTASGov[Maturity '[Y']], T.LTASGov[EUR]) -> 0.002121998211 | L29: =_xlfn.XLOOKUP(L$15, T.LTASGov[Maturity '[Y']], T.LTASGov[EUR]) -> 0.002121998211 | M29: =_xlfn.XLOOKUP(M$15, T.LTASGov[Maturity '[Y']], T.LTASGov[EUR]) -> 0.002121998211 | N29: =_xlfn.XLOOKUP(N$15, T.LTASGov[Maturity '[Y']], T.LTASGov[EUR]) -> 0.002121998211 | O29: =_xlfn.XLOOKUP(O$15, T.LTASGov[Maturity '[Y']], T.LTASGov[EUR]) -> 0.002121998211 | P29: =_xlfn.XLOOKUP(P$15, T.LTASGov[Maturity '[Y']], T.LTASGov[EUR]) -> 0.002121998211 | Q29: =_xlfn.XLOOKUP(Q$15, T.LTASGov[Maturity '[Y']], T.LTASGov[EUR]) -> 0.002121998211 | R29: =_xlfn.XLOOKUP(R$15, T.LTASGov[Maturity '[Y']], T.LTASGov[EUR]) -> 0.002121998211 | S29: =_xlfn.XLOOKUP(S$15, T.LTASGov[Maturity '[Y']], T.LTASGov[EUR]) -> 0.002121998211
F30: Linear interpolation of LTAS | H30: =H28+(H29-H28)/(H15-H14)*(H13-H14) -> 0.003031414234 | I30: =I28+(I29-I28)/(I15-I14)*(I13-I14) -> 0.003031414234 | J30: 0.003031414234 | K30: 0.003031414234 | L30: 0.003031414234 | M30: 0.003031414234 | N30: 0.003031414234 | O30: 0.003031414234 | P30: 0.003031414234 | Q30: 0.003031414234 | R30: 0.003031414234 | S30: 0.003031414234
F32: Risk-corrected market yields
F33: Spread | H33: =H20-H25 -> 0.01002810713 | I33: =I20-I25 -> 0.01002810713 | J33: 0.01002810713 | K33: 0.01002810713 | L33: 0.01002810713 | M33: 0.01002810713 | N33: 0.01002810713 | O33: 0.01002810713 | P33: 0.01002810713 | Q33: 0.01002810713 | R33: 0.01002810713 | S33: 0.01002810713
F34: Risk correction | H34: =_xlfn.LET(_xlpm.SPLUS, MAX(H33, 0), _xlpm.LTASPLUS, MAX(H30, 0), _xlpm.RC, 30% * MIN(_xlpm.SPLUS, _xlpm.LTASPLUS) + 20% * MAX(0, MIN(_xlpm.SPLUS - _xlpm.LTASPLUS, _xlpm.LTASPLUS)) + 15% * MAX(0, _xlpm.SPLUS - 2 * _xlpm.LTASPLUS), MIN(_xlpm.RC, 65% * _xlpm.LTASPLUS)) -> 0.001970419252 | I34: =_xlfn.LET(_xlpm.SPLUS, MAX(I33, 0), _xlpm.LTASPLUS, MAX(I30, 0), _xlpm.RC, 30% * MIN(_xlpm.SPLUS, _xlpm.LTASPLUS) + 20% * MAX(0, MIN(_xlpm.SPLUS - _xlpm.LTASPLUS, _xlpm.LTASPLUS)) + 15% * MAX(0, _xlpm.SPLUS - 2 * _xlpm.LTASPLUS), MIN(_xlpm.RC, 65% * _xlpm.LTASPLUS)) -> 0.001970419252 | J34: 0.001970419252 | K34: 0.001970419252 | L34: 0.001970419252 | M34: 0.001970419252 | N34: 0.001970419252 | O34: 0.001970419252 | P34: 0.001970419252 | Q34: 0.001970419252 | R34: 0.001970419252 | S34: 0.001970419252
F35: Risk-corrected market yield | H35: =H20-H34 -> 0.03029307257 | I35: =I20-I34 -> 0.03029307257 | J35: 0.03029307257 | K35: 0.03029307257 | L35: 0.03029307257 | M35: 0.03029307257 | N35: 0.03029307257 | O35: 0.03029307257 | P35: 0.03029307257 | Q35: 0.03029307257 | R35: 0.03029307257 | S35: 0.03029307257
F37: Model bond market values
F38: Market value market yield model bond | H38: =_xlfn.LET(_xlpm.CF, _xlfn.XLOOKUP(H$10, T.RefPortCurrencyGov[Issuer], T.RefPortCurrencyGov[Yield Cash Flow]), _xlpm.IR, H20, _xlpm.DUR, H13, _xlpm.CF * (1 + _xlpm.IR)^(-_xlpm.DUR)) -> 0.03002525223 | I38: =_xlfn.LET(_xlpm.CF, _xlfn.XLOOKUP(I$10, T.RefPortCurrencyGov[Issuer], T.RefPortCurrencyGov[Yield Cash Flow]), _xlpm.IR, I20, _xlpm.DUR, I13, _xlpm.CF * (1 + _xlpm.IR)^(-_xlpm.DUR)) -> 0.09007575669 | J38: =_xlfn.LET(_xlpm.CF, _xlfn.XLOOKUP(J$10, T.RefPortCurrencyGov[Issuer], T.RefPortCurrencyGov[Yield Cash Flow]), _xlpm.IR, J20, _xlpm.DUR, J13, _xlpm.CF * (1 + _xlpm.IR)^(-_xlpm.DUR)) -> 0.01000841741 | K38: =_xlfn.LET(_xlpm.CF, _xlfn.XLOOKUP(K$10, T.RefPortCurrencyGov[Issuer], T.RefPortCurrencyGov[Yield Cash Flow]), _xlpm.IR, K20, _xlpm.DUR, K13, _xlpm.CF * (1 + _xlpm.IR)^(-_xlpm.DUR)) -> 0.3402861919 | L38: =_xlfn.LET(_xlpm.CF, _xlfn.XLOOKUP(L$10, T.RefPortCurrencyGov[Issuer], T.RefPortCurrencyGov[Yield Cash Flow]), _xlpm.IR, L20, _xlpm.DUR, L13, _xlpm.CF * (1 + _xlpm.IR)^(-_xlpm.DUR)) -> 0.1501262611 | M38: =_xlfn.LET(_xlpm.CF, _xlfn.XLOOKUP(M$10, T.RefPortCurrencyGov[Issuer], T.RefPortCurrencyGov[Yield Cash Flow]), _xlpm.IR, M20, _xlpm.DUR, M13, _xlpm.CF * (1 + _xlpm.IR)^(-_xlpm.DUR)) -> 0.01000841741 | N38: =_xlfn.LET(_xlpm.CF, _xlfn.XLOOKUP(N$10, T.RefPortCurrencyGov[Issuer], T.RefPortCurrencyGov[Yield Cash Flow]), _xlpm.IR, N20, _xlpm.DUR, N13, _xlpm.CF * (1 + _xlpm.IR)^(-_xlpm.DUR)) -> 0.220185183 | O38: =_xlfn.LET(_xlpm.CF, _xlfn.XLOOKUP(O$10, T.RefPortCurrencyGov[Issuer], T.RefPortCurrencyGov[Yield Cash Flow]), _xlpm.IR, O20, _xlpm.DUR, O13, _xlpm.CF * (1 + _xlpm.IR)^(-_xlpm.DUR)) -> 0.01000841741 | P38: =_xlfn.LET(_xlpm.CF, _xlfn.XLOOKUP(P$10, T.RefPortCurrencyGov[Issuer], T.RefPortCurrencyGov[Yield Cash Flow]), _xlpm.IR, P20, _xlpm.DUR, P13, _xlpm.CF * (1 + _xlpm.IR)^(-_xlpm.DUR)) -> 0.02001683482 | Q38: =_xlfn.LET(_xlpm.CF, _xlfn.XLOOKUP(Q$10, T.RefPortCurrencyGov[Issuer], T.RefPortCurrencyGov[Yield Cash Flow]), _xlpm.IR, Q20, _xlpm.DUR, Q13, _xlpm.CF * (1 + _xlpm.IR)^(-_xlpm.DUR)) -> 0.01000841741 | R38: =_xlfn.LET(_xlpm.CF, _xlfn.XLOOKUP(R$10, T.RefPortCurrencyGov[Issuer], T.RefPortCurrencyGov[Yield Cash Flow]), _xlpm.IR, R20, _xlpm.DUR, R13, _xlpm.CF * (1 + _xlpm.IR)^(-_xlpm.DUR)) -> 0.01000841741 | S38: =_xlfn.LET(_xlpm.CF, _xlfn.XLOOKUP(S$10, T.RefPortCurrencyGov[Issuer], T.RefPortCurrencyGov[Yield Cash Flow]), _xlpm.IR, S20, _xlpm.DUR, S13, _xlpm.CF * (1 + _xlpm.IR)^(-_xlpm.DUR)) -> 0.1000841741
F39: Market value risk-free yield model bond | H39: =_xlfn.LET(_xlpm.CF, _xlfn.XLOOKUP(H$10, T.RefPortCurrencyGov[Issuer], T.RefPortCurrencyGov[RFR Cash Flow]), _xlpm.IR, H25, _xlpm.DUR, H13, _xlpm.CF * (1 + _xlpm.IR)^(-_xlpm.DUR)) -> 0.03084357884 | I39: =_xlfn.LET(_xlpm.CF, _xlfn.XLOOKUP(I$10, T.RefPortCurrencyGov[Issuer], T.RefPortCurrencyGov[RFR Cash Flow]), _xlpm.IR, I25, _xlpm.DUR, I13, _xlpm.CF * (1 + _xlpm.IR)^(-_xlpm.DUR)) -> 0.09253073651 | J39: =_xlfn.LET(_xlpm.CF, _xlfn.XLOOKUP(J$10, T.RefPortCurrencyGov[Issuer], T.RefPortCurrencyGov[RFR Cash Flow]), _xlpm.IR, J25, _xlpm.DUR, J13, _xlpm.CF * (1 + _xlpm.IR)^(-_xlpm.DUR)) -> 0.01028119295 | K39: =_xlfn.LET(_xlpm.CF, _xlfn.XLOOKUP(K$10, T.RefPortCurrencyGov[Issuer], T.RefPortCurrencyGov[RFR Cash Flow]), _xlpm.IR, K25, _xlpm.DUR, K13, _xlpm.CF * (1 + _xlpm.IR)^(-_xlpm.DUR)) -> 0.3495605601 | L39: =_xlfn.LET(_xlpm.CF, _xlfn.XLOOKUP(L$10, T.RefPortCurrencyGov[Issuer], T.RefPortCurrencyGov[RFR Cash Flow]), _xlpm.IR, L25, _xlpm.DUR, L13, _xlpm.CF * (1 + _xlpm.IR)^(-_xlpm.DUR)) -> 0.1542178942 | M39: =_xlfn.LET(_xlpm.CF, _xlfn.XLOOKUP(M$10, T.RefPortCurrencyGov[Issuer], T.RefPortCurrencyGov[RFR Cash Flow]), _xlpm.IR, M25, _xlpm.DUR, M13, _xlpm.CF * (1 + _xlpm.IR)^(-_xlpm.DUR)) -> 0.01028119295 | N39: =_xlfn.LET(_xlpm.CF, _xlfn.XLOOKUP(N$10, T.RefPortCurrencyGov[Issuer], T.RefPortCurrencyGov[RFR Cash Flow]), _xlpm.IR, N25, _xlpm.DUR, N13, _xlpm.CF * (1 + _xlpm.IR)^(-_xlpm.DUR)) -> 0.2261862448 | O39: =_xlfn.LET(_xlpm.CF, _xlfn.XLOOKUP(O$10, T.RefPortCurrencyGov[Issuer], T.RefPortCurrencyGov[RFR Cash Flow]), _xlpm.IR, O25, _xlpm.DUR, O13, _xlpm.CF * (1 + _xlpm.IR)^(-_xlpm.DUR)) -> 0.01028119295 | P39: =_xlfn.LET(_xlpm.CF, _xlfn.XLOOKUP(P$10, T.RefPortCurrencyGov[Issuer], T.RefPortCurrencyGov[RFR Cash Flow]), _xlpm.IR, P25, _xlpm.DUR, P13, _xlpm.CF * (1 + _xlpm.IR)^(-_xlpm.DUR)) -> 0.02056238589 | Q39: =_xlfn.LET(_xlpm.CF, _xlfn.XLOOKUP(Q$10, T.RefPortCurrencyGov[Issuer], T.RefPortCurrencyGov[RFR Cash Flow]), _xlpm.IR, Q25, _xlpm.DUR, Q13, _xlpm.CF * (1 + _xlpm.IR)^(-_xlpm.DUR)) -> 0.01028119295 | R39: =_xlfn.LET(_xlpm.CF, _xlfn.XLOOKUP(R$10, T.RefPortCurrencyGov[Issuer], T.RefPortCurrencyGov[RFR Cash Flow]), _xlpm.IR, R25, _xlpm.DUR, R13, _xlpm.CF * (1 + _xlpm.IR)^(-_xlpm.DUR)) -> 0.01028119295 | S39: =_xlfn.LET(_xlpm.CF, _xlfn.XLOOKUP(S$10, T.RefPortCurrencyGov[Issuer], T.RefPortCurrencyGov[RFR Cash Flow]), _xlpm.IR, S25, _xlpm.DUR, S13, _xlpm.CF * (1 + _xlpm.IR)^(-_xlpm.DUR)) -> 0.1028119295
F40: Market value risk-corrected yield model bond | H40: =_xlfn.LET(_xlpm.CF, _xlfn.XLOOKUP(H$10, T.RefPortCurrencyGov[Issuer], T.RefPortCurrencyGov[RC Yield Cash Flow]), _xlpm.IR, H35, _xlpm.DUR, H13, _xlpm.CF * (1 + _xlpm.IR)^(-_xlpm.DUR)) -> 0.0300831567 | I40: =_xlfn.LET(_xlpm.CF, _xlfn.XLOOKUP(I$10, T.RefPortCurrencyGov[Issuer], T.RefPortCurrencyGov[RC Yield Cash Flow]), _xlpm.IR, I35, _xlpm.DUR, I13, _xlpm.CF * (1 + _xlpm.IR)^(-_xlpm.DUR)) -> 0.09024947009 | J40: =_xlfn.LET(_xlpm.CF, _xlfn.XLOOKUP(J$10, T.RefPortCurrencyGov[Issuer], T.RefPortCurrencyGov[RC Yield Cash Flow]), _xlpm.IR, J35, _xlpm.DUR, J13, _xlpm.CF * (1 + _xlpm.IR)^(-_xlpm.DUR)) -> 0.0100277189 | K40: =_xlfn.LET(_xlpm.CF, _xlfn.XLOOKUP(K$10, T.RefPortCurrencyGov[Issuer], T.RefPortCurrencyGov[RC Yield Cash Flow]), _xlpm.IR, K35, _xlpm.DUR, K13, _xlpm.CF * (1 + _xlpm.IR)^(-_xlpm.DUR)) -> 0.3409424426 | L40: =_xlfn.LET(_xlpm.CF, _xlfn.XLOOKUP(L$10, T.RefPortCurrencyGov[Issuer], T.RefPortCurrencyGov[RC Yield Cash Flow]), _xlpm.IR, L35, _xlpm.DUR, L13, _xlpm.CF * (1 + _xlpm.IR)^(-_xlpm.DUR)) -> 0.1504157835 | M40: =_xlfn.LET(_xlpm.CF, _xlfn.XLOOKUP(M$10, T.RefPortCurrencyGov[Issuer], T.RefPortCurrencyGov[RC Yield Cash Flow]), _xlpm.IR, M35, _xlpm.DUR, M13, _xlpm.CF * (1 + _xlpm.IR)^(-_xlpm.DUR)) -> 0.0100277189 | N40: =_xlfn.LET(_xlpm.CF, _xlfn.XLOOKUP(N$10, T.RefPortCurrencyGov[Issuer], T.RefPortCurrencyGov[RC Yield Cash Flow]), _xlpm.IR, N35, _xlpm.DUR, N13, _xlpm.CF * (1 + _xlpm.IR)^(-_xlpm.DUR)) -> 0.2206098158 | O40: =_xlfn.LET(_xlpm.CF, _xlfn.XLOOKUP(O$10, T.RefPortCurrencyGov[Issuer], T.RefPortCurrencyGov[RC Yield Cash Flow]), _xlpm.IR, O35, _xlpm.DUR, O13, _xlpm.CF * (1 + _xlpm.IR)^(-_xlpm.DUR)) -> 0.0100277189 | P40: =_xlfn.LET(_xlpm.CF, _xlfn.XLOOKUP(P$10, T.RefPortCurrencyGov[Issuer], T.RefPortCurrencyGov[RC Yield Cash Flow]), _xlpm.IR, P35, _xlpm.DUR, P13, _xlpm.CF * (1 + _xlpm.IR)^(-_xlpm.DUR)) -> 0.0200554378 | Q40: =_xlfn.LET(_xlpm.CF, _xlfn.XLOOKUP(Q$10, T.RefPortCurrencyGov[Issuer], T.RefPortCurrencyGov[RC Yield Cash Flow]), _xlpm.IR, Q35, _xlpm.DUR, Q13, _xlpm.CF * (1 + _xlpm.IR)^(-_xlpm.DUR)) -> 0.0100277189 | R40: =_xlfn.LET(_xlpm.CF, _xlfn.XLOOKUP(R$10, T.RefPortCurrencyGov[Issuer], T.RefPortCurrencyGov[RC Yield Cash Flow]), _xlpm.IR, R35, _xlpm.DUR, R13, _xlpm.CF * (1 + _xlpm.IR)^(-_xlpm.DUR)) -> 0.0100277189 | S40: =_xlfn.LET(_xlpm.CF, _xlfn.XLOOKUP(S$10, T.RefPortCurrencyGov[Issuer], T.RefPortCurrencyGov[RC Yield Cash Flow]), _xlpm.IR, S35, _xlpm.DUR, S13, _xlpm.CF * (1 + _xlpm.IR)^(-_xlpm.DUR)) -> 0.100277189
F42: Portfolio Calculation
F44: Internal rate of return (IRR) calculation | H44: =H10 -> AT | I44: =I10 -> BE | J44: FI | K44: FR | L44: DE | M44: IE | N44: IT | O44: LU | P44: NL | Q44: PT | R44: SK | S44: ES | U44: Sum | V44: Obj. Func. | W44: IRR
F45: IRR discounted market yield model bond | H45: =_xlfn.LET(_xlpm.CF, _xlfn.XLOOKUP(H$10, T.RefPortCurrencyGov[Issuer], T.RefPortCurrencyGov[Yield Cash Flow]), _xlpm.IER, $W$45, _xlpm.DUR, H13, _xlpm.CF * (1 + _xlpm.IER)^(-_xlpm.DUR)) -> 0.03002525223 | I45: =_xlfn.LET(_xlpm.CF, _xlfn.XLOOKUP(I$10, T.RefPortCurrencyGov[Issuer], T.RefPortCurrencyGov[Yield Cash Flow]), _xlpm.IER, $W$45, _xlpm.DUR, I13, _xlpm.CF * (1 + _xlpm.IER)^(-_xlpm.DUR)) -> 0.09007575669 | J45: =_xlfn.LET(_xlpm.CF, _xlfn.XLOOKUP(J$10, T.RefPortCurrencyGov[Issuer], T.RefPortCurrencyGov[Yield Cash Flow]), _xlpm.IER, $W$45, _xlpm.DUR, J13, _xlpm.CF * (1 + _xlpm.IER)^(-_xlpm.DUR)) -> 0.01000841741 | K45: =_xlfn.LET(_xlpm.CF, _xlfn.XLOOKUP(K$10, T.RefPortCurrencyGov[Issuer], T.RefPortCurrencyGov[Yield Cash Flow]), _xlpm.IER, $W$45, _xlpm.DUR, K13, _xlpm.CF * (1 + _xlpm.IER)^(-_xlpm.DUR)) -> 0.3402861919 | L45: =_xlfn.LET(_xlpm.CF, _xlfn.XLOOKUP(L$10, T.RefPortCurrencyGov[Issuer], T.RefPortCurrencyGov[Yield Cash Flow]), _xlpm.IER, $W$45, _xlpm.DUR, L13, _xlpm.CF * (1 + _xlpm.IER)^(-_xlpm.DUR)) -> 0.1501262611 | M45: =_xlfn.LET(_xlpm.CF, _xlfn.XLOOKUP(M$10, T.RefPortCurrencyGov[Issuer], T.RefPortCurrencyGov[Yield Cash Flow]), _xlpm.IER, $W$45, _xlpm.DUR, M13, _xlpm.CF * (1 + _xlpm.IER)^(-_xlpm.DUR)) -> 0.01000841741 | N45: =_xlfn.LET(_xlpm.CF, _xlfn.XLOOKUP(N$10, T.RefPortCurrencyGov[Issuer], T.RefPortCurrencyGov[Yield Cash Flow]), _xlpm.IER, $W$45, _xlpm.DUR, N13, _xlpm.CF * (1 + _xlpm.IER)^(-_xlpm.DUR)) -> 0.220185183 | O45: =_xlfn.LET(_xlpm.CF, _xlfn.XLOOKUP(O$10, T.RefPortCurrencyGov[Issuer], T.RefPortCurrencyGov[Yield Cash Flow]), _xlpm.IER, $W$45, _xlpm.DUR, O13, _xlpm.CF * (1 + _xlpm.IER)^(-_xlpm.DUR)) -> 0.01000841741 | P45: =_xlfn.LET(_xlpm.CF, _xlfn.XLOOKUP(P$10, T.RefPortCurrencyGov[Issuer], T.RefPortCurrencyGov[Yield Cash Flow]), _xlpm.IER, $W$45, _xlpm.DUR, P13, _xlpm.CF * (1 + _xlpm.IER)^(-_xlpm.DUR)) -> 0.02001683482 | Q45: =_xlfn.LET(_xlpm.CF, _xlfn.XLOOKUP(Q$10, T.RefPortCurrencyGov[Issuer], T.RefPortCurrencyGov[Yield Cash Flow]), _xlpm.IER, $W$45, _xlpm.DUR, Q13, _xlpm.CF * (1 + _xlpm.IER)^(-_xlpm.DUR)) -> 0.01000841741 | R45: =_xlfn.LET(_xlpm.CF, _xlfn.XLOOKUP(R$10, T.RefPortCurrencyGov[Issuer], T.RefPortCurrencyGov[Yield Cash Flow]), _xlpm.IER, $W$45, _xlpm.DUR, R13, _xlpm.CF * (1 + _xlpm.IER)^(-_xlpm.DUR)) -> 0.01000841741 | S45: =_xlfn.LET(_xlpm.CF, _xlfn.XLOOKUP(S$10, T.RefPortCurrencyGov[Issuer], T.RefPortCurrencyGov[Yield Cash Flow]), _xlpm.IER, $W$45, _xlpm.DUR, S13, _xlpm.CF * (1 + _xlpm.IER)^(-_xlpm.DUR)) -> 0.1000841741 | U45: =SUM(H45:S45) -> 1.000841741 | V45: =(SUM(H38:S38)-U45)^2 -> 0 | W45: 0.03226349183
F46: IRR discounted risk-free yield model bond | H46: =_xlfn.LET(_xlpm.CF, _xlfn.XLOOKUP(H$10, T.RefPortCurrencyGov[Issuer], T.RefPortCurrencyGov[RFR Cash Flow]), _xlpm.IER, $W$46, _xlpm.DUR, H13, _xlpm.CF * (1 + _xlpm.IER)^(-_xlpm.DUR)) -> 0.03084357884 | I46: =_xlfn.LET(_xlpm.CF, _xlfn.XLOOKUP(I$10, T.RefPortCurrencyGov[Issuer], T.RefPortCurrencyGov[RFR Cash Flow]), _xlpm.IER, $W$46, _xlpm.DUR, I13, _xlpm.CF * (1 + _xlpm.IER)^(-_xlpm.DUR)) -> 0.09253073651 | J46: =_xlfn.LET(_xlpm.CF, _xlfn.XLOOKUP(J$10, T.RefPortCurrencyGov[Issuer], T.RefPortCurrencyGov[RFR Cash Flow]), _xlpm.IER, $W$46, _xlpm.DUR, J13, _xlpm.CF * (1 + _xlpm.IER)^(-_xlpm.DUR)) -> 0.01028119295 | K46: =_xlfn.LET(_xlpm.CF, _xlfn.XLOOKUP(K$10, T.RefPortCurrencyGov[Issuer], T.RefPortCurrencyGov[RFR Cash Flow]), _xlpm.IER, $W$46, _xlpm.DUR, K13, _xlpm.CF * (1 + _xlpm.IER)^(-_xlpm.DUR)) -> 0.3495605601 | L46: =_xlfn.LET(_xlpm.CF, _xlfn.XLOOKUP(L$10, T.RefPortCurrencyGov[Issuer], T.RefPortCurrencyGov[RFR Cash Flow]), _xlpm.IER, $W$46, _xlpm.DUR, L13, _xlpm.CF * (1 + _xlpm.IER)^(-_xlpm.DUR)) -> 0.1542178942 | M46: =_xlfn.LET(_xlpm.CF, _xlfn.XLOOKUP(M$10, T.RefPortCurrencyGov[Issuer], T.RefPortCurrencyGov[RFR Cash Flow]), _xlpm.IER, $W$46, _xlpm.DUR, M13, _xlpm.CF * (1 + _xlpm.IER)^(-_xlpm.DUR)) -> 0.01028119295 | N46: =_xlfn.LET(_xlpm.CF, _xlfn.XLOOKUP(N$10, T.RefPortCurrencyGov[Issuer], T.RefPortCurrencyGov[RFR Cash Flow]), _xlpm.IER, $W$46, _xlpm.DUR, N13, _xlpm.CF * (1 + _xlpm.IER)^(-_xlpm.DUR)) -> 0.2261862448 | O46: =_xlfn.LET(_xlpm.CF, _xlfn.XLOOKUP(O$10, T.RefPortCurrencyGov[Issuer], T.RefPortCurrencyGov[RFR Cash Flow]), _xlpm.IER, $W$46, _xlpm.DUR, O13, _xlpm.CF * (1 + _xlpm.IER)^(-_xlpm.DUR)) -> 0.01028119295 | P46: =_xlfn.LET(_xlpm.CF, _xlfn.XLOOKUP(P$10, T.RefPortCurrencyGov[Issuer], T.RefPortCurrencyGov[RFR Cash Flow]), _xlpm.IER, $W$46, _xlpm.DUR, P13, _xlpm.CF * (1 + _xlpm.IER)^(-_xlpm.DUR)) -> 0.02056238589 | Q46: =_xlfn.LET(_xlpm.CF, _xlfn.XLOOKUP(Q$10, T.RefPortCurrencyGov[Issuer], T.RefPortCurrencyGov[RFR Cash Flow]), _xlpm.IER, $W$46, _xlpm.DUR, Q13, _xlpm.CF * (1 + _xlpm.IER)^(-_xlpm.DUR)) -> 0.01028119295 | R46: =_xlfn.LET(_xlpm.CF, _xlfn.XLOOKUP(R$10, T.RefPortCurrencyGov[Issuer], T.RefPortCurrencyGov[RFR Cash Flow]), _xlpm.IER, $W$46, _xlpm.DUR, R13, _xlpm.CF * (1 + _xlpm.IER)^(-_xlpm.DUR)) -> 0.01028119295 | S46: =_xlfn.LET(_xlpm.CF, _xlfn.XLOOKUP(S$10, T.RefPortCurrencyGov[Issuer], T.RefPortCurrencyGov[RFR Cash Flow]), _xlpm.IER, $W$46, _xlpm.DUR, S13, _xlpm.CF * (1 + _xlpm.IER)^(-_xlpm.DUR)) -> 0.1028119295 | U46: =SUM(H46:S46) -> 1.028119295 | V46: =(SUM(H39:S39)-U46)^2 -> 3.155443621e-30 | W46: 0.02223538469
F47: IRR discounted risk-corrected yield model bond | H47: =_xlfn.LET(_xlpm.CF, _xlfn.XLOOKUP(H$10, T.RefPortCurrencyGov[Issuer], T.RefPortCurrencyGov[RC Yield Cash Flow]), _xlpm.IER, $W$47, _xlpm.DUR, H13, _xlpm.CF * (1 + _xlpm.IER)^(-_xlpm.DUR)) -> 0.0300831567 | I47: =_xlfn.LET(_xlpm.CF, _xlfn.XLOOKUP(I$10, T.RefPortCurrencyGov[Issuer], T.RefPortCurrencyGov[RC Yield Cash Flow]), _xlpm.IER, $W$47, _xlpm.DUR, I13, _xlpm.CF * (1 + _xlpm.IER)^(-_xlpm.DUR)) -> 0.09024947009 | J47: =_xlfn.LET(_xlpm.CF, _xlfn.XLOOKUP(J$10, T.RefPortCurrencyGov[Issuer], T.RefPortCurrencyGov[RC Yield Cash Flow]), _xlpm.IER, $W$47, _xlpm.DUR, J13, _xlpm.CF * (1 + _xlpm.IER)^(-_xlpm.DUR)) -> 0.0100277189 | K47: =_xlfn.LET(_xlpm.CF, _xlfn.XLOOKUP(K$10, T.RefPortCurrencyGov[Issuer], T.RefPortCurrencyGov[RC Yield Cash Flow]), _xlpm.IER, $W$47, _xlpm.DUR, K13, _xlpm.CF * (1 + _xlpm.IER)^(-_xlpm.DUR)) -> 0.3409424426 | L47: =_xlfn.LET(_xlpm.CF, _xlfn.XLOOKUP(L$10, T.RefPortCurrencyGov[Issuer], T.RefPortCurrencyGov[RC Yield Cash Flow]), _xlpm.IER, $W$47, _xlpm.DUR, L13, _xlpm.CF * (1 + _xlpm.IER)^(-_xlpm.DUR)) -> 0.1504157835 | M47: =_xlfn.LET(_xlpm.CF, _xlfn.XLOOKUP(M$10, T.RefPortCurrencyGov[Issuer], T.RefPortCurrencyGov[RC Yield Cash Flow]), _xlpm.IER, $W$47, _xlpm.DUR, M13, _xlpm.CF * (1 + _xlpm.IER)^(-_xlpm.DUR)) -> 0.0100277189 | N47: =_xlfn.LET(_xlpm.CF, _xlfn.XLOOKUP(N$10, T.RefPortCurrencyGov[Issuer], T.RefPortCurrencyGov[RC Yield Cash Flow]), _xlpm.IER, $W$47, _xlpm.DUR, N13, _xlpm.CF * (1 + _xlpm.IER)^(-_xlpm.DUR)) -> 0.2206098158 | O47: =_xlfn.LET(_xlpm.CF, _xlfn.XLOOKUP(O$10, T.RefPortCurrencyGov[Issuer], T.RefPortCurrencyGov[RC Yield Cash Flow]), _xlpm.IER, $W$47, _xlpm.DUR, O13, _xlpm.CF * (1 + _xlpm.IER)^(-_xlpm.DUR)) -> 0.0100277189 | P47: =_xlfn.LET(_xlpm.CF, _xlfn.XLOOKUP(P$10, T.RefPortCurrencyGov[Issuer], T.RefPortCurrencyGov[RC Yield Cash Flow]), _xlpm.IER, $W$47, _xlpm.DUR, P13, _xlpm.CF * (1 + _xlpm.IER)^(-_xlpm.DUR)) -> 0.0200554378 | Q47: =_xlfn.LET(_xlpm.CF, _xlfn.XLOOKUP(Q$10, T.RefPortCurrencyGov[Issuer], T.RefPortCurrencyGov[RC Yield Cash Flow]), _xlpm.IER, $W$47, _xlpm.DUR, Q13, _xlpm.CF * (1 + _xlpm.IER)^(-_xlpm.DUR)) -> 0.0100277189 | R47: =_xlfn.LET(_xlpm.CF, _xlfn.XLOOKUP(R$10, T.RefPortCurrencyGov[Issuer], T.RefPortCurrencyGov[RC Yield Cash Flow]), _xlpm.IER, $W$47, _xlpm.DUR, R13, _xlpm.CF * (1 + _xlpm.IER)^(-_xlpm.DUR)) -> 0.0100277189 | S47: =_xlfn.LET(_xlpm.CF, _xlfn.XLOOKUP(S$10, T.RefPortCurrencyGov[Issuer], T.RefPortCurrencyGov[RC Yield Cash Flow]), _xlpm.IER, $W$47, _xlpm.DUR, S13, _xlpm.CF * (1 + _xlpm.IER)^(-_xlpm.DUR)) -> 0.100277189 | U47: 1.00277189 | V47: =(SUM(H40:S40)-U47)^2 -> 0 | W47: 0.03029307257
F49: Portfolio spread and risk correction | H49: Total
F50: Portfolio spread | H50: =V.IER_Yield_Gov_Cur-V.IER_RFR_Gov_Cur -> 0.01002810713
F51: Portfolio risk correction | H51: =V.IER_Yield_Gov_Cur-V.IER_RCYield_Gov_Cur -> 0.001970419252

Sheet S&RC Corp Currency
V3: ©EIOPA, 2026.
F6: Currency RCS: Corporate Bonds
F8: Model Bond Calculations | S8: RFR TD
F10: Issuer | H10: Financials CQS 0 | I10: Financials CQS 1 | J10: Financials CQS 2 | K10: Financials CQS 3 | L10: Financials CQS 4 | M10: Non-Financials CQS 0 | N10: Non-Financials CQS 1 | O10: Non-Financials CQS 2 | P10: Non-Financials CQS 3 | Q10: Non-Financials CQS 4
F11: Issuer currency | H11: EUR | I11: EUR | J11: EUR | K11: EUR | L11: EUR | M11: EUR | N11: EUR | O11: EUR | P11: EUR | Q11: EUR
F12: Relative market value | H12: =_xlfn.XLOOKUP(H$10, T.RefPortCurrencyCorp[Issuer], T.RefPortCurrencyCorp[Composition]) -> 0.14 | I12: =_xlfn.XLOOKUP(I$10, T.RefPortCurrencyCorp[Issuer], T.RefPortCurrencyCorp[Composition]) -> 0.12 | J12: =_xlfn.XLOOKUP(J$10, T.RefPortCurrencyCorp[Issuer], T.RefPortCurrencyCorp[Composition]) -> 0.29 | K12: =_xlfn.XLOOKUP(K$10, T.RefPortCurrencyCorp[Issuer], T.RefPortCurrencyCorp[Composition]) -> 0.13 | L12: =_xlfn.XLOOKUP(L$10, T.RefPortCurrencyCorp[Issuer], T.RefPortCurrencyCorp[Composition]) -> 0.01 | M12: =_xlfn.XLOOKUP(M$10, T.RefPortCurrencyCorp[Issuer], T.RefPortCurrencyCorp[Composition]) -> 0.04 | N12: =_xlfn.XLOOKUP(N$10, T.RefPortCurrencyCorp[Issuer], T.RefPortCurrencyCorp[Composition]) -> 0.04 | O12: =_xlfn.XLOOKUP(O$10, T.RefPortCurrencyCorp[Issuer], T.RefPortCurrencyCorp[Composition]) -> 0.09 | P12: =_xlfn.XLOOKUP(P$10, T.RefPortCurrencyCorp[Issuer], T.RefPortCurrencyCorp[Composition]) -> 0.13 | Q12: =_xlfn.XLOOKUP(Q$10, T.RefPortCurrencyCorp[Issuer], T.RefPortCurrencyCorp[Composition]) -> 0.01
F13: Duration [Y] | H13: =_xlfn.XLOOKUP(H$10, T.RefPortCurrencyCorp[Issuer], T.RefPortCurrencyCorp[Duration '[Y']]) -> 7.2 | I13: =_xlfn.XLOOKUP(I$10, T.RefPortCurrencyCorp[Issuer], T.RefPortCurrencyCorp[Duration '[Y']]) -> 5.5 | J13: =_xlfn.XLOOKUP(J$10, T.RefPortCurrencyCorp[Issuer], T.RefPortCurrencyCorp[Duration '[Y']]) -> 4.9 | K13: =_xlfn.XLOOKUP(K$10, T.RefPortCurrencyCorp[Issuer], T.RefPortCurrencyCorp[Duration '[Y']]) -> 4.1 | L13: =_xlfn.XLOOKUP(L$10, T.RefPortCurrencyCorp[Issuer], T.RefPortCurrencyCorp[Duration '[Y']]) -> 3.1 | M13: =_xlfn.XLOOKUP(M$10, T.RefPortCurrencyCorp[Issuer], T.RefPortCurrencyCorp[Duration '[Y']]) -> 9 | N13: =_xlfn.XLOOKUP(N$10, T.RefPortCurrencyCorp[Issuer], T.RefPortCurrencyCorp[Duration '[Y']]) -> 7.5 | O13: =_xlfn.XLOOKUP(O$10, T.RefPortCurrencyCorp[Issuer], T.RefPortCurrencyCorp[Duration '[Y']]) -> 5.5 | P13: =_xlfn.XLOOKUP(P$10, T.RefPortCurrencyCorp[Issuer], T.RefPortCurrencyCorp[Duration '[Y']]) -> 4.7 | Q13: =_xlfn.XLOOKUP(Q$10, T.RefPortCurrencyCorp[Issuer], T.RefPortCurrencyCorp[Duration '[Y']]) -> 3.6
F14: Integer D less than or equal to the duration [Y] | H14: =INT(H$13) -> 7 | I14: =INT(I$13) -> 5 | J14: 4 | K14: 4 | L14: 3 | M14: 9 | N14: 7 | O14: 5 | P14: 4 | Q14: 3
F15: Integer D+1 [Y] | H15: =H14+1 -> 8 | I15: =I14+1 -> 6 | J15: 5 | K15: 5 | L15: 4 | M15: 10 | N15: 8 | O15: 6 | P15: 5 | Q15: 4
F17: Linear interpolation of market yields before risk correction
F18: Longest available duration below the component duration [Y] | H18: =ROUND('Corp Data'!G15, 1) -> 5.7 | I18: =ROUND('Corp Data'!K14, 1) -> 3.7 | J18: =ROUND('Corp Data'!O14, 1) -> 3.8 | K18: =ROUND('Corp Data'!G23, 1) -> 3.8 | L18: =ROUND('Corp Data'!K22, 1) -> 2.9 | M18: =ROUND('Corp Data'!G35, 1) -> 7.5 | N18: =ROUND('Corp Data'!K34, 1) -> 5.6 | O18: =ROUND('Corp Data'!O33, 1) -> 3.6 | P18: =ROUND('Corp Data'!G42, 1) -> 3.8 | Q18: =ROUND('Corp Data'!K41, 1) -> 3
F19: Yield for the longest available duration below the component duration | H19: ='Corp Data'!H15 -> 0.02368205455 | I19: ='Corp Data'!L14 -> 0.02676472658 | J19: ='Corp Data'!P14 -> 0.02790158523 | K19: ='Corp Data'!H23 -> 0.03232133767 | L19: ='Corp Data'!L22 -> 0.05128437924 | M19: ='Corp Data'!H35 -> 0.02624345628 | N19: ='Corp Data'!L34 -> 0.02861842024 | O19: ='Corp Data'!P33 -> 0.02719612863 | P19: ='Corp Data'!H42 -> 0.03205249855 | Q19: ='Corp Data'!L41 -> 0.04403809825
F20: Shortest available duration above the component duration [Y] | H20: =ROUND('Corp Data'!G16, 1) -> 7.3 | I20: =ROUND('Corp Data'!K15, 1) -> 5.7 | J20: =ROUND('Corp Data'!O15, 1) -> 5.3 | K20: =ROUND('Corp Data'!G24, 1) -> 5.2 | L20: =ROUND('Corp Data'!K22, 1) -> 2.9 | M20: =ROUND('Corp Data'!G36, 1) -> 12.2 | N20: =ROUND('Corp Data'!K35, 1) -> 7.5 | O20: =ROUND('Corp Data'!O34, 1) -> 5.6 | P20: =ROUND('Corp Data'!G43, 1) -> 5.1 | Q20: =ROUND('Corp Data'!K41, 1) -> 3
F21: Yield for the shortest available duration above the component duration | H21: ='Corp Data'!H16 -> 0.02568787232 | I21: ='Corp Data'!L15 -> 0.02786124065 | J21: ='Corp Data'!P15 -> 0.03271147539 | K21: ='Corp Data'!H24 -> 0.03525863138 | L21: ='Corp Data'!L22 -> 0.05128437924 | M21: ='Corp Data'!H36 -> 0.02971966777 | N21: ='Corp Data'!L35 -> 0.03087465444 | O21: ='Corp Data'!P34 -> 0.03121200868 | P21: ='Corp Data'!H43 -> 0.03401032644 | Q21: ='Corp Data'!L41 -> 0.04403809825
F22: Linear interpolation of market yields before risk correction | H22: =H19+(H21-H19)/(H20-H18)*(H13-H18) -> 0.02556250871 | I22: =I19+(I21-I19)/(I20-I18)*(I13-I18) -> 0.02775158924 | J22: 0.03142883802 | K22: 0.03295075775 | L22: =L21 -> 0.05128437924 | M22: 0.02735288548 | N22: 0.03087465444 | O22: 0.03101121468 | P22: 0.03340791786 | Q22: =Q21 -> 0.04403809825
F24: Linear interpolation of risk-free rates
F25: Basic risk-free rate corresponding to D | H25: =_xlfn.XLOOKUP(H$14, T.RFR[Maturity '[Y']], T.RFR[EUR]) -> 0.02063078763 | I25: =_xlfn.XLOOKUP(I$14, T.RFR[Maturity '[Y']], T.RFR[EUR]) -> 0.01892195156 | J25: =_xlfn.XLOOKUP(J$14, T.RFR[Maturity '[Y']], T.RFR[EUR]) -> 0.01851301381 | K25: =_xlfn.XLOOKUP(K$14, T.RFR[Maturity '[Y']], T.RFR[EUR]) -> 0.01851301381 | L25: =_xlfn.XLOOKUP(L$14, T.RFR[Maturity '[Y']], T.RFR[EUR]) -> 0.01938535624 | M25: =_xlfn.XLOOKUP(M$14, T.RFR[Maturity '[Y']], T.RFR[EUR]) -> 0.02223538469 | N25: =_xlfn.XLOOKUP(N$14, T.RFR[Maturity '[Y']], T.RFR[EUR]) -> 0.02063078763 | O25: =_xlfn.XLOOKUP(O$14, T.RFR[Maturity '[Y']], T.RFR[EUR]) -> 0.01892195156 | P25: =_xlfn.XLOOKUP(P$14, T.RFR[Maturity '[Y']], T.RFR[EUR]) -> 0.01851301381 | Q25: =_xlfn.XLOOKUP(Q$14, T.RFR[Maturity '[Y']], T.RFR[EUR]) -> 0.01938535624
F26: Basic risk-free rate corresponding to D+1 | H26: =_xlfn.XLOOKUP(H$15, T.RFR[Maturity '[Y']], T.RFR[EUR]) -> 0.02351730711 | I26: =_xlfn.XLOOKUP(I$15, T.RFR[Maturity '[Y']], T.RFR[EUR]) -> 0.02068612671 | J26: =_xlfn.XLOOKUP(J$15, T.RFR[Maturity '[Y']], T.RFR[EUR]) -> 0.01892195156 | K26: =_xlfn.XLOOKUP(K$15, T.RFR[Maturity '[Y']], T.RFR[EUR]) -> 0.01892195156 | L26: =_xlfn.XLOOKUP(L$15, T.RFR[Maturity '[Y']], T.RFR[EUR]) -> 0.01851301381 | M26: =_xlfn.XLOOKUP(M$15, T.RFR[Maturity '[Y']], T.RFR[EUR]) -> 0.02550812284 | N26: =_xlfn.XLOOKUP(N$15, T.RFR[Maturity '[Y']], T.RFR[EUR]) -> 0.02351730711 | O26: =_xlfn.XLOOKUP(O$15, T.RFR[Maturity '[Y']], T.RFR[EUR]) -> 0.02068612671 | P26: =_xlfn.XLOOKUP(P$15, T.RFR[Maturity '[Y']], T.RFR[EUR]) -> 0.01892195156 | Q26: =_xlfn.XLOOKUP(Q$15, T.RFR[Maturity '[Y']], T.RFR[EUR]) -> 0.01851301381
F27: Linear interpolation of basic risk-free rate | H27: =H25+(H26-H25)/(H15-H14) * (H$13-H14) -> 0.02120809152 | I27: 0.01980403913 | J27: 0.01888105778 | K27: 0.01855390758 | L27: 0.019298122 | M27: 0.02223538469 | N27: 0.02207404737 | O27: 0.01980403913 | P27: 0.01879927023 | Q27: 0.01886195078
F29: Linear interpolation of long-term average spreads
F30: Long-term average spread corresponding to D | H30: =_xlfn.XLOOKUP(H$14, T.LTASCorp_Finan[Maturity '[Y']], T.LTASCorp_Finan[CQS 0]) -> 0.005100265968 | I30: =_xlfn.XLOOKUP(I$14, T.LTASCorp_Finan[Maturity '[Y']], T.LTASCorp_Finan[CQS 1]) -> 0.008442307806 | J30: =_xlfn.XLOOKUP(J$14, T.LTASCorp_Finan[Maturity '[Y']], T.LTASCorp_Finan[CQS 2]) -> 0.01389564326 | K30: =_xlfn.XLOOKUP(K$14, T.LTASCorp_Finan[Maturity '[Y']], T.LTASCorp_Finan[CQS 3]) -> 0.03062089834 | L30: =_xlfn.XLOOKUP(L$14, T.LTASCorp_Finan[Maturity '[Y']], T.LTASCorp_Finan[CQS 4]) -> 0.06265027455 | M30: =_xlfn.XLOOKUP(M$14, T.LTASCorp_NonFinan[Maturity '[Y']], T.LTASCorp_NonFinan[CQS 0]) -> 0.001314001871 | N30: =_xlfn.XLOOKUP(N$14, T.LTASCorp_NonFinan[Maturity '[Y']], T.LTASCorp_NonFinan[CQS 1]) -> 0.004752837939 | O30: =_xlfn.XLOOKUP(O$14, T.LTASCorp_NonFinan[Maturity '[Y']], T.LTASCorp_NonFinan[CQS 2]) -> 0.00954581486 | P30: =_xlfn.XLOOKUP(P$14, T.LTASCorp_NonFinan[Maturity '[Y']], T.LTASCorp_NonFinan[CQS 3]) -> 0.0140020118 | Q30: =_xlfn.XLOOKUP(Q$14, T.LTASCorp_NonFinan[Maturity '[Y']], T.LTASCorp_NonFinan[CQS 4]) -> 0.04113679028
F31: Long-term average spread corresponding to D+1 | H31: =_xlfn.XLOOKUP(H$15, T.LTASCorp_Finan[Maturity '[Y']], T.LTASCorp_Finan[CQS 0]) -> 0.005438028592 | I31: =_xlfn.XLOOKUP(I$15, T.LTASCorp_Finan[Maturity '[Y']], T.LTASCorp_Finan[CQS 1]) -> 0.008536468562 | J31: =_xlfn.XLOOKUP(J$15, T.LTASCorp_Finan[Maturity '[Y']], T.LTASCorp_Finan[CQS 2]) -> 0.01563236909 | K31: =_xlfn.XLOOKUP(K$15, T.LTASCorp_Finan[Maturity '[Y']], T.LTASCorp_Finan[CQS 3]) -> 0.02955323276 | L31: =_xlfn.XLOOKUP(L$15, T.LTASCorp_Finan[Maturity '[Y']], T.LTASCorp_Finan[CQS 4]) -> 0.06142765588 | M31: =_xlfn.XLOOKUP(M$15, T.LTASCorp_NonFinan[Maturity '[Y']], T.LTASCorp_NonFinan[CQS 0]) -> 0.001259258821 | N31: =_xlfn.XLOOKUP(N$15, T.LTASCorp_NonFinan[Maturity '[Y']], T.LTASCorp_NonFinan[CQS 1]) -> 0.006684758231 | O31: =_xlfn.XLOOKUP(O$15, T.LTASCorp_NonFinan[Maturity '[Y']], T.LTASCorp_NonFinan[CQS 2]) -> 0.007625237921 | P31: =_xlfn.XLOOKUP(P$15, T.LTASCorp_NonFinan[Maturity '[Y']], T.LTASCorp_NonFinan[CQS 3]) -> 0.013772365 | Q31: =_xlfn.XLOOKUP(Q$15, T.LTASCorp_NonFinan[Maturity '[Y']], T.LTASCorp_NonFinan[CQS 4]) -> 0.04352841638
F32: Linear interpolation of LTAS | H32: =H30+(H31-H30)/(H15-H14)*(H13-H14) -> 0.005167818493 | I32: 0.008489388184 | J32: 0.01545869651 | K32: 0.03051413178 | L32: 0.06252801268 | M32: 0.001314001871 | N32: 0.005718798085 | O32: 0.00858552639 | P32: 0.01384125904 | Q32: 0.04257176594
F34: Risk-corrected market yields
F35: Spread | H35: =H22-H27 -> 0.004354417186 | I35: =I22-I27 -> 0.007947550107 | J35: 0.01254778023 | K35: 0.01439685017 | L35: 0.03198625724 | M35: 0.005117500781 | N35: 0.008800607073 | O35: 0.01120717555 | P35: 0.01460864762 | Q35: 0.02517614747
F36: Risk correction | H36: =_xlfn.LET(_xlpm.SPLUS, MAX(H35, 0), _xlpm.LTASPLUS, MAX(H32, 0), _xlpm.RC, 50% * MIN(_xlpm.SPLUS, _xlpm.LTASPLUS) + 40% * MAX(0, MIN(_xlpm.SPLUS - _xlpm.LTASPLUS, _xlpm.LTASPLUS)) + 30% * MAX(0, _xlpm.SPLUS - 2 * _xlpm.LTASPLUS), MIN(_xlpm.RC, 125% * _xlpm.LTASPLUS)) -> 0.002177208593 | I36: =_xlfn.LET(_xlpm.SPLUS, MAX(I35, 0), _xlpm.LTASPLUS, MAX(I32, 0), _xlpm.RC, 50% * MIN(_xlpm.SPLUS, _xlpm.LTASPLUS) + 40% * MAX(0, MIN(_xlpm.SPLUS - _xlpm.LTASPLUS, _xlpm.LTASPLUS)) + 30% * MAX(0, _xlpm.SPLUS - 2 * _xlpm.LTASPLUS), MIN(_xlpm.RC, 125% * _xlpm.LTASPLUS)) -> 0.003973775054 | J36: 0.006273890116 | K36: 0.007198425085 | L36: 0.01599312862 | M36: 0.001642502338 | N36: 0.004092122638 | O36: 0.005341422858 | P36: 0.007227584953 | Q36: 0.01258807373
F37: Risk-corrected market yield | H37: =H22-H36 -> 0.02338530012 | I37: =I22-I36 -> 0.02377781419 | J37: 0.0251549479 | K37: 0.02575233267 | L37: 0.03529125062 | M37: 0.02571038314 | N37: 0.0267825318 | O37: 0.02566979182 | P37: 0.0261803329 | Q37: 0.03145002452
F39: Model bond market values
F40: Market value market yield model bond | H40: =_xlfn.LET(_xlpm.CF, _xlfn.XLOOKUP(H$10, T.RefPortCurrencyCorp[Issuer], T.RefPortCurrencyCorp[Yield Cash Flow]), _xlpm.IR, H22, _xlpm.DUR, H13, _xlpm.CF * (1 + _xlpm.IR)^(-_xlpm.DUR)) -> 0.1430427096 | I40: =_xlfn.LET(_xlpm.CF, _xlfn.XLOOKUP(I$10, T.RefPortCurrencyCorp[Issuer], T.RefPortCurrencyCorp[Yield Cash Flow]), _xlpm.IR, I22, _xlpm.DUR, I13, _xlpm.CF * (1 + _xlpm.IR)^(-_xlpm.DUR)) -> 0.1223982342 | J40: =_xlfn.LET(_xlpm.CF, _xlfn.XLOOKUP(J$10, T.RefPortCurrencyCorp[Issuer], T.RefPortCurrencyCorp[Yield Cash Flow]), _xlpm.IR, J22, _xlpm.DUR, J13, _xlpm.CF * (1 + _xlpm.IR)^(-_xlpm.DUR)) -> 0.2943056895 | K40: =_xlfn.LET(_xlpm.CF, _xlfn.XLOOKUP(K$10, T.RefPortCurrencyCorp[Issuer], T.RefPortCurrencyCorp[Yield Cash Flow]), _xlpm.IR, K22, _xlpm.DUR, K13, _xlpm.CF * (1 + _xlpm.IR)^(-_xlpm.DUR)) -> 0.131909278 | L40: =_xlfn.LET(_xlpm.CF, _xlfn.XLOOKUP(L$10, T.RefPortCurrencyCorp[Issuer], T.RefPortCurrencyCorp[Yield Cash Flow]), _xlpm.IR, L22, _xlpm.DUR, L13, _xlpm.CF * (1 + _xlpm.IR)^(-_xlpm.DUR)) -> 0.009944358247 | M40: =_xlfn.LET(_xlpm.CF, _xlfn.XLOOKUP(M$10, T.RefPortCurrencyCorp[Issuer], T.RefPortCurrencyCorp[Yield Cash Flow]), _xlpm.IR, M22, _xlpm.DUR, M13, _xlpm.CF * (1 + _xlpm.IR)^(-_xlpm.DUR)) -> 0.04039664957 | N40: =_xlfn.LET(_xlpm.CF, _xlfn.XLOOKUP(N$10, T.RefPortCurrencyCorp[Issuer], T.RefPortCurrencyCorp[Yield Cash Flow]), _xlpm.IR, N22, _xlpm.DUR, N13, _xlpm.CF * (1 + _xlpm.IR)^(-_xlpm.DUR)) -> 0.04029434373 | O40: =_xlfn.LET(_xlpm.CF, _xlfn.XLOOKUP(O$10, T.RefPortCurrencyCorp[Issuer], T.RefPortCurrencyCorp[Yield Cash Flow]), _xlpm.IR, O22, _xlpm.DUR, O13, _xlpm.CF * (1 + _xlpm.IR)^(-_xlpm.DUR)) -> 0.08984744384 | P40: =_xlfn.LET(_xlpm.CF, _xlfn.XLOOKUP(P$10, T.RefPortCurrencyCorp[Issuer], T.RefPortCurrencyCorp[Yield Cash Flow]), _xlpm.IR, P22, _xlpm.DUR, P13, _xlpm.CF * (1 + _xlpm.IR)^(-_xlpm.DUR)) -> 0.1293566278 | Q40: =_xlfn.LET(_xlpm.CF, _xlfn.XLOOKUP(Q$10, T.RefPortCurrencyCorp[Issuer], T.RefPortCurrencyCorp[Yield Cash Flow]), _xlpm.IR, Q22, _xlpm.DUR, Q13, _xlpm.CF * (1 + _xlpm.IR)^(-_xlpm.DUR)) -> 0.009928390873
F41: Market value risk-free yield model bond | H41: =_xlfn.LET(_xlpm.CF, _xlfn.XLOOKUP(H$10, T.RefPortCurrencyCorp[Issuer], T.RefPortCurrencyCorp[RFR Cash Flow]), _xlpm.IR, H27, _xlpm.DUR, H13, _xlpm.CF * (1 + _xlpm.IR)^(-_xlpm.DUR)) -> 0.1432598325 | I41: =_xlfn.LET(_xlpm.CF, _xlfn.XLOOKUP(I$10, T.RefPortCurrencyCorp[Issuer], T.RefPortCurrencyCorp[RFR Cash Flow]), _xlpm.IR, I27, _xlpm.DUR, I13, _xlpm.CF * (1 + _xlpm.IR)^(-_xlpm.DUR)) -> 0.1223918185 | J41: =_xlfn.LET(_xlpm.CF, _xlfn.XLOOKUP(J$10, T.RefPortCurrencyCorp[Issuer], T.RefPortCurrencyCorp[RFR Cash Flow]), _xlpm.IR, J27, _xlpm.DUR, J13, _xlpm.CF * (1 + _xlpm.IR)^(-_xlpm.DUR)) -> 0.2958948727 | K41: =_xlfn.LET(_xlpm.CF, _xlfn.XLOOKUP(K$10, T.RefPortCurrencyCorp[Issuer], T.RefPortCurrencyCorp[RFR Cash Flow]), _xlpm.IR, K27, _xlpm.DUR, K13, _xlpm.CF * (1 + _xlpm.IR)^(-_xlpm.DUR)) -> 0.1320593825 | L41: =_xlfn.LET(_xlpm.CF, _xlfn.XLOOKUP(L$10, T.RefPortCurrencyCorp[Issuer], T.RefPortCurrencyCorp[RFR Cash Flow]), _xlpm.IR, L27, _xlpm.DUR, L13, _xlpm.CF * (1 + _xlpm.IR)^(-_xlpm.DUR)) -> 0.01007231253 | M41: =_xlfn.LET(_xlpm.CF, _xlfn.XLOOKUP(M$10, T.RefPortCurrencyCorp[Issuer], T.RefPortCurrencyCorp[RFR Cash Flow]), _xlpm.IR, M27, _xlpm.DUR, M13, _xlpm.CF * (1 + _xlpm.IR)^(-_xlpm.DUR)) -> 0.04112477178 | N41: =_xlfn.LET(_xlpm.CF, _xlfn.XLOOKUP(N$10, T.RefPortCurrencyCorp[Issuer], T.RefPortCurrencyCorp[RFR Cash Flow]), _xlpm.IR, N27, _xlpm.DUR, N13, _xlpm.CF * (1 + _xlpm.IR)^(-_xlpm.DUR)) -> 0.04075933407 | O41: =_xlfn.LET(_xlpm.CF, _xlfn.XLOOKUP(O$10, T.RefPortCurrencyCorp[Issuer], T.RefPortCurrencyCorp[RFR Cash Flow]), _xlpm.IR, O27, _xlpm.DUR, O13, _xlpm.CF * (1 + _xlpm.IR)^(-_xlpm.DUR)) -> 0.09179386389 | P41: =_xlfn.LET(_xlpm.CF, _xlfn.XLOOKUP(P$10, T.RefPortCurrencyCorp[Issuer], T.RefPortCurrencyCorp[RFR Cash Flow]), _xlpm.IR, P27, _xlpm.DUR, P13, _xlpm.CF * (1 + _xlpm.IR)^(-_xlpm.DUR)) -> 0.1324910841 | Q41: =_xlfn.LET(_xlpm.CF, _xlfn.XLOOKUP(Q$10, T.RefPortCurrencyCorp[Issuer], T.RefPortCurrencyCorp[RFR Cash Flow]), _xlpm.IR, Q27, _xlpm.DUR, Q13, _xlpm.CF * (1 + _xlpm.IR)^(-_xlpm.DUR)) -> 0.01011381649
F42: Market value risk-corrected yield model bond | H42: =_xlfn.LET(_xlpm.CF, _xlfn.XLOOKUP(H$10, T.RefPortCurrencyCorp[Issuer], T.RefPortCurrencyCorp[RC Yield Cash Flow]), _xlpm.IR, H37, _xlpm.DUR, H13, _xlpm.CF * (1 + _xlpm.IR)^(-_xlpm.DUR)) -> 0.1432092144 | I42: =_xlfn.LET(_xlpm.CF, _xlfn.XLOOKUP(I$10, T.RefPortCurrencyCorp[Issuer], T.RefPortCurrencyCorp[RC Yield Cash Flow]), _xlpm.IR, I37, _xlpm.DUR, I13, _xlpm.CF * (1 + _xlpm.IR)^(-_xlpm.DUR)) -> 0.1224088659 | J42: =_xlfn.LET(_xlpm.CF, _xlfn.XLOOKUP(J$10, T.RefPortCurrencyCorp[Issuer], T.RefPortCurrencyCorp[RC Yield Cash Flow]), _xlpm.IR, J37, _xlpm.DUR, J13, _xlpm.CF * (1 + _xlpm.IR)^(-_xlpm.DUR)) -> 0.2950945668 | K42: =_xlfn.LET(_xlpm.CF, _xlfn.XLOOKUP(K$10, T.RefPortCurrencyCorp[Issuer], T.RefPortCurrencyCorp[RC Yield Cash Flow]), _xlpm.IR, K37, _xlpm.DUR, K13, _xlpm.CF * (1 + _xlpm.IR)^(-_xlpm.DUR)) -> 0.1319837874 | L42: =_xlfn.LET(_xlpm.CF, _xlfn.XLOOKUP(L$10, T.RefPortCurrencyCorp[Issuer], T.RefPortCurrencyCorp[RC Yield Cash Flow]), _xlpm.IR, L37, _xlpm.DUR, L13, _xlpm.CF * (1 + _xlpm.IR)^(-_xlpm.DUR)) -> 0.01000720858 | M42: =_xlfn.LET(_xlpm.CF, _xlfn.XLOOKUP(M$10, T.RefPortCurrencyCorp[Issuer], T.RefPortCurrencyCorp[RC Yield Cash Flow]), _xlpm.IR, M37, _xlpm.DUR, M13, _xlpm.CF * (1 + _xlpm.IR)^(-_xlpm.DUR)) -> 0.04064236349 | N42: =_xlfn.LET(_xlpm.CF, _xlfn.XLOOKUP(N$10, T.RefPortCurrencyCorp[Issuer], T.RefPortCurrencyCorp[RC Yield Cash Flow]), _xlpm.IR, N37, _xlpm.DUR, N13, _xlpm.CF * (1 + _xlpm.IR)^(-_xlpm.DUR)) -> 0.04066267935 | O42: =_xlfn.LET(_xlpm.CF, _xlfn.XLOOKUP(O$10, T.RefPortCurrencyCorp[Issuer], T.RefPortCurrencyCorp[RC Yield Cash Flow]), _xlpm.IR, O37, _xlpm.DUR, O13, _xlpm.CF * (1 + _xlpm.IR)^(-_xlpm.DUR)) -> 0.09115039227 | P42: =_xlfn.LET(_xlpm.CF, _xlfn.XLOOKUP(P$10, T.RefPortCurrencyCorp[Issuer], T.RefPortCurrencyCorp[RC Yield Cash Flow]), _xlpm.IR, P37, _xlpm.DUR, P13, _xlpm.CF * (1 + _xlpm.IR)^(-_xlpm.DUR)) -> 0.1315457264 | Q42: =_xlfn.LET(_xlpm.CF, _xlfn.XLOOKUP(Q$10, T.RefPortCurrencyCorp[Issuer], T.RefPortCurrencyCorp[RC Yield Cash Flow]), _xlpm.IR, Q37, _xlpm.DUR, Q13, _xlpm.CF * (1 + _xlpm.IR)^(-_xlpm.DUR)) -> 0.0101330199
F44: Portfolio Calculation
F46: Internal rate of return (IRR) calculation | H46: =H10 -> Financials CQS 0 | I46: =I10 -> Financials CQS 1 | J46: Financials CQS 2 | K46: Financials CQS 3 | L46: Financials CQS 4 | M46: Non-Financials CQS 0 | N46: Non-Financials CQS 1 | O46: Non-Financials CQS 2 | P46: Non-Financials CQS 3 | Q46: Non-Financials CQS 4 | S46: Sum | T46: Obj. Func. | U46: IRR
F47: IRR discounted market yield model bond | H47: =_xlfn.LET(_xlpm.CF, _xlfn.XLOOKUP(H$10, T.RefPortCurrencyCorp[Issuer], T.RefPortCurrencyCorp[Yield Cash Flow]), _xlpm.IER, $U$47, _xlpm.DUR, H13, _xlpm.CF * (1 + _xlpm.IER)^(-_xlpm.DUR)) -> 0.1385622927 | I47: =_xlfn.LET(_xlpm.CF, _xlfn.XLOOKUP(I$10, T.RefPortCurrencyCorp[Issuer], T.RefPortCurrencyCorp[Yield Cash Flow]), _xlpm.IER, $U$47, _xlpm.DUR, I13, _xlpm.CF * (1 + _xlpm.IER)^(-_xlpm.DUR)) -> 0.1208678545 | J47: =_xlfn.LET(_xlpm.CF, _xlfn.XLOOKUP(J$10, T.RefPortCurrencyCorp[Issuer], T.RefPortCurrencyCorp[Yield Cash Flow]), _xlpm.IER, $U$47, _xlpm.DUR, J13, _xlpm.CF * (1 + _xlpm.IER)^(-_xlpm.DUR)) -> 0.296163055 | K47: =_xlfn.LET(_xlpm.CF, _xlfn.XLOOKUP(K$10, T.RefPortCurrencyCorp[Issuer], T.RefPortCurrencyCorp[Yield Cash Flow]), _xlpm.IER, $U$47, _xlpm.DUR, K13, _xlpm.CF * (1 + _xlpm.IER)^(-_xlpm.DUR)) -> 0.13340955 | L47: =_xlfn.LET(_xlpm.CF, _xlfn.XLOOKUP(L$10, T.RefPortCurrencyCorp[Issuer], T.RefPortCurrencyCorp[Yield Cash Flow]), _xlpm.IER, $U$47, _xlpm.DUR, L13, _xlpm.CF * (1 + _xlpm.IER)^(-_xlpm.DUR)) -> 0.01059195751 | M47: =_xlfn.LET(_xlpm.CF, _xlfn.XLOOKUP(M$10, T.RefPortCurrencyCorp[Issuer], T.RefPortCurrencyCorp[Yield Cash Flow]), _xlpm.IER, $U$47, _xlpm.DUR, M13, _xlpm.CF * (1 + _xlpm.IER)^(-_xlpm.DUR)) -> 0.03943547656 | N47: =_xlfn.LET(_xlpm.CF, _xlfn.XLOOKUP(N$10, T.RefPortCurrencyCorp[Issuer], T.RefPortCurrencyCorp[Yield Cash Flow]), _xlpm.IER, $U$47, _xlpm.DUR, N13, _xlpm.CF * (1 + _xlpm.IER)^(-_xlpm.DUR)) -> 0.04052056597 | O47: =_xlfn.LET(_xlpm.CF, _xlfn.XLOOKUP(O$10, T.RefPortCurrencyCorp[Issuer], T.RefPortCurrencyCorp[Yield Cash Flow]), _xlpm.IER, $U$47, _xlpm.DUR, O13, _xlpm.CF * (1 + _xlpm.IER)^(-_xlpm.DUR)) -> 0.09028283008 | P47: =_xlfn.LET(_xlpm.CF, _xlfn.XLOOKUP(P$10, T.RefPortCurrencyCorp[Issuer], T.RefPortCurrencyCorp[Yield Cash Flow]), _xlpm.IER, $U$47, _xlpm.DUR, P13, _xlpm.CF * (1 + _xlpm.IER)^(-_xlpm.DUR)) -> 0.1313173801 | Q47: =_xlfn.LET(_xlpm.CF, _xlfn.XLOOKUP(Q$10, T.RefPortCurrencyCorp[Issuer], T.RefPortCurrencyCorp[Yield Cash Flow]), _xlpm.IER, $U$47, _xlpm.DUR, Q13, _xlpm.CF * (1 + _xlpm.IER)^(-_xlpm.DUR)) -> 0.01042038325 | S47: =SUM(H47:Q47) -> 1.011571346 | T47: =(SUM(H40:Q40)-S47)^2 -> 2.17917692e-08 | U47: 0.03010542224
F48: IRR discounted risk-free yield model bond | H48: =_xlfn.LET(_xlpm.CF, _xlfn.XLOOKUP(H$10, T.RefPortCurrencyCorp[Issuer], T.RefPortCurrencyCorp[RFR Cash Flow]), _xlpm.IER, $U$48, _xlpm.DUR, H13, _xlpm.CF * (1 + _xlpm.IER)^(-_xlpm.DUR)) -> 0.1446171904 | I48: =_xlfn.LET(_xlpm.CF, _xlfn.XLOOKUP(I$10, T.RefPortCurrencyCorp[Issuer], T.RefPortCurrencyCorp[RFR Cash Flow]), _xlpm.IER, $U$48, _xlpm.DUR, I13, _xlpm.CF * (1 + _xlpm.IER)^(-_xlpm.DUR)) -> 0.1223473374 | J48: =_xlfn.LET(_xlpm.CF, _xlfn.XLOOKUP(J$10, T.RefPortCurrencyCorp[Issuer], T.RefPortCurrencyCorp[RFR Cash Flow]), _xlpm.IER, $U$48, _xlpm.DUR, J13, _xlpm.CF * (1 + _xlpm.IER)^(-_xlpm.DUR)) -> 0.2944895732 | K48: =_xlfn.LET(_xlpm.CF, _xlfn.XLOOKUP(K$10, T.RefPortCurrencyCorp[Issuer], T.RefPortCurrencyCorp[RFR Cash Flow]), _xlpm.IER, $U$48, _xlpm.DUR, K13, _xlpm.CF * (1 + _xlpm.IER)^(-_xlpm.DUR)) -> 0.1313613116 | L48: =_xlfn.LET(_xlpm.CF, _xlfn.XLOOKUP(L$10, T.RefPortCurrencyCorp[Issuer], T.RefPortCurrencyCorp[RFR Cash Flow]), _xlpm.IER, $U$48, _xlpm.DUR, L13, _xlpm.CF * (1 + _xlpm.IER)^(-_xlpm.DUR)) -> 0.01005477028 | M48: =_xlfn.LET(_xlpm.CF, _xlfn.XLOOKUP(M$10, T.RefPortCurrencyCorp[Issuer], T.RefPortCurrencyCorp[RFR Cash Flow]), _xlpm.IER, $U$48, _xlpm.DUR, M13, _xlpm.CF * (1 + _xlpm.IER)^(-_xlpm.DUR)) -> 0.04199067114 | N48: =_xlfn.LET(_xlpm.CF, _xlfn.XLOOKUP(N$10, T.RefPortCurrencyCorp[Issuer], T.RefPortCurrencyCorp[RFR Cash Flow]), _xlpm.IER, $U$48, _xlpm.DUR, N13, _xlpm.CF * (1 + _xlpm.IER)^(-_xlpm.DUR)) -> 0.04142419301 | O48: =_xlfn.LET(_xlpm.CF, _xlfn.XLOOKUP(O$10, T.RefPortCurrencyCorp[Issuer], T.RefPortCurrencyCorp[RFR Cash Flow]), _xlpm.IER, $U$48, _xlpm.DUR, O13, _xlpm.CF * (1 + _xlpm.IER)^(-_xlpm.DUR)) -> 0.09176050304 | P48: =_xlfn.LET(_xlpm.CF, _xlfn.XLOOKUP(P$10, T.RefPortCurrencyCorp[Issuer], T.RefPortCurrencyCorp[RFR Cash Flow]), _xlpm.IER, $U$48, _xlpm.DUR, P13, _xlpm.CF * (1 + _xlpm.IER)^(-_xlpm.DUR)) -> 0.1318377154 | Q48: =_xlfn.LET(_xlpm.CF, _xlfn.XLOOKUP(Q$10, T.RefPortCurrencyCorp[Issuer], T.RefPortCurrencyCorp[RFR Cash Flow]), _xlpm.IER, $U$48, _xlpm.DUR, Q13, _xlpm.CF * (1 + _xlpm.IER)^(-_xlpm.DUR)) -> 0.01007782372 | S48: =SUM(H48:Q48) -> 1.019961089 | T48: =(SUM(H41:Q41)-S48)^2 -> 4.930380658e-32 | U48: 0.01987144082
F49: IRR discounted risk-corrected yield model bond | H49: =_xlfn.LET(_xlpm.CF, _xlfn.XLOOKUP(H$10, T.RefPortCurrencyCorp[Issuer], T.RefPortCurrencyCorp[RC Yield Cash Flow]), _xlpm.IER, $U$49, _xlpm.DUR, H13, _xlpm.CF * (1 + _xlpm.IER)^(-_xlpm.DUR)) -> 0.1415012431 | I49: =_xlfn.LET(_xlpm.CF, _xlfn.XLOOKUP(I$10, T.RefPortCurrencyCorp[Issuer], T.RefPortCurrencyCorp[RC Yield Cash Flow]), _xlpm.IER, $U$49, _xlpm.DUR, I13, _xlpm.CF * (1 + _xlpm.IER)^(-_xlpm.DUR)) -> 0.1215481743 | J49: =_xlfn.LET(_xlpm.CF, _xlfn.XLOOKUP(J$10, T.RefPortCurrencyCorp[Issuer], T.RefPortCurrencyCorp[RC Yield Cash Flow]), _xlpm.IER, $U$49, _xlpm.DUR, J13, _xlpm.CF * (1 + _xlpm.IER)^(-_xlpm.DUR)) -> 0.295183238 | K49: =_xlfn.LET(_xlpm.CF, _xlfn.XLOOKUP(K$10, T.RefPortCurrencyCorp[Issuer], T.RefPortCurrencyCorp[RC Yield Cash Flow]), _xlpm.IER, $U$49, _xlpm.DUR, K13, _xlpm.CF * (1 + _xlpm.IER)^(-_xlpm.DUR)) -> 0.1323326677 | L49: =_xlfn.LET(_xlpm.CF, _xlfn.XLOOKUP(L$10, T.RefPortCurrencyCorp[Issuer], T.RefPortCurrencyCorp[RC Yield Cash Flow]), _xlpm.IER, $U$49, _xlpm.DUR, L13, _xlpm.CF * (1 + _xlpm.IER)^(-_xlpm.DUR)) -> 0.01031910182 | M49: =_xlfn.LET(_xlpm.CF, _xlfn.XLOOKUP(M$10, T.RefPortCurrencyCorp[Issuer], T.RefPortCurrencyCorp[RC Yield Cash Flow]), _xlpm.IER, $U$49, _xlpm.DUR, M13, _xlpm.CF * (1 + _xlpm.IER)^(-_xlpm.DUR)) -> 0.04086351942 | N49: =_xlfn.LET(_xlpm.CF, _xlfn.XLOOKUP(N$10, T.RefPortCurrencyCorp[Issuer], T.RefPortCurrencyCorp[RC Yield Cash Flow]), _xlpm.IER, $U$49, _xlpm.DUR, N13, _xlpm.CF * (1 + _xlpm.IER)^(-_xlpm.DUR)) -> 0.04116829683 | O49: =_xlfn.LET(_xlpm.CF, _xlfn.XLOOKUP(O$10, T.RefPortCurrencyCorp[Issuer], T.RefPortCurrencyCorp[RC Yield Cash Flow]), _xlpm.IER, $U$49, _xlpm.DUR, O13, _xlpm.CF * (1 + _xlpm.IER)^(-_xlpm.DUR)) -> 0.09143327745 | P49: =_xlfn.LET(_xlpm.CF, _xlfn.XLOOKUP(P$10, T.RefPortCurrencyCorp[Issuer], T.RefPortCurrencyCorp[RC Yield Cash Flow]), _xlpm.IER, $U$49, _xlpm.DUR, P13, _xlpm.CF * (1 + _xlpm.IER)^(-_xlpm.DUR)) -> 0.1322033677 | Q49: =_xlfn.LET(_xlpm.CF, _xlfn.XLOOKUP(Q$10, T.RefPortCurrencyCorp[Issuer], T.RefPortCurrencyCorp[RC Yield Cash Flow]), _xlpm.IER, $U$49, _xlpm.DUR, Q13, _xlpm.CF * (1 + _xlpm.IER)^(-_xlpm.DUR)) -> 0.01036110321 | S49: =SUM(H49:Q49) -> 1.01691399 | T49: =(SUM(H42:Q42)-S49)^2 -> 5.801105856e-09 | U49: 0.02509209345
F51: Portfolio spread and risk correction | H51: Total
F52: Portfolio spread | H52: =V.IER_Yield_Corp_Cur-V.IER_RFR_Corp_Cur -> 0.01023398142
F53: Portfolio risk correction | H53: =V.IER_Yield_Corp_Cur-V.IER_RCYield_Corp_Cur -> 0.005013328796

Sheet S&RC Gov Country
V3: ©EIOPA, 2026.
F6: Country RCS: Government Bonds
F8: Model Bond Calculations | S8: RFR TD
F10: Issuer | G10: AT | H10: BE | I10: FI | J10: FR | K10: DE | L10: IE | M10: IT | N10: NL | O10: PT | P10: ES | Q10: US
F11: Issuer currency | G11: EUR | H11: EUR | I11: EUR | J11: EUR | K11: EUR | L11: EUR | M11: EUR | N11: EUR | O11: EUR | P11: EUR | Q11: USD
F12: Relative market value | G12: =_xlfn.XLOOKUP(G$10, T.RefPortMacroGov[Issuer], T.RefPortMacroGov[Composition]) -> 0.01 | H12: =_xlfn.XLOOKUP(H$10, T.RefPortMacroGov[Issuer], T.RefPortMacroGov[Composition]) -> 0.03 | I12: =_xlfn.XLOOKUP(I$10, T.RefPortMacroGov[Issuer], T.RefPortMacroGov[Composition]) -> 0.01 | J12: =_xlfn.XLOOKUP(J$10, T.RefPortMacroGov[Issuer], T.RefPortMacroGov[Composition]) -> 0.08 | K12: =_xlfn.XLOOKUP(K$10, T.RefPortMacroGov[Issuer], T.RefPortMacroGov[Composition]) -> 0.04 | L12: =_xlfn.XLOOKUP(L$10, T.RefPortMacroGov[Issuer], T.RefPortMacroGov[Composition]) -> 0.01 | M12: =_xlfn.XLOOKUP(M$10, T.RefPortMacroGov[Issuer], T.RefPortMacroGov[Composition]) -> 0.69 | N12: =_xlfn.XLOOKUP(N$10, T.RefPortMacroGov[Issuer], T.RefPortMacroGov[Composition]) -> 0.01 | O12: =_xlfn.XLOOKUP(O$10, T.RefPortMacroGov[Issuer], T.RefPortMacroGov[Composition]) -> 0.01 | P12: =_xlfn.XLOOKUP(P$10, T.RefPortMacroGov[Issuer], T.RefPortMacroGov[Composition]) -> 0.09 | Q12: =_xlfn.XLOOKUP(Q$10, T.RefPortMacroGov[Issuer], T.RefPortMacroGov[Composition]) -> 0.02
F13: Duration [Y] | G13: =_xlfn.XLOOKUP(G$10, T.RefPortMacroGov[Issuer], T.RefPortMacroGov[Duration '[Y']]) -> 7.9 | H13: =_xlfn.XLOOKUP(H$10, T.RefPortMacroGov[Issuer], T.RefPortMacroGov[Duration '[Y']]) -> 12.2 | I13: =_xlfn.XLOOKUP(I$10, T.RefPortMacroGov[Issuer], T.RefPortMacroGov[Duration '[Y']]) -> 6.3 | J13: =_xlfn.XLOOKUP(J$10, T.RefPortMacroGov[Issuer], T.RefPortMacroGov[Duration '[Y']]) -> 8.7 | K13: =_xlfn.XLOOKUP(K$10, T.RefPortMacroGov[Issuer], T.RefPortMacroGov[Duration '[Y']]) -> 5.7 | L13: =_xlfn.XLOOKUP(L$10, T.RefPortMacroGov[Issuer], T.RefPortMacroGov[Duration '[Y']]) -> 9.8 | M13: =_xlfn.XLOOKUP(M$10, T.RefPortMacroGov[Issuer], T.RefPortMacroGov[Duration '[Y']]) -> 6.8 | N13: =_xlfn.XLOOKUP(N$10, T.RefPortMacroGov[Issuer], T.RefPortMacroGov[Duration '[Y']]) -> 5.9 | O13: =_xlfn.XLOOKUP(O$10, T.RefPortMacroGov[Issuer], T.RefPortMacroGov[Duration '[Y']]) -> 9.7 | P13: =_xlfn.XLOOKUP(P$10, T.RefPortMacroGov[Issuer], T.RefPortMacroGov[Duration '[Y']]) -> 10.5 | Q13: =_xlfn.XLOOKUP(Q$10, T.RefPortMacroGov[Issuer], T.RefPortMacroGov[Duration '[Y']]) -> 5.2
F14: Integer D less than or equal to the duration [Y] | G14: =INT(G$13) -> 7 | H14: =INT(H$13) -> 12 | I14: 6 | J14: 8 | K14: 5 | L14: 9 | M14: 6 | N14: 5 | O14: 9 | P14: 10 | Q14: 5
F15: Integer D+1 [Y] | G15: =G14+1 -> 8 | H15: =H14+1 -> 13 | I15: 7 | J15: 9 | K15: 6 | L15: 10 | M15: 7 | N15: 6 | O15: 10 | P15: 11 | Q15: =Q14+1 -> 6
F17: Linear interpolation of market yields before risk correction
F18: Market yield before risk correction corresponding to D | G18: =_xlfn.LET(_xlpm.MATURITY, _xlfn.XMATCH(G14, T.GovRates[Maturity '[Y']], 0, 1), _xlpm.COUNTRY_COLUMN, _xlfn.XMATCH(G$10,T.GovRates[#Headers],0,1), INDEX(T.GovRates[], _xlpm.MATURITY, _xlpm.COUNTRY_COLUMN)) -> 0.02812001845 | H18: =_xlfn.LET(_xlpm.MATURITY, _xlfn.XMATCH(H14, T.GovRates[Maturity '[Y']], 0, 1), _xlpm.COUNTRY_COLUMN, _xlfn.XMATCH(H$10,T.GovRates[#Headers],0,1), INDEX(T.GovRates[], _xlpm.MATURITY, _xlpm.COUNTRY_COLUMN)) -> 0.03245772264 | I18: =_xlfn.LET(_xlpm.MATURITY, _xlfn.XMATCH(I14, T.GovRates[Maturity '[Y']], 0, 1), _xlpm.COUNTRY_COLUMN, _xlfn.XMATCH(I$10,T.GovRates[#Headers],0,1), INDEX(T.GovRates[], _xlpm.MATURITY, _xlpm.COUNTRY_COLUMN)) -> 0.02614621391 | J18: =_xlfn.LET(_xlpm.MATURITY, _xlfn.XMATCH(J14, T.GovRates[Maturity '[Y']], 0, 1), _xlpm.COUNTRY_COLUMN, _xlfn.XMATCH(J$10,T.GovRates[#Headers],0,1), INDEX(T.GovRates[], _xlpm.MATURITY, _xlpm.COUNTRY_COLUMN)) -> 0.02804588903 | K18: =_xlfn.LET(_xlpm.MATURITY, _xlfn.XMATCH(K14, T.GovRates[Maturity '[Y']], 0, 1), _xlpm.COUNTRY_COLUMN, _xlfn.XMATCH(K$10,T.GovRates[#Headers],0,1), INDEX(T.GovRates[], _xlpm.MATURITY, _xlpm.COUNTRY_COLUMN)) -> 0.02186245411 | L18: =_xlfn.LET(_xlpm.MATURITY, _xlfn.XMATCH(L14, T.GovRates[Maturity '[Y']], 0, 1), _xlpm.COUNTRY_COLUMN, _xlfn.XMATCH(L$10,T.GovRates[#Headers],0,1), INDEX(T.GovRates[], _xlpm.MATURITY, _xlpm.COUNTRY_COLUMN)) -> 0.0259872146 | M18: =_xlfn.LET(_xlpm.MATURITY, _xlfn.XMATCH(M14, T.GovRates[Maturity '[Y']], 0, 1), _xlpm.COUNTRY_COLUMN, _xlfn.XMATCH(M$10,T.GovRates[#Headers],0,1), INDEX(T.GovRates[], _xlpm.MATURITY, _xlpm.COUNTRY_COLUMN)) -> 0.02934643276 | N18: =_xlfn.LET(_xlpm.MATURITY, _xlfn.XMATCH(N14, T.GovRates[Maturity '[Y']], 0, 1), _xlpm.COUNTRY_COLUMN, _xlfn.XMATCH(N$10,T.GovRates[#Headers],0,1), INDEX(T.GovRates[], _xlpm.MATURITY, _xlpm.COUNTRY_COLUMN)) -> 0.02330262403 | O18: =_xlfn.LET(_xlpm.MATURITY, _xlfn.XMATCH(O14, T.GovRates[Maturity '[Y']], 0, 1), _xlpm.COUNTRY_COLUMN, _xlfn.XMATCH(O$10,T.GovRates[#Headers],0,1), INDEX(T.GovRates[], _xlpm.MATURITY, _xlpm.COUNTRY_COLUMN)) -> 0.02837436266 | P18: =_xlfn.LET(_xlpm.MATURITY, _xlfn.XMATCH(P14, T.GovRates[Maturity '[Y']], 0, 1), _xlpm.COUNTRY_COLUMN, _xlfn.XMATCH(P$10,T.GovRates[#Headers],0,1), INDEX(T.GovRates[], _xlpm.MATURITY, _xlpm.COUNTRY_COLUMN)) -> 0.03192084475 | Q18: =_xlfn.LET(_xlpm.MATURITY, _xlfn.XMATCH(Q14, T.GovRates[Maturity '[Y']], 0, 1), _xlpm.COUNTRY_COLUMN, _xlfn.XMATCH(Q$10,T.GovRates[#Headers],0,1), INDEX(T.GovRates[], _xlpm.MATURITY, _xlpm.COUNTRY_COLUMN)) -> 0.03948536908
F19: Market yield before risk correction corresponding to D+1 | G19: =_xlfn.LET(_xlpm.MATURITY, _xlfn.XMATCH(G15, T.GovRates[Maturity '[Y']], 0, 1), _xlpm.COUNTRY_COLUMN, _xlfn.XMATCH(G$10,T.GovRates[#Headers],0,1), INDEX(T.GovRates[], _xlpm.MATURITY, _xlpm.COUNTRY_COLUMN)) -> 0.02858398689 | H19: =_xlfn.LET(_xlpm.MATURITY, _xlfn.XMATCH(H15, T.GovRates[Maturity '[Y']], 0, 1), _xlpm.COUNTRY_COLUMN, _xlfn.XMATCH(H$10,T.GovRates[#Headers],0,1), INDEX(T.GovRates[], _xlpm.MATURITY, _xlpm.COUNTRY_COLUMN)) -> 0.03376536465 | I19: =_xlfn.LET(_xlpm.MATURITY, _xlfn.XMATCH(I15, T.GovRates[Maturity '[Y']], 0, 1), _xlpm.COUNTRY_COLUMN, _xlfn.XMATCH(I$10,T.GovRates[#Headers],0,1), INDEX(T.GovRates[], _xlpm.MATURITY, _xlpm.COUNTRY_COLUMN)) -> 0.02488373661 | J19: =_xlfn.LET(_xlpm.MATURITY, _xlfn.XMATCH(J15, T.GovRates[Maturity '[Y']], 0, 1), _xlpm.COUNTRY_COLUMN, _xlfn.XMATCH(J$10,T.GovRates[#Headers],0,1), INDEX(T.GovRates[], _xlpm.MATURITY, _xlpm.COUNTRY_COLUMN)) -> 0.03103336342 | K19: =_xlfn.LET(_xlpm.MATURITY, _xlfn.XMATCH(K15, T.GovRates[Maturity '[Y']], 0, 1), _xlpm.COUNTRY_COLUMN, _xlfn.XMATCH(K$10,T.GovRates[#Headers],0,1), INDEX(T.GovRates[], _xlpm.MATURITY, _xlpm.COUNTRY_COLUMN)) -> 0.02341469612 | L19: =_xlfn.LET(_xlpm.MATURITY, _xlfn.XMATCH(L15, T.GovRates[Maturity '[Y']], 0, 1), _xlpm.COUNTRY_COLUMN, _xlfn.XMATCH(L$10,T.GovRates[#Headers],0,1), INDEX(T.GovRates[], _xlpm.MATURITY, _xlpm.COUNTRY_COLUMN)) -> 0.02885065406 | M19: =_xlfn.LET(_xlpm.MATURITY, _xlfn.XMATCH(M15, T.GovRates[Maturity '[Y']], 0, 1), _xlpm.COUNTRY_COLUMN, _xlfn.XMATCH(M$10,T.GovRates[#Headers],0,1), INDEX(T.GovRates[], _xlpm.MATURITY, _xlpm.COUNTRY_COLUMN)) -> 0.02981396428 | N19: =_xlfn.LET(_xlpm.MATURITY, _xlfn.XMATCH(N15, T.GovRates[Maturity '[Y']], 0, 1), _xlpm.COUNTRY_COLUMN, _xlfn.XMATCH(N$10,T.GovRates[#Headers],0,1), INDEX(T.GovRates[], _xlpm.MATURITY, _xlpm.COUNTRY_COLUMN)) -> 0.02355714266 | O19: =_xlfn.LET(_xlpm.MATURITY, _xlfn.XMATCH(O15, T.GovRates[Maturity '[Y']], 0, 1), _xlpm.COUNTRY_COLUMN, _xlfn.XMATCH(O$10,T.GovRates[#Headers],0,1), INDEX(T.GovRates[], _xlpm.MATURITY, _xlpm.COUNTRY_COLUMN)) -> 0.02894481215 | P19: =_xlfn.LET(_xlpm.MATURITY, _xlfn.XMATCH(P15, T.GovRates[Maturity '[Y']], 0, 1), _xlpm.COUNTRY_COLUMN, _xlfn.XMATCH(P$10,T.GovRates[#Headers],0,1), INDEX(T.GovRates[], _xlpm.MATURITY, _xlpm.COUNTRY_COLUMN)) -> 0.0312753226 | Q19: =_xlfn.LET(_xlpm.MATURITY, _xlfn.XMATCH(Q15, T.GovRates[Maturity '[Y']], 0, 1), _xlpm.COUNTRY_COLUMN, _xlfn.XMATCH(Q$10,T.GovRates[#Headers],0,1), INDEX(T.GovRates[], _xlpm.MATURITY, _xlpm.COUNTRY_COLUMN)) -> 0.04199542858
F20: Linear Interpolation of market yield before risk correction | G20: =G18+(G19-G18)/(G15-G14)*(G$13-G14) -> 0.02853759005 | H20: 0.03271925104 | I20: 0.02576747072 | J20: 0.0301371211 | K20: 0.02294902352 | L20: 0.02827796617 | M20: 0.02972045798 | N20: 0.0235316908 | O20: 0.0287736773 | P20: 0.03159808368 | Q20: 0.03998738098
F22: Linear interpolation of risk-free rates
F23: Basic risk-free rate corresponding to D | G23: =_xlfn.LET(_xlpm.MATURITY, _xlfn.XMATCH(G14, T.RFR[Maturity '[Y']], 0, 1), _xlpm.COUNTRY_COLUMN, _xlfn.XMATCH(G$11,T.RFR[#Headers],0,1), INDEX(T.RFR[], _xlpm.MATURITY, _xlpm.COUNTRY_COLUMN)) -> 0.02063078763 | H23: =_xlfn.LET(_xlpm.MATURITY, _xlfn.XMATCH(H14, T.RFR[Maturity '[Y']], 0, 1), _xlpm.COUNTRY_COLUMN, _xlfn.XMATCH(H$11,T.RFR[#Headers],0,1), INDEX(T.RFR[], _xlpm.MATURITY, _xlpm.COUNTRY_COLUMN)) -> 0.0239771566 | I23: =_xlfn.LET(_xlpm.MATURITY, _xlfn.XMATCH(I14, T.RFR[Maturity '[Y']], 0, 1), _xlpm.COUNTRY_COLUMN, _xlfn.XMATCH(I$11,T.RFR[#Headers],0,1), INDEX(T.RFR[], _xlpm.MATURITY, _xlpm.COUNTRY_COLUMN)) -> 0.02068612671 | J23: =_xlfn.LET(_xlpm.MATURITY, _xlfn.XMATCH(J14, T.RFR[Maturity '[Y']], 0, 1), _xlpm.COUNTRY_COLUMN, _xlfn.XMATCH(J$11,T.RFR[#Headers],0,1), INDEX(T.RFR[], _xlpm.MATURITY, _xlpm.COUNTRY_COLUMN)) -> 0.02351730711 | K23: =_xlfn.LET(_xlpm.MATURITY, _xlfn.XMATCH(K14, T.RFR[Maturity '[Y']], 0, 1), _xlpm.COUNTRY_COLUMN, _xlfn.XMATCH(K$11,T.RFR[#Headers],0,1), INDEX(T.RFR[], _xlpm.MATURITY, _xlpm.COUNTRY_COLUMN)) -> 0.01892195156 | L23: =_xlfn.LET(_xlpm.MATURITY, _xlfn.XMATCH(L14, T.RFR[Maturity '[Y']], 0, 1), _xlpm.COUNTRY_COLUMN, _xlfn.XMATCH(L$11,T.RFR[#Headers],0,1), INDEX(T.RFR[], _xlpm.MATURITY, _xlpm.COUNTRY_COLUMN)) -> 0.02223538469 | M23: =_xlfn.LET(_xlpm.MATURITY, _xlfn.XMATCH(M14, T.RFR[Maturity '[Y']], 0, 1), _xlpm.COUNTRY_COLUMN, _xlfn.XMATCH(M$11,T.RFR[#Headers],0,1), INDEX(T.RFR[], _xlpm.MATURITY, _xlpm.COUNTRY_COLUMN)) -> 0.02068612671 | N23: =_xlfn.LET(_xlpm.MATURITY, _xlfn.XMATCH(N14, T.RFR[Maturity '[Y']], 0, 1), _xlpm.COUNTRY_COLUMN, _xlfn.XMATCH(N$11,T.RFR[#Headers],0,1), INDEX(T.RFR[], _xlpm.MATURITY, _xlpm.COUNTRY_COLUMN)) -> 0.01892195156 | O23: =_xlfn.LET(_xlpm.MATURITY, _xlfn.XMATCH(O14, T.RFR[Maturity '[Y']], 0, 1), _xlpm.COUNTRY_COLUMN, _xlfn.XMATCH(O$11,T.RFR[#Headers],0,1), INDEX(T.RFR[], _xlpm.MATURITY, _xlpm.COUNTRY_COLUMN)) -> 0.02223538469 | P23: =_xlfn.LET(_xlpm.MATURITY, _xlfn.XMATCH(P14, T.RFR[Maturity '[Y']], 0, 1), _xlpm.COUNTRY_COLUMN, _xlfn.XMATCH(P$11,T.RFR[#Headers],0,1), INDEX(T.RFR[], _xlpm.MATURITY, _xlpm.COUNTRY_COLUMN)) -> 0.02550812284 | Q23: =_xlfn.LET(_xlpm.MATURITY, _xlfn.XMATCH(Q14, T.RFR[Maturity '[Y']], 0, 1), _xlpm.COUNTRY_COLUMN, _xlfn.XMATCH(Q$11,T.RFR[#Headers],0,1), INDEX(T.RFR[], _xlpm.MATURITY, _xlpm.COUNTRY_COLUMN)) -> 0.03680386686
F24: Basic risk-free rate corresponding to D+1 | G24: =_xlfn.LET(_xlpm.MATURITY, _xlfn.XMATCH(G15, T.RFR[Maturity '[Y']], 0, 1), _xlpm.COUNTRY_COLUMN, _xlfn.XMATCH(G$11,T.RFR[#Headers],0,1), INDEX(T.RFR[], _xlpm.MATURITY, _xlpm.COUNTRY_COLUMN)) -> 0.02351730711 | H24: =_xlfn.LET(_xlpm.MATURITY, _xlfn.XMATCH(H15, T.RFR[Maturity '[Y']], 0, 1), _xlpm.COUNTRY_COLUMN, _xlfn.XMATCH(H$11,T.RFR[#Headers],0,1), INDEX(T.RFR[], _xlpm.MATURITY, _xlpm.COUNTRY_COLUMN)) -> 0.02402050642 | I24: =_xlfn.LET(_xlpm.MATURITY, _xlfn.XMATCH(I15, T.RFR[Maturity '[Y']], 0, 1), _xlpm.COUNTRY_COLUMN, _xlfn.XMATCH(I$11,T.RFR[#Headers],0,1), INDEX(T.RFR[], _xlpm.MATURITY, _xlpm.COUNTRY_COLUMN)) -> 0.02063078763 | J24: =_xlfn.LET(_xlpm.MATURITY, _xlfn.XMATCH(J15, T.RFR[Maturity '[Y']], 0, 1), _xlpm.COUNTRY_COLUMN, _xlfn.XMATCH(J$11,T.RFR[#Headers],0,1), INDEX(T.RFR[], _xlpm.MATURITY, _xlpm.COUNTRY_COLUMN)) -> 0.02223538469 | K24: =_xlfn.LET(_xlpm.MATURITY, _xlfn.XMATCH(K15, T.RFR[Maturity '[Y']], 0, 1), _xlpm.COUNTRY_COLUMN, _xlfn.XMATCH(K$11,T.RFR[#Headers],0,1), INDEX(T.RFR[], _xlpm.MATURITY, _xlpm.COUNTRY_COLUMN)) -> 0.02068612671 | L24: =_xlfn.LET(_xlpm.MATURITY, _xlfn.XMATCH(L15, T.RFR[Maturity '[Y']], 0, 1), _xlpm.COUNTRY_COLUMN, _xlfn.XMATCH(L$11,T.RFR[#Headers],0,1), INDEX(T.RFR[], _xlpm.MATURITY, _xlpm.COUNTRY_COLUMN)) -> 0.02550812284 | M24: =_xlfn.LET(_xlpm.MATURITY, _xlfn.XMATCH(M15, T.RFR[Maturity '[Y']], 0, 1), _xlpm.COUNTRY_COLUMN, _xlfn.XMATCH(M$11,T.RFR[#Headers],0,1), INDEX(T.RFR[], _xlpm.MATURITY, _xlpm.COUNTRY_COLUMN)) -> 0.02063078763 | N24: =_xlfn.LET(_xlpm.MATURITY, _xlfn.XMATCH(N15, T.RFR[Maturity '[Y']], 0, 1), _xlpm.COUNTRY_COLUMN, _xlfn.XMATCH(N$11,T.RFR[#Headers],0,1), INDEX(T.RFR[], _xlpm.MATURITY, _xlpm.COUNTRY_COLUMN)) -> 0.02068612671 | O24: =_xlfn.LET(_xlpm.MATURITY, _xlfn.XMATCH(O15, T.RFR[Maturity '[Y']], 0, 1), _xlpm.COUNTRY_COLUMN, _xlfn.XMATCH(O$11,T.RFR[#Headers],0,1), INDEX(T.RFR[], _xlpm.MATURITY, _xlpm.COUNTRY_COLUMN)) -> 0.02550812284 | P24: =_xlfn.LET(_xlpm.MATURITY, _xlfn.XMATCH(P15, T.RFR[Maturity '[Y']], 0, 1), _xlpm.COUNTRY_COLUMN, _xlfn.XMATCH(P$11,T.RFR[#Headers],0,1), INDEX(T.RFR[], _xlpm.MATURITY, _xlpm.COUNTRY_COLUMN)) -> 0.02386920061 | Q24: =_xlfn.LET(_xlpm.MATURITY, _xlfn.XMATCH(Q15, T.RFR[Maturity '[Y']], 0, 1), _xlpm.COUNTRY_COLUMN, _xlfn.XMATCH(Q$11,T.RFR[#Headers],0,1), INDEX(T.RFR[], _xlpm.MATURITY, _xlpm.COUNTRY_COLUMN)) -> 0.03613454861
F25: Linear interpolation of basic risk-free rate | G25: =G23+(G24-G23)/(G15-G14) * (G$13-G14) -> 0.02322865516 | H25: =H23+(H24-H23)/(H15-H14) * (H$13-H14) -> 0.02398582657 | I25: 0.02066952498 | J25: 0.02261996142 | K25: 0.02015687416 | L25: 0.02485357521 | M25: 0.02064185544 | N25: =N23+(N24-N23)/(N15-N14) * (N$13-N14) -> 0.02050970919 | O25: 0.0245263014 | P25: 0.02468866172 | Q25: 0.03667000321
F27: Linear interpolation of long-term average spreads
F28: Long-term average spread corresponding to D | G28: =_xlfn.LET(_xlpm.MATURITY, _xlfn.XMATCH(G14, T.LTASGov[Maturity '[Y']], 0, 1), _xlpm.COUNTRY_COLUMN, _xlfn.XMATCH(G$10,T.LTASGov[#Headers],0,1), INDEX(T.LTASGov[], _xlpm.MATURITY, _xlpm.COUNTRY_COLUMN) ) -> -1.246824278e-05 | H28: =_xlfn.LET(_xlpm.MATURITY, _xlfn.XMATCH(H14, T.LTASGov[Maturity '[Y']], 0, 1), _xlpm.COUNTRY_COLUMN, _xlfn.XMATCH(H$10,T.LTASGov[#Headers],0,1), INDEX(T.LTASGov[], _xlpm.MATURITY, _xlpm.COUNTRY_COLUMN) ) -> 0.003564163989 | I28: =_xlfn.LET(_xlpm.MATURITY, _xlfn.XMATCH(I14, T.LTASGov[Maturity '[Y']], 0, 1), _xlpm.COUNTRY_COLUMN, _xlfn.XMATCH(I$10,T.LTASGov[#Headers],0,1), INDEX(T.LTASGov[], _xlpm.MATURITY, _xlpm.COUNTRY_COLUMN) ) -> -0.002215884266 | J28: =_xlfn.LET(_xlpm.MATURITY, _xlfn.XMATCH(J14, T.LTASGov[Maturity '[Y']], 0, 1), _xlpm.COUNTRY_COLUMN, _xlfn.XMATCH(J$10,T.LTASGov[#Headers],0,1), INDEX(T.LTASGov[], _xlpm.MATURITY, _xlpm.COUNTRY_COLUMN) ) -> 0.0009640029598 | K28: =_xlfn.LET(_xlpm.MATURITY, _xlfn.XMATCH(K14, T.LTASGov[Maturity '[Y']], 0, 1), _xlpm.COUNTRY_COLUMN, _xlfn.XMATCH(K$10,T.LTASGov[#Headers],0,1), INDEX(T.LTASGov[], _xlpm.MATURITY, _xlpm.COUNTRY_COLUMN) ) -> -0.002397052687 | L28: =_xlfn.LET(_xlpm.MATURITY, _xlfn.XMATCH(L14, T.LTASGov[Maturity '[Y']], 0, 1), _xlpm.COUNTRY_COLUMN, _xlfn.XMATCH(L$10,T.LTASGov[#Headers],0,1), INDEX(T.LTASGov[], _xlpm.MATURITY, _xlpm.COUNTRY_COLUMN) ) -> 0.008663638934 | M28: =_xlfn.LET(_xlpm.MATURITY, _xlfn.XMATCH(M14, T.LTASGov[Maturity '[Y']], 0, 1), _xlpm.COUNTRY_COLUMN, _xlfn.XMATCH(M$10,T.LTASGov[#Headers],0,1), INDEX(T.LTASGov[], _xlpm.MATURITY, _xlpm.COUNTRY_COLUMN) ) -> 0.01039647364 | N28: =_xlfn.LET(_xlpm.MATURITY, _xlfn.XMATCH(N14, T.LTASGov[Maturity '[Y']], 0, 1), _xlpm.COUNTRY_COLUMN, _xlfn.XMATCH(N$10,T.LTASGov[#Headers],0,1), INDEX(T.LTASGov[], _xlpm.MATURITY, _xlpm.COUNTRY_COLUMN) ) -> -0.000408217327 | O28: =_xlfn.LET(_xlpm.MATURITY, _xlfn.XMATCH(O14, T.LTASGov[Maturity '[Y']], 0, 1), _xlpm.COUNTRY_COLUMN, _xlfn.XMATCH(O$10,T.LTASGov[#Headers],0,1), INDEX(T.LTASGov[], _xlpm.MATURITY, _xlpm.COUNTRY_COLUMN) ) -> 0.01521696107 | P28: =_xlfn.LET(_xlpm.MATURITY, _xlfn.XMATCH(P14, T.LTASGov[Maturity '[Y']], 0, 1), _xlpm.COUNTRY_COLUMN, _xlfn.XMATCH(P$10,T.LTASGov[#Headers],0,1), INDEX(T.LTASGov[], _xlpm.MATURITY, _xlpm.COUNTRY_COLUMN) ) -> 0.006666439328 | Q28: =_xlfn.LET(_xlpm.MATURITY, _xlfn.XMATCH(Q14, T.LTASGov[Maturity '[Y']], 0, 1), _xlpm.COUNTRY_COLUMN, _xlfn.XMATCH(Q$10,T.LTASGov[#Headers],0,1), INDEX(T.LTASGov[], _xlpm.MATURITY, _xlpm.COUNTRY_COLUMN) ) -> -0.0008359442843
F29: Long-term average spread corresponding to D+1 | G29: =_xlfn.LET(_xlpm.MATURITY, _xlfn.XMATCH(G15, T.LTASGov[Maturity '[Y']], 0, 1), _xlpm.COUNTRY_COLUMN, _xlfn.XMATCH(G$10,T.LTASGov[#Headers],0,1), INDEX(T.LTASGov[], _xlpm.MATURITY, _xlpm.COUNTRY_COLUMN) ) -> 0.002556499884 | H29: =_xlfn.LET(_xlpm.MATURITY, _xlfn.XMATCH(H15, T.LTASGov[Maturity '[Y']], 0, 1), _xlpm.COUNTRY_COLUMN, _xlfn.XMATCH(H$10,T.LTASGov[#Headers],0,1), INDEX(T.LTASGov[], _xlpm.MATURITY, _xlpm.COUNTRY_COLUMN) ) -> 0.003564163989 | I29: =_xlfn.LET(_xlpm.MATURITY, _xlfn.XMATCH(I15, T.LTASGov[Maturity '[Y']], 0, 1), _xlpm.COUNTRY_COLUMN, _xlfn.XMATCH(I$10,T.LTASGov[#Headers],0,1), INDEX(T.LTASGov[], _xlpm.MATURITY, _xlpm.COUNTRY_COLUMN) ) -> 0.000173343795 | J29: =_xlfn.LET(_xlpm.MATURITY, _xlfn.XMATCH(J15, T.LTASGov[Maturity '[Y']], 0, 1), _xlpm.COUNTRY_COLUMN, _xlfn.XMATCH(J$10,T.LTASGov[#Headers],0,1), INDEX(T.LTASGov[], _xlpm.MATURITY, _xlpm.COUNTRY_COLUMN) ) -> 0.002267590981 | K29: =_xlfn.LET(_xlpm.MATURITY, _xlfn.XMATCH(K15, T.LTASGov[Maturity '[Y']], 0, 1), _xlpm.COUNTRY_COLUMN, _xlfn.XMATCH(K$10,T.LTASGov[#Headers],0,1), INDEX(T.LTASGov[], _xlpm.MATURITY, _xlpm.COUNTRY_COLUMN) ) -> -0.001662714658 | L29: =_xlfn.LET(_xlpm.MATURITY, _xlfn.XMATCH(L15, T.LTASGov[Maturity '[Y']], 0, 1), _xlpm.COUNTRY_COLUMN, _xlfn.XMATCH(L$10,T.LTASGov[#Headers],0,1), INDEX(T.LTASGov[], _xlpm.MATURITY, _xlpm.COUNTRY_COLUMN) ) -> 0.009774338753 | M29: =_xlfn.LET(_xlpm.MATURITY, _xlfn.XMATCH(M15, T.LTASGov[Maturity '[Y']], 0, 1), _xlpm.COUNTRY_COLUMN, _xlfn.XMATCH(M$10,T.LTASGov[#Headers],0,1), INDEX(T.LTASGov[], _xlpm.MATURITY, _xlpm.COUNTRY_COLUMN) ) -> 0.008149382223 | N29: =_xlfn.LET(_xlpm.MATURITY, _xlfn.XMATCH(N15, T.LTASGov[Maturity '[Y']], 0, 1), _xlpm.COUNTRY_COLUMN, _xlfn.XMATCH(N$10,T.LTASGov[#Headers],0,1), INDEX(T.LTASGov[], _xlpm.MATURITY, _xlpm.COUNTRY_COLUMN) ) -> -0.001446665463 | O29: =_xlfn.LET(_xlpm.MATURITY, _xlfn.XMATCH(O15, T.LTASGov[Maturity '[Y']], 0, 1), _xlpm.COUNTRY_COLUMN, _xlfn.XMATCH(O$10,T.LTASGov[#Headers],0,1), INDEX(T.LTASGov[], _xlpm.MATURITY, _xlpm.COUNTRY_COLUMN) ) -> 0.01282772933 | P29: =_xlfn.LET(_xlpm.MATURITY, _xlfn.XMATCH(P15, T.LTASGov[Maturity '[Y']], 0, 1), _xlpm.COUNTRY_COLUMN, _xlfn.XMATCH(P$10,T.LTASGov[#Headers],0,1), INDEX(T.LTASGov[], _xlpm.MATURITY, _xlpm.COUNTRY_COLUMN) ) -> 0.006666439328 | Q29: =_xlfn.LET(_xlpm.MATURITY, _xlfn.XMATCH(Q15, T.LTASGov[Maturity '[Y']], 0, 1), _xlpm.COUNTRY_COLUMN, _xlfn.XMATCH(Q$10,T.LTASGov[#Headers],0,1), INDEX(T.LTASGov[], _xlpm.MATURITY, _xlpm.COUNTRY_COLUMN) ) -> 8.321870166e-05
F30: Linear interpolation of LTAS | G30: =G28+(G29-G28)/(G15-G14)*(G13-G14) -> 0.002299603071 | H30: =H28+(H29-H28)/(H15-H14)*(H13-H14) -> 0.003564163989 | I30: -0.001499115848 | J30: 0.001876514575 | K30: -0.001883016066 | L30: 0.009552198789 | M30: 0.008598800507 | N30: =N28+(N29-N28)/(N15-N14)*(N13-N14) -> -0.001342820649 | O30: 0.01354449885 | P30: 0.006666439328 | Q30: -0.0006521116871
F32: Risk-corrected market yields
F33: Spread | G33: =G20-G25 -> 0.005308934888 | H33: =H20-H25 -> 0.008733424475 | I33: 0.005097945737 | J33: 0.007517159683 | K33: 0.002792149354 | L33: 0.003424390959 | M33: 0.009078602535 | N33: =N20-N25 -> 0.003021981605 | O33: 0.004247375907 | P33: 0.006909421953 | Q33: 0.003317377764
F34: Risk correction | G34: =_xlfn.LET(_xlpm.SPLUS, MAX(G33, 0), _xlpm.LTASPLUS, MAX(G30, 0), _xlpm.RC, 30% * MIN(_xlpm.SPLUS, _xlpm.LTASPLUS) + 20% * MAX(0, MIN(_xlpm.SPLUS - _xlpm.LTASPLUS, _xlpm.LTASPLUS)) + 15% * MAX(0, _xlpm.SPLUS - 2 * _xlpm.LTASPLUS), MIN(_xlpm.RC, 65% * _xlpm.LTASPLUS)) -> 0.001256260848 | H34: =_xlfn.LET(_xlpm.SPLUS, MAX(H33, 0), _xlpm.LTASPLUS, MAX(H30, 0), _xlpm.RC, 30% * MIN(_xlpm.SPLUS, _xlpm.LTASPLUS) + 20% * MAX(0, MIN(_xlpm.SPLUS - _xlpm.LTASPLUS, _xlpm.LTASPLUS)) + 15% * MAX(0, _xlpm.SPLUS - 2 * _xlpm.LTASPLUS), MIN(_xlpm.RC, 65% * _xlpm.LTASPLUS)) -> 0.002022846469 | I34: 0 | J34: 0.001219734474 | K34: 0 | L34: 0.001027317288 | M34: 0.002675600558 | N34: =_xlfn.LET(_xlpm.SPLUS, MAX(N33, 0), _xlpm.LTASPLUS, MAX(N30, 0), _xlpm.RC, 30% * MIN(_xlpm.SPLUS, _xlpm.LTASPLUS) + 20% * MAX(0, MIN(_xlpm.SPLUS - _xlpm.LTASPLUS, _xlpm.LTASPLUS)) + 15% * MAX(0, _xlpm.SPLUS - 2 * _xlpm.LTASPLUS), MIN(_xlpm.RC, 65% * _xlpm.LTASPLUS)) -> 0 | O34: 0.001274212772 | P34: 0.002048528323 | Q34: =_xlfn.LET(_xlpm.SPLUS, MAX(Q33, 0), _xlpm.LTASPLUS, MAX(Q30, 0), _xlpm.RC, 50% * MIN(_xlpm.SPLUS, _xlpm.LTASPLUS) + 40% * MAX(0, MIN(_xlpm.SPLUS - _xlpm.LTASPLUS, _xlpm.LTASPLUS)) + 30% * MAX(0, _xlpm.SPLUS - 2 * _xlpm.LTASPLUS), MIN(_xlpm.RC, 125% * _xlpm.LTASPLUS)) -> 0
F35: Risk-corrected market yield | G35: =G20-G34 -> 0.0272813292 | H35: =H20-H34 -> 0.03069640457 | I35: 0.02576747072 | J35: 0.02891738663 | K35: 0.02294902352 | L35: 0.02725064888 | M35: 0.02704485742 | N35: =N20-N34 -> 0.0235316908 | O35: 0.02749946453 | P35: 0.02954955535 | Q35: 0.03998738098
F37: Model bond market values
F38: Market value market yield model bond | G38: =_xlfn.LET(_xlpm.CF, _xlfn.XLOOKUP(G$10, T.RefPortMacroGov[Issuer], T.RefPortMacroGov[Yield Cash Flow]), _xlpm.IR, G20, _xlpm.DUR, G13, _xlpm.CF * (1 + _xlpm.IR)^(-_xlpm.DUR)) -> 0.01006504814 | H38: =_xlfn.LET(_xlpm.CF, _xlfn.XLOOKUP(H$10, T.RefPortMacroGov[Issuer], T.RefPortMacroGov[Yield Cash Flow]), _xlpm.IR, H20, _xlpm.DUR, H13, _xlpm.CF * (1 + _xlpm.IR)^(-_xlpm.DUR)) -> 0.03093583006 | I38: =_xlfn.LET(_xlpm.CF, _xlfn.XLOOKUP(I$10, T.RefPortMacroGov[Issuer], T.RefPortMacroGov[Yield Cash Flow]), _xlpm.IR, I20, _xlpm.DUR, I13, _xlpm.CF * (1 + _xlpm.IR)^(-_xlpm.DUR)) -> 0.01012471435 | J38: =_xlfn.LET(_xlpm.CF, _xlfn.XLOOKUP(J$10, T.RefPortMacroGov[Issuer], T.RefPortMacroGov[Yield Cash Flow]), _xlpm.IR, J20, _xlpm.DUR, J13, _xlpm.CF * (1 + _xlpm.IR)^(-_xlpm.DUR)) -> 0.08216904201 | K38: =_xlfn.LET(_xlpm.CF, _xlfn.XLOOKUP(K$10, T.RefPortMacroGov[Issuer], T.RefPortMacroGov[Yield Cash Flow]), _xlpm.IR, K20, _xlpm.DUR, K13, _xlpm.CF * (1 + _xlpm.IR)^(-_xlpm.DUR)) -> 0.04021673016 | L38: =_xlfn.LET(_xlpm.CF, _xlfn.XLOOKUP(L$10, T.RefPortMacroGov[Issuer], T.RefPortMacroGov[Yield Cash Flow]), _xlpm.IR, L20, _xlpm.DUR, L13, _xlpm.CF * (1 + _xlpm.IR)^(-_xlpm.DUR)) -> 0.01023217471 | M38: =_xlfn.LET(_xlpm.CF, _xlfn.XLOOKUP(M$10, T.RefPortMacroGov[Issuer], T.RefPortMacroGov[Yield Cash Flow]), _xlpm.IR, M20, _xlpm.DUR, M13, _xlpm.CF * (1 + _xlpm.IR)^(-_xlpm.DUR)) -> 0.7084500999 | N38: =_xlfn.LET(_xlpm.CF, _xlfn.XLOOKUP(N$10, T.RefPortMacroGov[Issuer], T.RefPortMacroGov[Yield Cash Flow]), _xlpm.IR, N20, _xlpm.DUR, N13, _xlpm.CF * (1 + _xlpm.IR)^(-_xlpm.DUR)) -> 0.01012450923 | O38: =_xlfn.LET(_xlpm.CF, _xlfn.XLOOKUP(O$10, T.RefPortMacroGov[Issuer], T.RefPortMacroGov[Yield Cash Flow]), _xlpm.IR, O20, _xlpm.DUR, O13, _xlpm.CF * (1 + _xlpm.IR)^(-_xlpm.DUR)) -> 0.01035278612 | P38: =_xlfn.LET(_xlpm.CF, _xlfn.XLOOKUP(P$10, T.RefPortMacroGov[Issuer], T.RefPortMacroGov[Yield Cash Flow]), _xlpm.IR, P20, _xlpm.DUR, P13, _xlpm.CF * (1 + _xlpm.IR)^(-_xlpm.DUR)) -> 0.09313600646 | Q38: =_xlfn.LET(_xlpm.CF, _xlfn.XLOOKUP(Q$10, T.RefPortMacroGov[Issuer], T.RefPortMacroGov[Yield Cash Flow]), _xlpm.IR, Q20, _xlpm.DUR, Q13, _xlpm.CF * (1 + _xlpm.IR)^(-_xlpm.DUR)) -> 0.02002536987
F39: Market value risk-free yield model bond | G39: =_xlfn.LET(_xlpm.CF, _xlfn.XLOOKUP(G$10, T.RefPortMacroGov[Issuer], T.RefPortMacroGov[RFR Cash Flow]), _xlpm.IR, G25, _xlpm.DUR, G13, _xlpm.CF * (1 + _xlpm.IR)^(-_xlpm.DUR)) -> 0.0101263333 | H39: =_xlfn.LET(_xlpm.CF, _xlfn.XLOOKUP(H$10, T.RefPortMacroGov[Issuer], T.RefPortMacroGov[RFR Cash Flow]), _xlpm.IR, H25, _xlpm.DUR, H13, _xlpm.CF * (1 + _xlpm.IR)^(-_xlpm.DUR)) -> 0.03093681898 | I39: =_xlfn.LET(_xlpm.CF, _xlfn.XLOOKUP(I$10, T.RefPortMacroGov[Issuer], T.RefPortMacroGov[RFR Cash Flow]), _xlpm.IR, I25, _xlpm.DUR, I13, _xlpm.CF * (1 + _xlpm.IR)^(-_xlpm.DUR)) -> 0.01020509623 | J39: =_xlfn.LET(_xlpm.CF, _xlfn.XLOOKUP(J$10, T.RefPortMacroGov[Issuer], T.RefPortMacroGov[RFR Cash Flow]), _xlpm.IR, J25, _xlpm.DUR, J13, _xlpm.CF * (1 + _xlpm.IR)^(-_xlpm.DUR)) -> 0.08180506632 | K39: =_xlfn.LET(_xlpm.CF, _xlfn.XLOOKUP(K$10, T.RefPortMacroGov[Issuer], T.RefPortMacroGov[RFR Cash Flow]), _xlpm.IR, K25, _xlpm.DUR, K13, _xlpm.CF * (1 + _xlpm.IR)^(-_xlpm.DUR)) -> 0.04077519632 | L39: =_xlfn.LET(_xlpm.CF, _xlfn.XLOOKUP(L$10, T.RefPortMacroGov[Issuer], T.RefPortMacroGov[RFR Cash Flow]), _xlpm.IR, L25, _xlpm.DUR, L13, _xlpm.CF * (1 + _xlpm.IR)^(-_xlpm.DUR)) -> 0.01007680291 | M39: =_xlfn.LET(_xlpm.CF, _xlfn.XLOOKUP(M$10, T.RefPortMacroGov[Issuer], T.RefPortMacroGov[RFR Cash Flow]), _xlpm.IR, M25, _xlpm.DUR, M13, _xlpm.CF * (1 + _xlpm.IR)^(-_xlpm.DUR)) -> 0.7067768114 | N39: =_xlfn.LET(_xlpm.CF, _xlfn.XLOOKUP(N$10, T.RefPortMacroGov[Issuer], T.RefPortMacroGov[RFR Cash Flow]), _xlpm.IR, N25, _xlpm.DUR, N13, _xlpm.CF * (1 + _xlpm.IR)^(-_xlpm.DUR)) -> 0.01018738913 | O39: =_xlfn.LET(_xlpm.CF, _xlfn.XLOOKUP(O$10, T.RefPortMacroGov[Issuer], T.RefPortMacroGov[RFR Cash Flow]), _xlpm.IR, O25, _xlpm.DUR, O13, _xlpm.CF * (1 + _xlpm.IR)^(-_xlpm.DUR)) -> 0.01010412682 | P39: =_xlfn.LET(_xlpm.CF, _xlfn.XLOOKUP(P$10, T.RefPortMacroGov[Issuer], T.RefPortMacroGov[RFR Cash Flow]), _xlpm.IR, P25, _xlpm.DUR, P13, _xlpm.CF * (1 + _xlpm.IR)^(-_xlpm.DUR)) -> 0.09117473644 | Q39: =_xlfn.LET(_xlpm.CF, _xlfn.XLOOKUP(Q$10, T.RefPortMacroGov[Issuer], T.RefPortMacroGov[RFR Cash Flow]), _xlpm.IR, Q25, _xlpm.DUR, Q13, _xlpm.CF * (1 + _xlpm.IR)^(-_xlpm.DUR)) -> 0.01998275044
F40: Market value risk-corrected yield model bond | G40: =_xlfn.LET(_xlpm.CF, _xlfn.XLOOKUP(G$10, T.RefPortMacroGov[Issuer], T.RefPortMacroGov[RC Yield Cash Flow]), _xlpm.IR, G35, _xlpm.DUR, G13, _xlpm.CF * (1 + _xlpm.IR)^(-_xlpm.DUR)) -> 0.01012790202 | H40: =_xlfn.LET(_xlpm.CF, _xlfn.XLOOKUP(H$10, T.RefPortMacroGov[Issuer], T.RefPortMacroGov[RC Yield Cash Flow]), _xlpm.IR, H35, _xlpm.DUR, H13, _xlpm.CF * (1 + _xlpm.IR)^(-_xlpm.DUR)) -> 0.03109798325 | I40: =_xlfn.LET(_xlpm.CF, _xlfn.XLOOKUP(I$10, T.RefPortMacroGov[Issuer], T.RefPortMacroGov[RC Yield Cash Flow]), _xlpm.IR, I35, _xlpm.DUR, I13, _xlpm.CF * (1 + _xlpm.IR)^(-_xlpm.DUR)) -> 0.01012471435 | J40: =_xlfn.LET(_xlpm.CF, _xlfn.XLOOKUP(J$10, T.RefPortMacroGov[Issuer], T.RefPortMacroGov[RC Yield Cash Flow]), _xlpm.IR, J35, _xlpm.DUR, J13, _xlpm.CF * (1 + _xlpm.IR)^(-_xlpm.DUR)) -> 0.08272533387 | K40: =_xlfn.LET(_xlpm.CF, _xlfn.XLOOKUP(K$10, T.RefPortMacroGov[Issuer], T.RefPortMacroGov[RC Yield Cash Flow]), _xlpm.IR, K35, _xlpm.DUR, K13, _xlpm.CF * (1 + _xlpm.IR)^(-_xlpm.DUR)) -> 0.04021673016 | L40: =_xlfn.LET(_xlpm.CF, _xlfn.XLOOKUP(L$10, T.RefPortMacroGov[Issuer], T.RefPortMacroGov[RC Yield Cash Flow]), _xlpm.IR, L35, _xlpm.DUR, L13, _xlpm.CF * (1 + _xlpm.IR)^(-_xlpm.DUR)) -> 0.0101854479 | M40: =_xlfn.LET(_xlpm.CF, _xlfn.XLOOKUP(M$10, T.RefPortMacroGov[Issuer], T.RefPortMacroGov[RC Yield Cash Flow]), _xlpm.IR, M35, _xlpm.DUR, M13, _xlpm.CF * (1 + _xlpm.IR)^(-_xlpm.DUR)) -> 0.7079718973 | N40: =_xlfn.LET(_xlpm.CF, _xlfn.XLOOKUP(N$10, T.RefPortMacroGov[Issuer], T.RefPortMacroGov[RC Yield Cash Flow]), _xlpm.IR, N35, _xlpm.DUR, N13, _xlpm.CF * (1 + _xlpm.IR)^(-_xlpm.DUR)) -> 0.01012450923 | O40: =_xlfn.LET(_xlpm.CF, _xlfn.XLOOKUP(O$10, T.RefPortMacroGov[Issuer], T.RefPortMacroGov[RC Yield Cash Flow]), _xlpm.IR, O35, _xlpm.DUR, O13, _xlpm.CF * (1 + _xlpm.IR)^(-_xlpm.DUR)) -> 0.01027783508 | P40: =_xlfn.LET(_xlpm.CF, _xlfn.XLOOKUP(P$10, T.RefPortMacroGov[Issuer], T.RefPortMacroGov[RC Yield Cash Flow]), _xlpm.IR, P35, _xlpm.DUR, P13, _xlpm.CF * (1 + _xlpm.IR)^(-_xlpm.DUR)) -> 0.09263241754 | Q40: =_xlfn.LET(_xlpm.CF, _xlfn.XLOOKUP(Q$10, T.RefPortMacroGov[Issuer], T.RefPortMacroGov[RC Yield Cash Flow]), _xlpm.IR, Q35, _xlpm.DUR, Q13, _xlpm.CF * (1 + _xlpm.IR)^(-_xlpm.DUR)) -> 0.02002536987
F42: Portfolio Calculation
F44: Internal rate of return (IRR) calculation | G44: =G10 -> AT | H44: =H10 -> BE | I44: FI | J44: FR | K44: DE | L44: IE | M44: IT | N44: NL | O44: PT | P44: ES | Q44: US | S44: Sum | T44: Obj. Func. | U44: IRR
F45: IRR discounted market yield model bond | G45: =_xlfn.LET(_xlpm.CF, _xlfn.XLOOKUP(G$10, T.RefPortMacroGov[Issuer], T.RefPortMacroGov[Yield Cash Flow]), _xlpm.IER, $U$45, _xlpm.DUR, G13, _xlpm.CF * (1 + _xlpm.IER)^(-_xlpm.DUR)) -> 0.009954883341 | H45: =_xlfn.LET(_xlpm.CF, _xlfn.XLOOKUP(H$10, T.RefPortMacroGov[Issuer], T.RefPortMacroGov[Yield Cash Flow]), _xlpm.IER, $U$45, _xlpm.DUR, H13, _xlpm.CF * (1 + _xlpm.IER)^(-_xlpm.DUR)) -> 0.031957895 | I45: =_xlfn.LET(_xlpm.CF, _xlfn.XLOOKUP(I$10, T.RefPortMacroGov[Issuer], T.RefPortMacroGov[Yield Cash Flow]), _xlpm.IER, $U$45, _xlpm.DUR, I13, _xlpm.CF * (1 + _xlpm.IER)^(-_xlpm.DUR)) -> 0.009867162595 | J45: =_xlfn.LET(_xlpm.CF, _xlfn.XLOOKUP(J$10, T.RefPortMacroGov[Issuer], T.RefPortMacroGov[Yield Cash Flow]), _xlpm.IER, $U$45, _xlpm.DUR, J13, _xlpm.CF * (1 + _xlpm.IER)^(-_xlpm.DUR)) -> 0.08228409219 | K45: =_xlfn.LET(_xlpm.CF, _xlfn.XLOOKUP(K$10, T.RefPortMacroGov[Issuer], T.RefPortMacroGov[Yield Cash Flow]), _xlpm.IER, $U$45, _xlpm.DUR, K13, _xlpm.CF * (1 + _xlpm.IER)^(-_xlpm.DUR)) -> 0.03867861555 | L45: =_xlfn.LET(_xlpm.CF, _xlfn.XLOOKUP(L$10, T.RefPortMacroGov[Issuer], T.RefPortMacroGov[Yield Cash Flow]), _xlpm.IER, $U$45, _xlpm.DUR, L13, _xlpm.CF * (1 + _xlpm.IER)^(-_xlpm.DUR)) -> 0.01006848814 | M45: =_xlfn.LET(_xlpm.CF, _xlfn.XLOOKUP(M$10, T.RefPortMacroGov[Issuer], T.RefPortMacroGov[Yield Cash Flow]), _xlpm.IER, $U$45, _xlpm.DUR, M13, _xlpm.CF * (1 + _xlpm.IER)^(-_xlpm.DUR)) -> 0.7072769157 | N45: =_xlfn.LET(_xlpm.CF, _xlfn.XLOOKUP(N$10, T.RefPortMacroGov[Issuer], T.RefPortMacroGov[Yield Cash Flow]), _xlpm.IER, $U$45, _xlpm.DUR, N13, _xlpm.CF * (1 + _xlpm.IER)^(-_xlpm.DUR)) -> 0.009756700756 | O45: =_xlfn.LET(_xlpm.CF, _xlfn.XLOOKUP(O$10, T.RefPortMacroGov[Issuer], T.RefPortMacroGov[Yield Cash Flow]), _xlpm.IER, $U$45, _xlpm.DUR, O13, _xlpm.CF * (1 + _xlpm.IER)^(-_xlpm.DUR)) -> 0.01023659138 | P45: =_xlfn.LET(_xlpm.CF, _xlfn.XLOOKUP(P$10, T.RefPortMacroGov[Issuer], T.RefPortMacroGov[Yield Cash Flow]), _xlpm.IER, $U$45, _xlpm.DUR, P13, _xlpm.CF * (1 + _xlpm.IER)^(-_xlpm.DUR)) -> 0.09469207463 | Q45: =_xlfn.LET(_xlpm.CF, _xlfn.XLOOKUP(Q$10, T.RefPortMacroGov[Issuer], T.RefPortMacroGov[Yield Cash Flow]), _xlpm.IER, $U$45, _xlpm.DUR, Q13, _xlpm.CF * (1 + _xlpm.IER)^(-_xlpm.DUR)) -> 0.02105889178 | S45: =SUM(G45:Q45) -> 1.025832311 | T45: =(SUM(G38:Q38)-S45)^2 -> 1.909645293e-21 | U45: 0.02997146171
F46: IRR discounted risk-free yield model bond | G46: =_xlfn.LET(_xlpm.CF, _xlfn.XLOOKUP(G$10, T.RefPortMacroGov[Issuer], T.RefPortMacroGov[RFR Cash Flow]), _xlpm.IER, $U$46, _xlpm.DUR, G13, _xlpm.CF * (1 + _xlpm.IER)^(-_xlpm.DUR)) -> 0.01023426327 | H46: =_xlfn.LET(_xlpm.CF, _xlfn.XLOOKUP(H$10, T.RefPortMacroGov[Issuer], T.RefPortMacroGov[RFR Cash Flow]), _xlpm.IER, $U$46, _xlpm.DUR, H13, _xlpm.CF * (1 + _xlpm.IER)^(-_xlpm.DUR)) -> 0.03173258606 | I46: =_xlfn.LET(_xlpm.CF, _xlfn.XLOOKUP(I$10, T.RefPortMacroGov[Issuer], T.RefPortMacroGov[RFR Cash Flow]), _xlpm.IER, $U$46, _xlpm.DUR, I13, _xlpm.CF * (1 + _xlpm.IER)^(-_xlpm.DUR)) -> 0.0101306521 | J46: =_xlfn.LET(_xlpm.CF, _xlfn.XLOOKUP(J$10, T.RefPortMacroGov[Issuer], T.RefPortMacroGov[RFR Cash Flow]), _xlpm.IER, $U$46, _xlpm.DUR, J13, _xlpm.CF * (1 + _xlpm.IER)^(-_xlpm.DUR)) -> 0.08233841627 | K46: =_xlfn.LET(_xlpm.CF, _xlfn.XLOOKUP(K$10, T.RefPortMacroGov[Issuer], T.RefPortMacroGov[RFR Cash Flow]), _xlpm.IER, $U$46, _xlpm.DUR, K13, _xlpm.CF * (1 + _xlpm.IER)^(-_xlpm.DUR)) -> 0.04039015481 | L46: =_xlfn.LET(_xlpm.CF, _xlfn.XLOOKUP(L$10, T.RefPortMacroGov[Issuer], T.RefPortMacroGov[RFR Cash Flow]), _xlpm.IER, $U$46, _xlpm.DUR, L13, _xlpm.CF * (1 + _xlpm.IER)^(-_xlpm.DUR)) -> 0.01037021957 | M46: =_xlfn.LET(_xlpm.CF, _xlfn.XLOOKUP(M$10, T.RefPortMacroGov[Issuer], T.RefPortMacroGov[RFR Cash Flow]), _xlpm.IER, $U$46, _xlpm.DUR, M13, _xlpm.CF * (1 + _xlpm.IER)^(-_xlpm.DUR)) -> 0.7010841875 | N46: =_xlfn.LET(_xlpm.CF, _xlfn.XLOOKUP(N$10, T.RefPortMacroGov[Issuer], T.RefPortMacroGov[RFR Cash Flow]), _xlpm.IER, $U$46, _xlpm.DUR, N13, _xlpm.CF * (1 + _xlpm.IER)^(-_xlpm.DUR)) -> 0.01010843302 | O46: =_xlfn.LET(_xlpm.CF, _xlfn.XLOOKUP(O$10, T.RefPortMacroGov[Issuer], T.RefPortMacroGov[RFR Cash Flow]), _xlpm.IER, $U$46, _xlpm.DUR, O13, _xlpm.CF * (1 + _xlpm.IER)^(-_xlpm.DUR)) -> 0.01036313862 | P46: =_xlfn.LET(_xlpm.CF, _xlfn.XLOOKUP(P$10, T.RefPortMacroGov[Issuer], T.RefPortMacroGov[RFR Cash Flow]), _xlpm.IER, $U$46, _xlpm.DUR, P13, _xlpm.CF * (1 + _xlpm.IER)^(-_xlpm.DUR)) -> 0.09386338926 | Q46: =_xlfn.LET(_xlpm.CF, _xlfn.XLOOKUP(Q$10, T.RefPortMacroGov[Issuer], T.RefPortMacroGov[RFR Cash Flow]), _xlpm.IER, $U$46, _xlpm.DUR, Q13, _xlpm.CF * (1 + _xlpm.IER)^(-_xlpm.DUR)) -> 0.02153568776 | S46: =SUM(G46:Q46) -> 1.022151128 | T46: =(SUM(G39:Q39)-S46)^2 -> 7.099748147e-30 | U46: 0.02185638421
F47: IRR discounted risk-corrected yield model bond | G47: =_xlfn.LET(_xlpm.CF, _xlfn.XLOOKUP(G$10, T.RefPortMacroGov[Issuer], T.RefPortMacroGov[RC Yield Cash Flow]), _xlpm.IER, $U$47, _xlpm.DUR, G13, _xlpm.CF * (1 + _xlpm.IER)^(-_xlpm.DUR)) -> 0.0100905848 | H47: =_xlfn.LET(_xlpm.CF, _xlfn.XLOOKUP(H$10, T.RefPortMacroGov[Issuer], T.RefPortMacroGov[RC Yield Cash Flow]), _xlpm.IER, $U$47, _xlpm.DUR, H13, _xlpm.CF * (1 + _xlpm.IER)^(-_xlpm.DUR)) -> 0.03219890737 | I47: =_xlfn.LET(_xlpm.CF, _xlfn.XLOOKUP(I$10, T.RefPortMacroGov[Issuer], T.RefPortMacroGov[RC Yield Cash Flow]), _xlpm.IER, $U$47, _xlpm.DUR, I13, _xlpm.CF * (1 + _xlpm.IER)^(-_xlpm.DUR)) -> 0.0100015967 | J47: =_xlfn.LET(_xlpm.CF, _xlfn.XLOOKUP(J$10, T.RefPortMacroGov[Issuer], T.RefPortMacroGov[RC Yield Cash Flow]), _xlpm.IER, $U$47, _xlpm.DUR, J13, _xlpm.CF * (1 + _xlpm.IER)^(-_xlpm.DUR)) -> 0.083538312 | K47: =_xlfn.LET(_xlpm.CF, _xlfn.XLOOKUP(K$10, T.RefPortMacroGov[Issuer], T.RefPortMacroGov[RC Yield Cash Flow]), _xlpm.IER, $U$47, _xlpm.DUR, K13, _xlpm.CF * (1 + _xlpm.IER)^(-_xlpm.DUR)) -> 0.03915509254 | L47: =_xlfn.LET(_xlpm.CF, _xlfn.XLOOKUP(L$10, T.RefPortMacroGov[Issuer], T.RefPortMacroGov[RC Yield Cash Flow]), _xlpm.IER, $U$47, _xlpm.DUR, L13, _xlpm.CF * (1 + _xlpm.IER)^(-_xlpm.DUR)) -> 0.01013594618 | M47: =_xlfn.LET(_xlpm.CF, _xlfn.XLOOKUP(M$10, T.RefPortMacroGov[Issuer], T.RefPortMacroGov[RC Yield Cash Flow]), _xlpm.IER, $U$47, _xlpm.DUR, M13, _xlpm.CF * (1 + _xlpm.IER)^(-_xlpm.DUR)) -> 0.704622013 | N47: =_xlfn.LET(_xlpm.CF, _xlfn.XLOOKUP(N$10, T.RefPortMacroGov[Issuer], T.RefPortMacroGov[RC Yield Cash Flow]), _xlpm.IER, $U$47, _xlpm.DUR, N13, _xlpm.CF * (1 + _xlpm.IER)^(-_xlpm.DUR)) -> 0.009881136352 | O47: =_xlfn.LET(_xlpm.CF, _xlfn.XLOOKUP(O$10, T.RefPortMacroGov[Issuer], T.RefPortMacroGov[RC Yield Cash Flow]), _xlpm.IER, $U$47, _xlpm.DUR, O13, _xlpm.CF * (1 + _xlpm.IER)^(-_xlpm.DUR)) -> 0.01025244963 | P47: =_xlfn.LET(_xlpm.CF, _xlfn.XLOOKUP(P$10, T.RefPortMacroGov[Issuer], T.RefPortMacroGov[RC Yield Cash Flow]), _xlpm.IER, $U$47, _xlpm.DUR, P13, _xlpm.CF * (1 + _xlpm.IER)^(-_xlpm.DUR)) -> 0.09433867194 | Q47: =_xlfn.LET(_xlpm.CF, _xlfn.XLOOKUP(Q$10, T.RefPortMacroGov[Issuer], T.RefPortMacroGov[RC Yield Cash Flow]), _xlpm.IER, $U$47, _xlpm.DUR, Q13, _xlpm.CF * (1 + _xlpm.IER)^(-_xlpm.DUR)) -> 0.02129543001 | S47: =SUM(G47:Q47) -> 1.025510141 | T47: =(SUM(G40:Q40)-S47)^2 -> 1.972152263e-31 | U47: 0.02776145485
F49: Portfolio spread and risk correction | G49: Total
F50: Portfolio spread | G50: =V.IER_Yield_Gov_Country-V.IER_RFR_Gov_Country -> 0.008115077497
F51: Portfolio risk correction | G51: =V.IER_Yield_Gov_Country-V.IER_RCYield_Gov_Country -> 0.002210006855

Sheet S&RC Corp Country
V3: ©EIOPA, 2026.
F6: Country RCS: Corporate Bonds
F8: Model Bond Calculations | S8: RFR TD
F10: Issuer | G10: Financials CQS 0 | H10: Financials CQS 1 | I10: Financials CQS 2 | J10: Financials CQS 3 | K10: Financials CQS 4 | L10: Non-Financials CQS 0 | M10: Non-Financials CQS 1 | N10: Non-Financials CQS 2 | O10: Non-Financials CQS 3 | P10: Non-Financials CQS 4 | Q10: Non-Financials CQS 5
F11: Issuer currency | G11: EUR | H11: EUR | I11: EUR | J11: EUR | K11: EUR | L11: EUR | M11: EUR | N11: EUR | O11: EUR | P11: EUR | Q11: EUR
F12: Relative market value | G12: =_xlfn.XLOOKUP(G$10, T.RefPortCountryCorp[Issuer], T.RefPortCountryCorp[Composition]) -> 0.03 | H12: =_xlfn.XLOOKUP(H$10, T.RefPortCountryCorp[Issuer], T.RefPortCountryCorp[Composition]) -> 0.05 | I12: =_xlfn.XLOOKUP(I$10, T.RefPortCountryCorp[Issuer], T.RefPortCountryCorp[Composition]) -> 0.26 | J12: =_xlfn.XLOOKUP(J$10, T.RefPortCountryCorp[Issuer], T.RefPortCountryCorp[Composition]) -> 0.26 | K12: =_xlfn.XLOOKUP(K$10, T.RefPortCountryCorp[Issuer], T.RefPortCountryCorp[Composition]) -> 0.04 | L12: =_xlfn.XLOOKUP(L$10, T.RefPortCountryCorp[Issuer], T.RefPortCountryCorp[Composition]) -> 0.03 | M12: =_xlfn.XLOOKUP(M$10, T.RefPortCountryCorp[Issuer], T.RefPortCountryCorp[Composition]) -> 0.02 | N12: =_xlfn.XLOOKUP(N$10, T.RefPortCountryCorp[Issuer], T.RefPortCountryCorp[Composition]) -> 0.09 | O12: =_xlfn.XLOOKUP(O$10, T.RefPortCountryCorp[Issuer], T.RefPortCountryCorp[Composition]) -> 0.18 | P12: =_xlfn.XLOOKUP(P$10, T.RefPortCountryCorp[Issuer], T.RefPortCountryCorp[Composition]) -> 0.03 | Q12: =_xlfn.XLOOKUP(Q$10, T.RefPortCountryCorp[Issuer], T.RefPortCountryCorp[Composition]) -> 0.01
F13: Duration [Y] | G13: =_xlfn.XLOOKUP(G$10, T.RefPortCountryCorp[Issuer], T.RefPortCountryCorp[Duration '[Y']]) -> 7.2 | H13: =_xlfn.XLOOKUP(H$10, T.RefPortCountryCorp[Issuer], T.RefPortCountryCorp[Duration '[Y']]) -> 4 | I13: =_xlfn.XLOOKUP(I$10, T.RefPortCountryCorp[Issuer], T.RefPortCountryCorp[Duration '[Y']]) -> 4.6 | J13: =_xlfn.XLOOKUP(J$10, T.RefPortCountryCorp[Issuer], T.RefPortCountryCorp[Duration '[Y']]) -> 4 | K13: =_xlfn.XLOOKUP(K$10, T.RefPortCountryCorp[Issuer], T.RefPortCountryCorp[Duration '[Y']]) -> 2.8 | L13: =_xlfn.XLOOKUP(L$10, T.RefPortCountryCorp[Issuer], T.RefPortCountryCorp[Duration '[Y']]) -> 7.6 | M13: =_xlfn.XLOOKUP(M$10, T.RefPortCountryCorp[Issuer], T.RefPortCountryCorp[Duration '[Y']]) -> 7 | N13: =_xlfn.XLOOKUP(N$10, T.RefPortCountryCorp[Issuer], T.RefPortCountryCorp[Duration '[Y']]) -> 5.9 | O13: =_xlfn.XLOOKUP(O$10, T.RefPortCountryCorp[Issuer], T.RefPortCountryCorp[Duration '[Y']]) -> 5 | P13: =_xlfn.XLOOKUP(P$10, T.RefPortCountryCorp[Issuer], T.RefPortCountryCorp[Duration '[Y']]) -> 4.5 | Q13: =_xlfn.XLOOKUP(Q$10, T.RefPortCountryCorp[Issuer], T.RefPortCountryCorp[Duration '[Y']]) -> 2.6
F14: Integer D less than or equal to the duration [Y] | G14: =INT(G$13) -> 7 | H14: =INT(H$13) -> 4 | I14: 4 | J14: 4 | K14: 2 | L14: 7 | M14: 7 | N14: 5 | O14: 5 | P14: 4 | Q14: 2
F15: Integer D+1 [Y] | G15: =G14+1 -> 8 | H15: =H14+1 -> 5 | I15: 5 | J15: 5 | K15: 3 | L15: 8 | M15: 8 | N15: 6 | O15: 6 | P15: 5 | Q15: =Q14+1 -> 3
F17: Linear interpolation of market yields before risk correction
F18: Longest available duration below the component duration [Y] | G18: =ROUND('Corp Data'!G15, 1) -> 5.7 | H18: =ROUND('Corp Data'!K14, 1) -> 3.7 | I18: =ROUND('Corp Data'!O14, 1) -> 3.8 | J18: =ROUND('Corp Data'!G23, 1) -> 3.8 | K18: =ROUND('Corp Data'!K22, 1) -> 2.9 | L18: =ROUND('Corp Data'!G35, 1) -> 7.5 | M18: =ROUND('Corp Data'!K34, 1) -> 5.6 | N18: =ROUND('Corp Data'!O34, 1) -> 5.6 | O18: =ROUND('Corp Data'!G42, 1) -> 3.8 | P18: =ROUND('Corp Data'!K41, 1) -> 3 | Q18: =ROUND('Corp Data'!O41, 1) -> 2.1
F19: Yield for the longest available duration below the component duration | G19: ='Corp Data'!H15 -> 0.02368205455 | H19: ='Corp Data'!L14 -> 0.02676472658 | I19: ='Corp Data'!P14 -> 0.02790158523 | J19: ='Corp Data'!H23 -> 0.03232133767 | K19: ='Corp Data'!L22 -> 0.05128437924 | L19: ='Corp Data'!H35 -> 0.02624345628 | M19: ='Corp Data'!L34 -> 0.02861842024 | N19: ='Corp Data'!P34 -> 0.03121200868 | O19: ='Corp Data'!H42 -> 0.03205249855 | P19: ='Corp Data'!L41 -> 0.04403809825 | Q19: ='Corp Data'!P41 -> 0.06148741785
F20: Shortest available duration above the component duration [Y] | G20: =ROUND('Corp Data'!G16, 1) -> 7.3 | H20: =ROUND('Corp Data'!K15, 1) -> 5.7 | I20: =ROUND('Corp Data'!O15, 1) -> 5.3 | J20: =ROUND('Corp Data'!G24, 1) -> 5.2 | K20: =ROUND('Corp Data'!K22, 1) -> 2.9 | L20: =ROUND('Corp Data'!G36, 1) -> 12.2 | M20: =ROUND('Corp Data'!K35, 1) -> 7.5 | N20: =ROUND('Corp Data'!O35, 1) -> 7.5 | O20: =ROUND('Corp Data'!G43, 1) -> 5.1 | P20: =ROUND('Corp Data'!K41, 1) -> 3 | Q20: =ROUND('Corp Data'!O41, 1) -> 2.1
F21: Yield for the shortest available duration above the component duration | G21: ='Corp Data'!H16 -> 0.02568787232 | H21: ='Corp Data'!L15 -> 0.02786124065 | I21: ='Corp Data'!P15 -> 0.03271147539 | J21: ='Corp Data'!H24 -> 0.03525863138 | K21: ='Corp Data'!L22 -> 0.05128437924 | L21: ='Corp Data'!H36 -> 0.02971966777 | M21: ='Corp Data'!L35 -> 0.03087465444 | N21: ='Corp Data'!P35 -> 0.03530318771 | O21: ='Corp Data'!H43 -> 0.03401032644 | P21: ='Corp Data'!L41 -> 0.04403809825 | Q21: ='Corp Data'!P41 -> 0.06148741785
F22: Linear interpolation of market yields before risk correction | G22: =G19+(G21-G19)/(G20-G18)*(G13-G18) -> 0.02556250871 | H22: =H19+(H21-H19)/(H20-H18)*(H13-H18) -> 0.02692920369 | I22: 0.03046685998 | J22: 0.03274095106 | K22: =K21 -> 0.05128437924 | L22: 0.02631741822 | M22: 0.0302809086 | N22: 0.03185798432 | O22: 0.03385972429 | P22: =P21 -> 0.04403809825 | Q22: =Q21 -> 0.06148741785
F24: Linear interpolation of risk-free rates
F25: Basic risk-free rate corresponding to D | G25: =_xlfn.XLOOKUP(G$14, T.RFR[Maturity '[Y']], T.RFR[EUR]) -> 0.02063078763 | H25: =_xlfn.XLOOKUP(H$14, T.RFR[Maturity '[Y']], T.RFR[EUR]) -> 0.01851301381 | I25: =_xlfn.XLOOKUP(I$14, T.RFR[Maturity '[Y']], T.RFR[EUR]) -> 0.01851301381 | J25: =_xlfn.XLOOKUP(J$14, T.RFR[Maturity '[Y']], T.RFR[EUR]) -> 0.01851301381 | K25: =_xlfn.XLOOKUP(K$14, T.RFR[Maturity '[Y']], T.RFR[EUR]) -> 0.01821687922 | L25: =_xlfn.XLOOKUP(L$14, T.RFR[Maturity '[Y']], T.RFR[EUR]) -> 0.02063078763 | M25: =_xlfn.XLOOKUP(M$14, T.RFR[Maturity '[Y']], T.RFR[EUR]) -> 0.02063078763 | N25: =_xlfn.XLOOKUP(N$14, T.RFR[Maturity '[Y']], T.RFR[EUR]) -> 0.01892195156 | O25: =_xlfn.XLOOKUP(O$14, T.RFR[Maturity '[Y']], T.RFR[EUR]) -> 0.01892195156 | P25: =_xlfn.XLOOKUP(P$14, T.RFR[Maturity '[Y']], T.RFR[EUR]) -> 0.01851301381 | Q25: =_xlfn.XLOOKUP(Q$14, T.RFR[Maturity '[Y']], T.RFR[EUR]) -> 0.01821687922
F26: Basic risk-free rate corresponding to D+1 | G26: =_xlfn.XLOOKUP(G$15, T.RFR[Maturity '[Y']], T.RFR[EUR]) -> 0.02351730711 | H26: =_xlfn.XLOOKUP(H$15, T.RFR[Maturity '[Y']], T.RFR[EUR]) -> 0.01892195156 | I26: =_xlfn.XLOOKUP(I$15, T.RFR[Maturity '[Y']], T.RFR[EUR]) -> 0.01892195156 | J26: =_xlfn.XLOOKUP(J$15, T.RFR[Maturity '[Y']], T.RFR[EUR]) -> 0.01892195156 | K26: =_xlfn.XLOOKUP(K$15, T.RFR[Maturity '[Y']], T.RFR[EUR]) -> 0.01938535624 | L26: =_xlfn.XLOOKUP(L$15, T.RFR[Maturity '[Y']], T.RFR[EUR]) -> 0.02351730711 | M26: =_xlfn.XLOOKUP(M$15, T.RFR[Maturity '[Y']], T.RFR[EUR]) -> 0.02351730711 | N26: =_xlfn.XLOOKUP(N$15, T.RFR[Maturity '[Y']], T.RFR[EUR]) -> 0.02068612671 | O26: =_xlfn.XLOOKUP(O$15, T.RFR[Maturity '[Y']], T.RFR[EUR]) -> 0.02068612671 | P26: =_xlfn.XLOOKUP(P$15, T.RFR[Maturity '[Y']], T.RFR[EUR]) -> 0.01892195156 | Q26: =_xlfn.XLOOKUP(Q$15, T.RFR[Maturity '[Y']], T.RFR[EUR]) -> 0.01938535624
F27: Linear interpolation of basic risk-free rate | G27: =G25+(G26-G25)/(G15-G14) * (G$13-G14) -> 0.02120809152 | H27: 0.01851301381 | I27: 0.01875837646 | J27: 0.01851301381 | K27: 0.01915166084 | L27: 0.02236269932 | M27: 0.02063078763 | N27: 0.02050970919 | O27: 0.01892195156 | P27: 0.01871748268 | Q27: =Q25+(Q26-Q25)/(Q15-Q14) * (Q$13-Q14) -> 0.01891796543
F29: Linear interpolation of long-term average spreads
F30: Long-term average spread corresponding to D | G30: =_xlfn.XLOOKUP(G$14, T.LTASCorp_Finan[Maturity '[Y']], T.LTASCorp_Finan[CQS 0]) -> 0.005100265968 | H30: =_xlfn.XLOOKUP(H$14, T.LTASCorp_Finan[Maturity '[Y']], T.LTASCorp_Finan[CQS 1]) -> 0.007342335325 | I30: =_xlfn.XLOOKUP(I$14, T.LTASCorp_Finan[Maturity '[Y']], T.LTASCorp_Finan[CQS 2]) -> 0.01389564326 | J30: =_xlfn.XLOOKUP(J$14, T.LTASCorp_Finan[Maturity '[Y']], T.LTASCorp_Finan[CQS 3]) -> 0.03062089834 | K30: =_xlfn.XLOOKUP(K$14, T.LTASCorp_Finan[Maturity '[Y']], T.LTASCorp_Finan[CQS 4]) -> 0.06292612797 | L30: =_xlfn.XLOOKUP(L$14, T.LTASCorp_NonFinan[Maturity '[Y']], T.LTASCorp_NonFinan[CQS 0]) -> 0.0003286212247 | M30: =_xlfn.XLOOKUP(M$14, T.LTASCorp_NonFinan[Maturity '[Y']], T.LTASCorp_NonFinan[CQS 1]) -> 0.004752837939 | N30: =_xlfn.XLOOKUP(N$14, T.LTASCorp_NonFinan[Maturity '[Y']], T.LTASCorp_NonFinan[CQS 2]) -> 0.00954581486 | O30: =_xlfn.XLOOKUP(O$14, T.LTASCorp_NonFinan[Maturity '[Y']], T.LTASCorp_NonFinan[CQS 3]) -> 0.013772365 | P30: =_xlfn.XLOOKUP(P$14, T.LTASCorp_NonFinan[Maturity '[Y']], T.LTASCorp_NonFinan[CQS 4]) -> 0.04352841638 | Q30: =_xlfn.XLOOKUP(Q$14, T.LTASCorp_NonFinan[Maturity '[Y']], T.LTASCorp_NonFinan[CQS 5]) -> 0.07100171753
F31: Long-term average spread corresponding to D+1 | G31: =_xlfn.XLOOKUP(G$15, T.LTASCorp_Finan[Maturity '[Y']], T.LTASCorp_Finan[CQS 0]) -> 0.005438028592 | H31: =_xlfn.XLOOKUP(H$15, T.LTASCorp_Finan[Maturity '[Y']], T.LTASCorp_Finan[CQS 1]) -> 0.008442307806 | I31: =_xlfn.XLOOKUP(I$15, T.LTASCorp_Finan[Maturity '[Y']], T.LTASCorp_Finan[CQS 2]) -> 0.01563236909 | J31: =_xlfn.XLOOKUP(J$15, T.LTASCorp_Finan[Maturity '[Y']], T.LTASCorp_Finan[CQS 3]) -> 0.02955323276 | K31: =_xlfn.XLOOKUP(K$15, T.LTASCorp_Finan[Maturity '[Y']], T.LTASCorp_Finan[CQS 4]) -> 0.06265027455 | L31: =_xlfn.XLOOKUP(L$15, T.LTASCorp_NonFinan[Maturity '[Y']], T.LTASCorp_NonFinan[CQS 0]) -> 0.0005815403305 | M31: =_xlfn.XLOOKUP(M$15, T.LTASCorp_NonFinan[Maturity '[Y']], T.LTASCorp_NonFinan[CQS 1]) -> 0.006684758231 | N31: =_xlfn.XLOOKUP(N$15, T.LTASCorp_NonFinan[Maturity '[Y']], T.LTASCorp_NonFinan[CQS 2]) -> 0.007625237921 | O31: =_xlfn.XLOOKUP(O$15, T.LTASCorp_NonFinan[Maturity '[Y']], T.LTASCorp_NonFinan[CQS 3]) -> 0.01474497815 | P31: =_xlfn.XLOOKUP(P$15, T.LTASCorp_NonFinan[Maturity '[Y']], T.LTASCorp_NonFinan[CQS 4]) -> 0.04110569232 | Q31: =_xlfn.XLOOKUP(Q$15, T.LTASCorp_NonFinan[Maturity '[Y']], T.LTASCorp_NonFinan[CQS 5]) -> 0.06993652901
F32: Linear interpolation of LTAS | G32: =G30+(G31-G30)/(G15-G14)*(G13-G14) -> 0.005167818493 | H32: 0.007342335325 | I32: 0.01493767876 | J32: 0.03062089834 | K32: 0.06270544523 | L32: 0.0004803726882 | M32: 0.004752837939 | N32: 0.007817295615 | O32: 0.013772365 | P32: 0.04231705435 | Q32: =Q30+(Q31-Q30)/(Q15-Q14)*(Q13-Q14) -> 0.07036260442
F34: Risk-corrected market yields
F35: Spread | G35: =G22-G27 -> 0.004354417186 | H35: =H22-H27 -> 0.008416189888 | I35: 0.01170848352 | J35: 0.01422793725 | K35: 0.0321327184 | L35: 0.003954718905 | M35: 0.009650120971 | N35: 0.01134827513 | O35: 0.01493777273 | P35: 0.02532061557 | Q35: =Q22-Q27 -> 0.04256945241
F36: Risk Correction | G36: =_xlfn.LET(_xlpm.SPLUS, MAX(G35, 0), _xlpm.LTASPLUS, MAX(G32, 0), _xlpm.RC, 50% * MIN(_xlpm.SPLUS, _xlpm.LTASPLUS) + 40% * MAX(0, MIN(_xlpm.SPLUS - _xlpm.LTASPLUS, _xlpm.LTASPLUS)) + 30% * MAX(0, _xlpm.SPLUS - 2 * _xlpm.LTASPLUS), MIN(_xlpm.RC, 125% * _xlpm.LTASPLUS)) -> 0.002177208593 | H36: =_xlfn.LET(_xlpm.SPLUS, MAX(H35, 0), _xlpm.LTASPLUS, MAX(H32, 0), _xlpm.RC, 50% * MIN(_xlpm.SPLUS, _xlpm.LTASPLUS) + 40% * MAX(0, MIN(_xlpm.SPLUS - _xlpm.LTASPLUS, _xlpm.LTASPLUS)) + 30% * MAX(0, _xlpm.SPLUS - 2 * _xlpm.LTASPLUS), MIN(_xlpm.RC, 125% * _xlpm.LTASPLUS)) -> 0.004100709488 | I36: 0.005854241762 | J36: 0.007113968626 | K36: 0.0160663592 | L36: 0.0006004658602 | M36: 0.004320887673 | N36: 0.005321039612 | O36: 0.007352345593 | P36: 0.01266030778 | Q36: 0.02128472621
F37: Risk-corrected market yield | G37: =G22-G36 -> 0.02338530012 | H37: =H22-H36 -> 0.02282849421 | I37: 0.02461261822 | J37: 0.02562698243 | K37: 0.03521802004 | L37: 0.02571695236 | M37: 0.02596002093 | N37: 0.02653694471 | O37: 0.0265073787 | P37: 0.03137779047 | Q37: =Q22-Q36 -> 0.04020269164
F39: Model bond market values
F40: Market value market yield model bond | G40: =_xlfn.LET(_xlpm.CF, _xlfn.XLOOKUP(G$10, T.RefPortCountryCorp[Issuer], T.RefPortCountryCorp[Yield Cash Flow]), _xlpm.IR, G22, _xlpm.DUR, G13, _xlpm.CF * (1 + _xlpm.IR)^(-_xlpm.DUR)) -> 0.03065200921 | H40: =_xlfn.LET(_xlpm.CF, _xlfn.XLOOKUP(H$10, T.RefPortCountryCorp[Issuer], T.RefPortCountryCorp[Yield Cash Flow]), _xlpm.IR, H22, _xlpm.DUR, H13, _xlpm.CF * (1 + _xlpm.IR)^(-_xlpm.DUR)) -> 0.0505027578 | I40: =_xlfn.LET(_xlpm.CF, _xlfn.XLOOKUP(I$10, T.RefPortCountryCorp[Issuer], T.RefPortCountryCorp[Yield Cash Flow]), _xlpm.IR, I22, _xlpm.DUR, I13, _xlpm.CF * (1 + _xlpm.IR)^(-_xlpm.DUR)) -> 0.2640384393 | J40: =_xlfn.LET(_xlpm.CF, _xlfn.XLOOKUP(J$10, T.RefPortCountryCorp[Issuer], T.RefPortCountryCorp[Yield Cash Flow]), _xlpm.IR, J22, _xlpm.DUR, J13, _xlpm.CF * (1 + _xlpm.IR)^(-_xlpm.DUR)) -> 0.2637758449 | K40: =_xlfn.LET(_xlpm.CF, _xlfn.XLOOKUP(K$10, T.RefPortCountryCorp[Issuer], T.RefPortCountryCorp[Yield Cash Flow]), _xlpm.IR, K22, _xlpm.DUR, K13, _xlpm.CF * (1 + _xlpm.IR)^(-_xlpm.DUR)) -> 0.0397989175 | L40: =_xlfn.LET(_xlpm.CF, _xlfn.XLOOKUP(L$10, T.RefPortCountryCorp[Issuer], T.RefPortCountryCorp[Yield Cash Flow]), _xlpm.IR, L22, _xlpm.DUR, L13, _xlpm.CF * (1 + _xlpm.IR)^(-_xlpm.DUR)) -> 0.03041107741 | M40: =_xlfn.LET(_xlpm.CF, _xlfn.XLOOKUP(M$10, T.RefPortCountryCorp[Issuer], T.RefPortCountryCorp[Yield Cash Flow]), _xlpm.IR, M22, _xlpm.DUR, M13, _xlpm.CF * (1 + _xlpm.IR)^(-_xlpm.DUR)) -> 0.02082349106 | N40: =_xlfn.LET(_xlpm.CF, _xlfn.XLOOKUP(N$10, T.RefPortCountryCorp[Issuer], T.RefPortCountryCorp[Yield Cash Flow]), _xlpm.IR, N22, _xlpm.DUR, N13, _xlpm.CF * (1 + _xlpm.IR)^(-_xlpm.DUR)) -> 0.09062962941 | O40: =_xlfn.LET(_xlpm.CF, _xlfn.XLOOKUP(O$10, T.RefPortCountryCorp[Issuer], T.RefPortCountryCorp[Yield Cash Flow]), _xlpm.IR, O22, _xlpm.DUR, O13, _xlpm.CF * (1 + _xlpm.IR)^(-_xlpm.DUR)) -> 0.1811337216 | P40: =_xlfn.LET(_xlpm.CF, _xlfn.XLOOKUP(P$10, T.RefPortCountryCorp[Issuer], T.RefPortCountryCorp[Yield Cash Flow]), _xlpm.IR, P22, _xlpm.DUR, P13, _xlpm.CF * (1 + _xlpm.IR)^(-_xlpm.DUR)) -> 0.03057027193 | Q40: =_xlfn.LET(_xlpm.CF, _xlfn.XLOOKUP(Q$10, T.RefPortCountryCorp[Issuer], T.RefPortCountryCorp[Yield Cash Flow]), _xlpm.IR, Q22, _xlpm.DUR, Q13, _xlpm.CF * (1 + _xlpm.IR)^(-_xlpm.DUR)) -> 0.01006572312
F41: Market value risk-free yield model bond | G41: =_xlfn.LET(_xlpm.CF, _xlfn.XLOOKUP(G$10, T.RefPortCountryCorp[Issuer], T.RefPortCountryCorp[RFR Cash Flow]), _xlpm.IR, G27, _xlpm.DUR, G13, _xlpm.CF * (1 + _xlpm.IR)^(-_xlpm.DUR)) -> 0.03069853554 | H41: =_xlfn.LET(_xlpm.CF, _xlfn.XLOOKUP(H$10, T.RefPortCountryCorp[Issuer], T.RefPortCountryCorp[RFR Cash Flow]), _xlpm.IR, H27, _xlpm.DUR, H13, _xlpm.CF * (1 + _xlpm.IR)^(-_xlpm.DUR)) -> 0.05076566113 | I41: =_xlfn.LET(_xlpm.CF, _xlfn.XLOOKUP(I$10, T.RefPortCountryCorp[Issuer], T.RefPortCountryCorp[RFR Cash Flow]), _xlpm.IR, I27, _xlpm.DUR, I13, _xlpm.CF * (1 + _xlpm.IR)^(-_xlpm.DUR)) -> 0.2648335591 | J41: =_xlfn.LET(_xlpm.CF, _xlfn.XLOOKUP(J$10, T.RefPortCountryCorp[Issuer], T.RefPortCountryCorp[RFR Cash Flow]), _xlpm.IR, J27, _xlpm.DUR, J13, _xlpm.CF * (1 + _xlpm.IR)^(-_xlpm.DUR)) -> 0.2639814379 | K41: =_xlfn.LET(_xlpm.CF, _xlfn.XLOOKUP(K$10, T.RefPortCountryCorp[Issuer], T.RefPortCountryCorp[RFR Cash Flow]), _xlpm.IR, K27, _xlpm.DUR, K13, _xlpm.CF * (1 + _xlpm.IR)^(-_xlpm.DUR)) -> 0.04025353104 | L41: =_xlfn.LET(_xlpm.CF, _xlfn.XLOOKUP(L$10, T.RefPortCountryCorp[Issuer], T.RefPortCountryCorp[RFR Cash Flow]), _xlpm.IR, L27, _xlpm.DUR, L13, _xlpm.CF * (1 + _xlpm.IR)^(-_xlpm.DUR)) -> 0.03052383899 | M41: =_xlfn.LET(_xlpm.CF, _xlfn.XLOOKUP(M$10, T.RefPortCountryCorp[Issuer], T.RefPortCountryCorp[RFR Cash Flow]), _xlpm.IR, M27, _xlpm.DUR, M13, _xlpm.CF * (1 + _xlpm.IR)^(-_xlpm.DUR)) -> 0.0205185799 | N41: =_xlfn.LET(_xlpm.CF, _xlfn.XLOOKUP(N$10, T.RefPortCountryCorp[Issuer], T.RefPortCountryCorp[RFR Cash Flow]), _xlpm.IR, N27, _xlpm.DUR, N13, _xlpm.CF * (1 + _xlpm.IR)^(-_xlpm.DUR)) -> 0.09168650215 | O41: =_xlfn.LET(_xlpm.CF, _xlfn.XLOOKUP(O$10, T.RefPortCountryCorp[Issuer], T.RefPortCountryCorp[RFR Cash Flow]), _xlpm.IR, O27, _xlpm.DUR, O13, _xlpm.CF * (1 + _xlpm.IR)^(-_xlpm.DUR)) -> 0.1837657005 | P41: =_xlfn.LET(_xlpm.CF, _xlfn.XLOOKUP(P$10, T.RefPortCountryCorp[Issuer], T.RefPortCountryCorp[RFR Cash Flow]), _xlpm.IR, P27, _xlpm.DUR, P13, _xlpm.CF * (1 + _xlpm.IR)^(-_xlpm.DUR)) -> 0.0305407889 | Q41: =_xlfn.LET(_xlpm.CF, _xlfn.XLOOKUP(Q$10, T.RefPortCountryCorp[Issuer], T.RefPortCountryCorp[RFR Cash Flow]), _xlpm.IR, Q27, _xlpm.DUR, Q13, _xlpm.CF * (1 + _xlpm.IR)^(-_xlpm.DUR)) -> 0.01006135778
F42: Market value risk-corrected yield model bond | G42: =_xlfn.LET(_xlpm.CF, _xlfn.XLOOKUP(G$10, T.RefPortCountryCorp[Issuer], T.RefPortCountryCorp[RC Yield Cash Flow]), _xlpm.IR, G37, _xlpm.DUR, G13, _xlpm.CF * (1 + _xlpm.IR)^(-_xlpm.DUR)) -> 0.03068768881 | H42: =_xlfn.LET(_xlpm.CF, _xlfn.XLOOKUP(H$10, T.RefPortCountryCorp[Issuer], T.RefPortCountryCorp[RC Yield Cash Flow]), _xlpm.IR, H37, _xlpm.DUR, H13, _xlpm.CF * (1 + _xlpm.IR)^(-_xlpm.DUR)) -> 0.05061894278 | I42: =_xlfn.LET(_xlpm.CF, _xlfn.XLOOKUP(I$10, T.RefPortCountryCorp[Issuer], T.RefPortCountryCorp[RC Yield Cash Flow]), _xlpm.IR, I37, _xlpm.DUR, I13, _xlpm.CF * (1 + _xlpm.IR)^(-_xlpm.DUR)) -> 0.2644334938 | J42: =_xlfn.LET(_xlpm.CF, _xlfn.XLOOKUP(J$10, T.RefPortCountryCorp[Issuer], T.RefPortCountryCorp[RC Yield Cash Flow]), _xlpm.IR, J37, _xlpm.DUR, J13, _xlpm.CF * (1 + _xlpm.IR)^(-_xlpm.DUR)) -> 0.2638779133 | K42: =_xlfn.LET(_xlpm.CF, _xlfn.XLOOKUP(K$10, T.RefPortCountryCorp[Issuer], T.RefPortCountryCorp[RC Yield Cash Flow]), _xlpm.IR, K37, _xlpm.DUR, K13, _xlpm.CF * (1 + _xlpm.IR)^(-_xlpm.DUR)) -> 0.04002228169 | L42: =_xlfn.LET(_xlpm.CF, _xlfn.XLOOKUP(L$10, T.RefPortCountryCorp[Issuer], T.RefPortCountryCorp[RC Yield Cash Flow]), _xlpm.IR, L37, _xlpm.DUR, L13, _xlpm.CF * (1 + _xlpm.IR)^(-_xlpm.DUR)) -> 0.03020079743 | M42: =_xlfn.LET(_xlpm.CF, _xlfn.XLOOKUP(M$10, T.RefPortCountryCorp[Issuer], T.RefPortCountryCorp[RC Yield Cash Flow]), _xlpm.IR, M37, _xlpm.DUR, M13, _xlpm.CF * (1 + _xlpm.IR)^(-_xlpm.DUR)) -> 0.02067830002 | N42: =_xlfn.LET(_xlpm.CF, _xlfn.XLOOKUP(N$10, T.RefPortCountryCorp[Issuer], T.RefPortCountryCorp[RC Yield Cash Flow]), _xlpm.IR, N37, _xlpm.DUR, N13, _xlpm.CF * (1 + _xlpm.IR)^(-_xlpm.DUR)) -> 0.09100644341 | O42: =_xlfn.LET(_xlpm.CF, _xlfn.XLOOKUP(O$10, T.RefPortCountryCorp[Issuer], T.RefPortCountryCorp[RC Yield Cash Flow]), _xlpm.IR, O37, _xlpm.DUR, O13, _xlpm.CF * (1 + _xlpm.IR)^(-_xlpm.DUR)) -> 0.1823328004 | P42: =_xlfn.LET(_xlpm.CF, _xlfn.XLOOKUP(P$10, T.RefPortCountryCorp[Issuer], T.RefPortCountryCorp[RC Yield Cash Flow]), _xlpm.IR, P37, _xlpm.DUR, P13, _xlpm.CF * (1 + _xlpm.IR)^(-_xlpm.DUR)) -> 0.0305557086 | Q42: =_xlfn.LET(_xlpm.CF, _xlfn.XLOOKUP(Q$10, T.RefPortCountryCorp[Issuer], T.RefPortCountryCorp[RC Yield Cash Flow]), _xlpm.IR, Q37, _xlpm.DUR, Q13, _xlpm.CF * (1 + _xlpm.IR)^(-_xlpm.DUR)) -> 0.0100637536
F44: Portfolio Calculation
F46: Internal rate of return (IRR) calculation | G46: =G10 -> Financials CQS 0 | H46: =H10 -> Financials CQS 1 | I46: Financials CQS 2 | J46: Financials CQS 3 | K46: Financials CQS 4 | L46: Non-Financials CQS 0 | M46: Non-Financials CQS 1 | N46: Non-Financials CQS 2 | O46: Non-Financials CQS 3 | P46: Non-Financials CQS 4 | Q46: Non-Financials CQS 5 | S46: Sum | T46: Obj. Func. | U46: IRR
F47: IRR discounted market yield model bond | G47: =_xlfn.LET(_xlpm.CF, _xlfn.XLOOKUP(G$10, T.RefPortCountryCorp[Issuer], T.RefPortCountryCorp[Yield Cash Flow]), _xlpm.IER, $U$47, _xlpm.DUR, G13, _xlpm.CF * (1 + _xlpm.IER)^(-_xlpm.DUR)) -> 0.02925532782 | H47: =_xlfn.LET(_xlpm.CF, _xlfn.XLOOKUP(H$10, T.RefPortCountryCorp[Issuer], T.RefPortCountryCorp[Yield Cash Flow]), _xlpm.IER, $U$47, _xlpm.DUR, H13, _xlpm.CF * (1 + _xlpm.IER)^(-_xlpm.DUR)) -> 0.04947392401 | I47: =_xlfn.LET(_xlpm.CF, _xlfn.XLOOKUP(I$10, T.RefPortCountryCorp[Issuer], T.RefPortCountryCorp[Yield Cash Flow]), _xlpm.IER, $U$47, _xlpm.DUR, I13, _xlpm.CF * (1 + _xlpm.IER)^(-_xlpm.DUR)) -> 0.2619737787 | J47: =_xlfn.LET(_xlpm.CF, _xlfn.XLOOKUP(J$10, T.RefPortCountryCorp[Issuer], T.RefPortCountryCorp[Yield Cash Flow]), _xlpm.IER, $U$47, _xlpm.DUR, J13, _xlpm.CF * (1 + _xlpm.IER)^(-_xlpm.DUR)) -> 0.2643016423 | K47: =_xlfn.LET(_xlpm.CF, _xlfn.XLOOKUP(K$10, T.RefPortCountryCorp[Issuer], T.RefPortCountryCorp[Yield Cash Flow]), _xlpm.IER, $U$47, _xlpm.DUR, K13, _xlpm.CF * (1 + _xlpm.IER)^(-_xlpm.DUR)) -> 0.04189067164 | L47: =_xlfn.LET(_xlpm.CF, _xlfn.XLOOKUP(L$10, T.RefPortCountryCorp[Issuer], T.RefPortCountryCorp[Yield Cash Flow]), _xlpm.IER, $U$47, _xlpm.DUR, L13, _xlpm.CF * (1 + _xlpm.IER)^(-_xlpm.DUR)) -> 0.02911261992 | M47: =_xlfn.LET(_xlpm.CF, _xlfn.XLOOKUP(M$10, T.RefPortCountryCorp[Issuer], T.RefPortCountryCorp[Yield Cash Flow]), _xlpm.IER, $U$47, _xlpm.DUR, M13, _xlpm.CF * (1 + _xlpm.IER)^(-_xlpm.DUR)) -> 0.02055023472 | N47: =_xlfn.LET(_xlpm.CF, _xlfn.XLOOKUP(N$10, T.RefPortCountryCorp[Issuer], T.RefPortCountryCorp[Yield Cash Flow]), _xlpm.IER, $U$47, _xlpm.DUR, N13, _xlpm.CF * (1 + _xlpm.IER)^(-_xlpm.DUR)) -> 0.09043867115 | O47: =_xlfn.LET(_xlpm.CF, _xlfn.XLOOKUP(O$10, T.RefPortCountryCorp[Issuer], T.RefPortCountryCorp[Yield Cash Flow]), _xlpm.IER, $U$47, _xlpm.DUR, O13, _xlpm.CF * (1 + _xlpm.IER)^(-_xlpm.DUR)) -> 0.1825708562 | P47: =_xlfn.LET(_xlpm.CF, _xlfn.XLOOKUP(P$10, T.RefPortCountryCorp[Issuer], T.RefPortCountryCorp[Yield Cash Flow]), _xlpm.IER, $U$47, _xlpm.DUR, P13, _xlpm.CF * (1 + _xlpm.IER)^(-_xlpm.DUR)) -> 0.03217618233 | Q47: =_xlfn.LET(_xlpm.CF, _xlfn.XLOOKUP(Q$10, T.RefPortCountryCorp[Issuer], T.RefPortCountryCorp[Yield Cash Flow]), _xlpm.IER, $U$47, _xlpm.DUR, Q13, _xlpm.CF * (1 + _xlpm.IER)^(-_xlpm.DUR)) -> 0.01082450639 | S47: =SUM(G47:Q47) -> 1.012568415 | T47: =(SUM(G40:Q40)-S47)^2 -> 2.773289223e-08 | U47: 0.03222693789
F48: IRR discounted risk-free yield model bond | G48: =_xlfn.LET(_xlpm.CF, _xlfn.XLOOKUP(G$10, T.RefPortCountryCorp[Issuer], T.RefPortCountryCorp[RFR Cash Flow]), _xlpm.IER, $U$48, _xlpm.DUR, G13, _xlpm.CF * (1 + _xlpm.IER)^(-_xlpm.DUR)) -> 0.03111984742 | H48: =_xlfn.LET(_xlpm.CF, _xlfn.XLOOKUP(H$10, T.RefPortCountryCorp[Issuer], T.RefPortCountryCorp[RFR Cash Flow]), _xlpm.IER, $U$48, _xlpm.DUR, H13, _xlpm.CF * (1 + _xlpm.IER)^(-_xlpm.DUR)) -> 0.05061370919 | I48: =_xlfn.LET(_xlpm.CF, _xlfn.XLOOKUP(I$10, T.RefPortCountryCorp[Issuer], T.RefPortCountryCorp[RFR Cash Flow]), _xlpm.IER, $U$48, _xlpm.DUR, I13, _xlpm.CF * (1 + _xlpm.IER)^(-_xlpm.DUR)) -> 0.2642147511 | J48: =_xlfn.LET(_xlpm.CF, _xlfn.XLOOKUP(J$10, T.RefPortCountryCorp[Issuer], T.RefPortCountryCorp[RFR Cash Flow]), _xlpm.IER, $U$48, _xlpm.DUR, J13, _xlpm.CF * (1 + _xlpm.IER)^(-_xlpm.DUR)) -> 0.2631912878 | K48: =_xlfn.LET(_xlpm.CF, _xlfn.XLOOKUP(K$10, T.RefPortCountryCorp[Issuer], T.RefPortCountryCorp[RFR Cash Flow]), _xlpm.IER, $U$48, _xlpm.DUR, K13, _xlpm.CF * (1 + _xlpm.IER)^(-_xlpm.DUR)) -> 0.04023971734 | L48: =_xlfn.LET(_xlpm.CF, _xlfn.XLOOKUP(L$10, T.RefPortCountryCorp[Issuer], T.RefPortCountryCorp[RFR Cash Flow]), _xlpm.IER, $U$48, _xlpm.DUR, L13, _xlpm.CF * (1 + _xlpm.IER)^(-_xlpm.DUR)) -> 0.03123327483 | M48: =_xlfn.LET(_xlpm.CF, _xlfn.XLOOKUP(M$10, T.RefPortCountryCorp[Issuer], T.RefPortCountryCorp[RFR Cash Flow]), _xlpm.IER, $U$48, _xlpm.DUR, M13, _xlpm.CF * (1 + _xlpm.IER)^(-_xlpm.DUR)) -> 0.02071016621 | N48: =_xlfn.LET(_xlpm.CF, _xlfn.XLOOKUP(N$10, T.RefPortCountryCorp[Issuer], T.RefPortCountryCorp[RFR Cash Flow]), _xlpm.IER, $U$48, _xlpm.DUR, N13, _xlpm.CF * (1 + _xlpm.IER)^(-_xlpm.DUR)) -> 0.09234288216 | O48: =_xlfn.LET(_xlpm.CF, _xlfn.XLOOKUP(O$10, T.RefPortCountryCorp[Issuer], T.RefPortCountryCorp[RFR Cash Flow]), _xlpm.IER, $U$48, _xlpm.DUR, O13, _xlpm.CF * (1 + _xlpm.IER)^(-_xlpm.DUR)) -> 0.1834462272 | P48: =_xlfn.LET(_xlpm.CF, _xlfn.XLOOKUP(P$10, T.RefPortCountryCorp[Issuer], T.RefPortCountryCorp[RFR Cash Flow]), _xlpm.IER, $U$48, _xlpm.DUR, P13, _xlpm.CF * (1 + _xlpm.IER)^(-_xlpm.DUR)) -> 0.0304654734 | Q48: =_xlfn.LET(_xlpm.CF, _xlfn.XLOOKUP(Q$10, T.RefPortCountryCorp[Issuer], T.RefPortCountryCorp[RFR Cash Flow]), _xlpm.IER, $U$48, _xlpm.DUR, Q13, _xlpm.CF * (1 + _xlpm.IER)^(-_xlpm.DUR)) -> 0.01005215616 | S48: =SUM(G48:Q48) -> 1.017629493 | T48: =(SUM(G41:Q41)-S48)^2 -> 4.930380658e-32 | U48: 0.01927659692
F49: IRR discounted risk-corrected yield model bond | G49: =_xlfn.LET(_xlpm.CF, _xlfn.XLOOKUP(G$10, T.RefPortCountryCorp[Issuer], T.RefPortCountryCorp[RC Yield Cash Flow]), _xlpm.IER, $U$49, _xlpm.DUR, G13, _xlpm.CF * (1 + _xlpm.IER)^(-_xlpm.DUR)) -> 0.0301526165 | H49: =_xlfn.LET(_xlpm.CF, _xlfn.XLOOKUP(H$10, T.RefPortCountryCorp[Issuer], T.RefPortCountryCorp[RC Yield Cash Flow]), _xlpm.IER, $U$49, _xlpm.DUR, H13, _xlpm.CF * (1 + _xlpm.IER)^(-_xlpm.DUR)) -> 0.05001769313 | I49: =_xlfn.LET(_xlpm.CF, _xlfn.XLOOKUP(I$10, T.RefPortCountryCorp[Issuer], T.RefPortCountryCorp[RC Yield Cash Flow]), _xlpm.IER, $U$49, _xlpm.DUR, I13, _xlpm.CF * (1 + _xlpm.IER)^(-_xlpm.DUR)) -> 0.2629240387 | J49: =_xlfn.LET(_xlpm.CF, _xlfn.XLOOKUP(J$10, T.RefPortCountryCorp[Issuer], T.RefPortCountryCorp[RC Yield Cash Flow]), _xlpm.IER, $U$49, _xlpm.DUR, J13, _xlpm.CF * (1 + _xlpm.IER)^(-_xlpm.DUR)) -> 0.2636089232 | K49: =_xlfn.LET(_xlpm.CF, _xlfn.XLOOKUP(K$10, T.RefPortCountryCorp[Issuer], T.RefPortCountryCorp[RC Yield Cash Flow]), _xlpm.IER, $U$49, _xlpm.DUR, K13, _xlpm.CF * (1 + _xlpm.IER)^(-_xlpm.DUR)) -> 0.04104974555 | L49: =_xlfn.LET(_xlpm.CF, _xlfn.XLOOKUP(L$10, T.RefPortCountryCorp[Issuer], T.RefPortCountryCorp[RC Yield Cash Flow]), _xlpm.IER, $U$49, _xlpm.DUR, L13, _xlpm.CF * (1 + _xlpm.IER)^(-_xlpm.DUR)) -> 0.03016243237 | M49: =_xlfn.LET(_xlpm.CF, _xlfn.XLOOKUP(M$10, T.RefPortCountryCorp[Issuer], T.RefPortCountryCorp[RC Yield Cash Flow]), _xlpm.IER, $U$49, _xlpm.DUR, M13, _xlpm.CF * (1 + _xlpm.IER)^(-_xlpm.DUR)) -> 0.02068839011 | N49: =_xlfn.LET(_xlpm.CF, _xlfn.XLOOKUP(N$10, T.RefPortCountryCorp[Issuer], T.RefPortCountryCorp[RC Yield Cash Flow]), _xlpm.IER, $U$49, _xlpm.DUR, N13, _xlpm.CF * (1 + _xlpm.IER)^(-_xlpm.DUR)) -> 0.09134634554 | O49: =_xlfn.LET(_xlpm.CF, _xlfn.XLOOKUP(O$10, T.RefPortCountryCorp[Issuer], T.RefPortCountryCorp[RC Yield Cash Flow]), _xlpm.IER, $U$49, _xlpm.DUR, O13, _xlpm.CF * (1 + _xlpm.IER)^(-_xlpm.DUR)) -> 0.1828834151 | P49: =_xlfn.LET(_xlpm.CF, _xlfn.XLOOKUP(P$10, T.RefPortCountryCorp[Issuer], T.RefPortCountryCorp[RC Yield Cash Flow]), _xlpm.IER, $U$49, _xlpm.DUR, P13, _xlpm.CF * (1 + _xlpm.IER)^(-_xlpm.DUR)) -> 0.03129835965 | Q49: =_xlfn.LET(_xlpm.CF, _xlfn.XLOOKUP(Q$10, T.RefPortCountryCorp[Issuer], T.RefPortCountryCorp[RC Yield Cash Flow]), _xlpm.IER, $U$49, _xlpm.DUR, Q13, _xlpm.CF * (1 + _xlpm.IER)^(-_xlpm.DUR)) -> 0.01043292967 | S49: =SUM(G49:Q49) -> 1.01456489 | T49: =(SUM(G42:Q42)-S49)^2 -> 7.528268124e-09 | U49: 0.0258885233
F51: Portfolio spread and risk correction | G51: Total
F52: Portfolio spread | G52: =V.IER_Yield_Corp_Country-V.IER_RFR_Corp_Country -> 0.01295034097
F53: Portfolio risk correction | G53: =V.IER_Yield_Corp_Country-V.IER_RCYield_Corp_Country -> 0.006338414592

Sheet RCS
M3: ©EIOPA, 2026.
F6: Risk-Corrected Spreads
F8: Currency RCS | J8: Country RCS
F10: IRRs calculated | G10: =_xlfn.LET(_xlpm.THRESHOLD, 0.000001, AND(V.IER_Yield_Gov_Cur_Obj < _xlpm.THRESHOLD, V.IER_RFR_Gov_Cur_Obj < _xlpm.THRESHOLD, V.IER_RCYield_Gov_Cur_Obj < _xlpm.THRESHOLD, V.IER_Yield_Corp_Cur_Obj < _xlpm.THRESHOLD, V.IER_RFR_Corp_Cur_Obj < _xlpm.THRESHOLD, V.IER_RCYield_Corp_Cur_Obj < _xlpm.THRESHOLD)) -> TRUE | J10: IRRs calculated | K10: =_xlfn.LET(_xlpm.THRESHOLD, 0.000001, AND(V.IER_Yield_Gov_Country_Obj < _xlpm.THRESHOLD, V.IER_RFR_Gov_Country_Obj < _xlpm.THRESHOLD, V.IER_RCYield_Gov_Country_Obj < _xlpm.THRESHOLD, V.IER_Yield_Corp_Country_Obj < _xlpm.THRESHOLD, V.IER_RFR_Corp_Country_Obj < _xlpm.THRESHOLD, V.IER_RCYield_Corp_Country_Obj < _xlpm.THRESHOLD)) -> TRUE
G11: =V.W_GOV_EUR/(V.W_GOV_EUR+V.W_CORP_EUR) -> 0.3891547049 | K11: =V.W_GOV_IT/(V.W_GOV_IT+V.W_CORP_IT) -> 0.6066763425
G12: =V.W_CORP_EUR/(V.W_GOV_EUR+V.W_CORP_EUR) -> 0.6108452951 | K12: =V.W_CORP_IT/(V.W_GOV_IT+V.W_CORP_IT) -> 0.3933236575
G13: =V.S_GOV_EUR -> 0.01002810713 | K13: =V.S_GOV_IT -> 0.008115077497
G14: =V.S_CORP_EUR -> 0.01023398142 | K14: =V.S_CORP_IT -> 0.01295034097
G15: =V.RC_GOV_EUR -> 0.001970419252 | K15: =V.RC_GOV_IT -> 0.002210006855
G16: =V.RC_CORP_EUR -> 0.005013328796 | K16: =V.RC_CORP_IT -> 0.006338414592
G17: =V.W_GOV_EUR_NORM * V.S_GOV_EUR + V.W_CORP_EUR_NORM * V.S_CORP_EUR -> 0.01015386447 | K17: =V.W_GOV_IT_NORM * V.S_GOV_IT + V.W_CORP_IT_NORM * V.S_CORP_IT -> 0.01001690101
G18: =V.W_GOV_EUR_NORM * V.RC_GOV_EUR + V.W_CORP_EUR_NORM * V.RC_CORP_EUR -> 0.00382916623 | K18: =V.W_GOV_IT_NORM * V.RC_GOV_IT + V.W_CORP_IT_NORM * V.RC_CORP_IT -> 0.003833807286
G19: =V.S_EUR-V.RC_EUR -> 0.006324698242 | K19: =V.S_IT-V.RC_IT -> 0.006183093726

Sheet Disclaimer
M3: ©EIOPA, 2026.
F6: Disclaimer
F8: The content of this workbook is made available by EIOPA for public information purposes only. It is not intended to be used for any other purpose. EIOPA shall not be liable for any error or inaccuracy in the content of this workbook, for any action taken in reliance thereon. EIOPA expressly disclaims all warranties, expressed or implied, as to the accuracy of any of the content provided or as to the merchantability or fitness of the content provided. © EIOPA - European Insurance and Occupational Pensions Authority, 2026. Reproduction is authorised provided that you acknowledge EIOPA as the source: "Source: © EIOPA – European Insurance and Occupational Pensions Authority".
